Workbook

Sheet ID (hidden)
AY2: =IF(OR(AZ2="KODE",AZ2=""),"-",COUNTA(AZ$2:AZ2)-COUNTBLANK(AZ$2:AZ2)) -> - | AZ2: =IF(OR(INDEX(Data!A:A,0,1)=0,INDEX(Data!A:A,0,1)="-"),"",INDEX(Data!A:A,0,1)) ->  | BA2: 2 | BB2: =IF(ISNA(VLOOKUP(BA2,AY:AZ,2,FALSE)),"-",VLOOKUP(BA2,AY:AZ,2,FALSE)) -> KAS | EZ2: =IF(Info!D5<>0,Info!D5,"Nama Perusahaan") -> PT. EXPRESS GEMBOL
AY3: =IF(OR(AZ3="-",AZ3=""),"-",COUNTA(AZ$2:AZ3)-COUNTBLANK(AZ$2:AZ3)) -> 1 | AZ3: =IF(OR(INDEX(Data!A:A,0,1)=0,INDEX(Data!A:A,0,1)="-"),"",INDEX(Data!A:A,0,1)) -> KODE | BA3: =BA2+1 -> 3 | BB3: OPR-01 | DA3: =IF(AND(HD!B2000=0,HD!B3000=0,HD!B4000=0),"KAS","#") -> KAS
AY4: =IF(OR(AZ4="-",AZ4=""),"-",COUNTA(AZ$2:AZ4)-COUNTBLANK(AZ$2:AZ4)) -> - | AZ4: =IF(OR(INDEX(Data!A:A,0,1)=0,INDEX(Data!A:A,0,1)="-"),"",INDEX(Data!A:A,0,1)) ->  | BA4: =BA3+1 -> 4 | BB4: OPR-02
AY5: =IF(OR(AZ5="-",AZ5=""),"-",COUNTA(AZ$2:AZ5)-COUNTBLANK(AZ$2:AZ5)) -> - | AZ5: =IF(OR(INDEX(Data!A:A,0,1)=0,INDEX(Data!A:A,0,1)="-"),"",INDEX(Data!A:A,0,1)) ->  | BA5: 5 | BB5: OPR-03
AY6: =IF(OR(AZ6="-",AZ6=""),"-",COUNTA(AZ$2:AZ6)-COUNTBLANK(AZ$2:AZ6)) -> - | AZ6: =IF(OR(INDEX(Data!A:A,0,1)=0,INDEX(Data!A:A,0,1)="-"),"",INDEX(Data!A:A,0,1)) ->  | BA6: 6 | BB6: OPR-04
AY7: =IF(OR(AZ7="-",AZ7=""),"-",COUNTA(AZ$2:AZ7)-COUNTBLANK(AZ$2:AZ7)) -> 2 | AZ7: =IF(OR(INDEX(Data!A:A,0,1)=0,INDEX(Data!A:A,0,1)="-"),"",INDEX(Data!A:A,0,1)) -> KAS | BA7: 7 | BB7: OPR-05
AY8: =IF(OR(AZ8="-",AZ8=""),"-",COUNTA(AZ$2:AZ8)-COUNTBLANK(AZ$2:AZ8)) -> 3 | AZ8: =IF(OR(INDEX(Data!A:A,0,1)=0,INDEX(Data!A:A,0,1)="-"),"",INDEX(Data!A:A,0,1)) -> OPR-01 | BA8: =BA7+1 -> 8 | BB8: INV-01
AY9: =IF(OR(AZ9="-",AZ9=""),"-",COUNTA(AZ$2:AZ9)-COUNTBLANK(AZ$2:AZ9)) -> 4 | AZ9: =IF(OR(INDEX(Data!A:A,0,1)=0,INDEX(Data!A:A,0,1)="-"),"",INDEX(Data!A:A,0,1)) -> OPR-02 | BA9: 9 | BB9: PNY
AY10: =IF(OR(AZ10="-",AZ10=""),"-",COUNTA(AZ$2:AZ10)-COUNTBLANK(AZ$2:AZ10)) -> 5 | AZ10: =IF(OR(INDEX(Data!A:A,0,1)=0,INDEX(Data!A:A,0,1)="-"),"",INDEX(Data!A:A,0,1)) -> OPR-03 | BA10: 10 | BB10: INV-02
AY11: =IF(OR(AZ11="-",AZ11=""),"-",COUNTA(AZ$2:AZ11)-COUNTBLANK(AZ$2:AZ11)) -> 6 | AZ11: =IF(OR(INDEX(Data!A:A,0,1)=0,INDEX(Data!A:A,0,1)="-"),"",INDEX(Data!A:A,0,1)) -> OPR-04 | BA11: 11 | BB11: OPR-06
AY12: =IF(OR(AZ12="-",AZ12=""),"-",COUNTA(AZ$2:AZ12)-COUNTBLANK(AZ$2:AZ12)) -> 7 | AZ12: =IF(OR(INDEX(Data!A:A,0,1)=0,INDEX(Data!A:A,0,1)="-"),"",INDEX(Data!A:A,0,1)) -> OPR-05 | BA12: 12 | BB12: OPR-07
AY13: =IF(OR(AZ13="-",AZ13=""),"-",COUNTA(AZ$2:AZ13)-COUNTBLANK(AZ$2:AZ13)) -> - | AZ13: =IF(OR(INDEX(Data!A:A,0,1)=0,INDEX(Data!A:A,0,1)="-"),"",INDEX(Data!A:A,0,1)) ->  | BA13: 13 | BB13: OPR-08
AY14: =IF(OR(AZ14="-",AZ14=""),"-",COUNTA(AZ$2:AZ14)-COUNTBLANK(AZ$2:AZ14)) -> 8 | AZ14: =IF(OR(INDEX(Data!A:A,0,1)=0,INDEX(Data!A:A,0,1)="-"),"",INDEX(Data!A:A,0,1)) -> INV-01 | BA14: 14 | BB14: OPR-09 | EZ14: =IF(Info!D6<>0,"Per "&TEXT(Info!D6,"dd-mmm-yyy"),"...................") -> Per 31-Des-2015
AY15: =IF(OR(AZ15="-",AZ15=""),"-",COUNTA(AZ$2:AZ15)-COUNTBLANK(AZ$2:AZ15)) -> 9 | AZ15: =IF(OR(INDEX(Data!A:A,0,1)=0,INDEX(Data!A:A,0,1)="-"),"",INDEX(Data!A:A,0,1)) -> PNY | BA15: 15 | BB15: DNA-01
AY16: =IF(OR(AZ16="-",AZ16=""),"-",COUNTA(AZ$2:AZ16)-COUNTBLANK(AZ$2:AZ16)) -> - | AZ16: =IF(OR(INDEX(Data!A:A,0,1)=0,INDEX(Data!A:A,0,1)="-"),"",INDEX(Data!A:A,0,1)) ->  | BA16: 16 | BB16: DNA-02 | DA16: =IF(AND(HD!B2000=0,HD!B3000=0,HD!B4000=0),"OPERASIONAL","#") -> OPERASIONAL
AY17: =IF(OR(AZ17="-",AZ17=""),"-",COUNTA(AZ$2:AZ17)-COUNTBLANK(AZ$2:AZ17)) -> 10 | AZ17: =IF(OR(INDEX(Data!A:A,0,1)=0,INDEX(Data!A:A,0,1)="-"),"",INDEX(Data!A:A,0,1)) -> INV-02 | BA17: 17 | BB17: DNA-03
AY18: =IF(OR(AZ18="-",AZ18=""),"-",COUNTA(AZ$2:AZ18)-COUNTBLANK(AZ$2:AZ18)) -> 11 | AZ18: =IF(OR(INDEX(Data!A:A,0,1)=0,INDEX(Data!A:A,0,1)="-"),"",INDEX(Data!A:A,0,1)) -> OPR-06 | BA18: 18 | BB18: DNA-04
AY19: =IF(OR(AZ19="-",AZ19=""),"-",COUNTA(AZ$2:AZ19)-COUNTBLANK(AZ$2:AZ19)) -> - | AZ19: =IF(OR(INDEX(Data!A:A,0,1)=0,INDEX(Data!A:A,0,1)="-"),"",INDEX(Data!A:A,0,1)) ->  | BA19: 19 | BB19: LBD-01
AY20: =IF(OR(AZ20="-",AZ20=""),"-",COUNTA(AZ$2:AZ20)-COUNTBLANK(AZ$2:AZ20)) -> - | AZ20: =IF(OR(INDEX(Data!A:A,0,1)=0,INDEX(Data!A:A,0,1)="-"),"",INDEX(Data!A:A,0,1)) ->  | BA20: 20 | BB20: LBD-02
AY21: =IF(OR(AZ21="-",AZ21=""),"-",COUNTA(AZ$2:AZ21)-COUNTBLANK(AZ$2:AZ21)) -> - | AZ21: =IF(OR(INDEX(Data!A:A,0,1)=0,INDEX(Data!A:A,0,1)="-"),"",INDEX(Data!A:A,0,1)) ->  | BA21: 21 | BB21: LBS
AY22: =IF(OR(AZ22="-",AZ22=""),"-",COUNTA(AZ$2:AZ22)-COUNTBLANK(AZ$2:AZ22)) -> - | AZ22: =IF(OR(INDEX(Data!A:A,0,1)=0,INDEX(Data!A:A,0,1)="-"),"",INDEX(Data!A:A,0,1)) ->  | BA22: 22 | BB22: -
AY23: =IF(OR(AZ23="-",AZ23=""),"-",COUNTA(AZ$2:AZ23)-COUNTBLANK(AZ$2:AZ23)) -> - | AZ23: =IF(OR(INDEX(Data!A:A,0,1)=0,INDEX(Data!A:A,0,1)="-"),"",INDEX(Data!A:A,0,1)) ->  | BA23: 23 | BB23: -
AY24: =IF(OR(AZ24="-",AZ24=""),"-",COUNTA(AZ$2:AZ24)-COUNTBLANK(AZ$2:AZ24)) -> 12 | AZ24: =IF(OR(INDEX(Data!A:A,0,1)=0,INDEX(Data!A:A,0,1)="-"),"",INDEX(Data!A:A,0,1)) -> OPR-07 | BA24: 24 | BB24: -
AY25: =IF(OR(AZ25="-",AZ25=""),"-",COUNTA(AZ$2:AZ25)-COUNTBLANK(AZ$2:AZ25)) -> 13 | AZ25: =IF(OR(INDEX(Data!A:A,0,1)=0,INDEX(Data!A:A,0,1)="-"),"",INDEX(Data!A:A,0,1)) -> OPR-08 | BA25: 25 | BB25: -
AY26: =IF(OR(AZ26="-",AZ26=""),"-",COUNTA(AZ$2:AZ26)-COUNTBLANK(AZ$2:AZ26)) -> 14 | AZ26: =IF(OR(INDEX(Data!A:A,0,1)=0,INDEX(Data!A:A,0,1)="-"),"",INDEX(Data!A:A,0,1)) -> OPR-09 | BA26: 26 | BB26: - | EZ26: =IF(Info!D7<>0,"Per "&TEXT(Info!D7,"dd-mmm-yyy"),"...................") -> Per 31-Des-2016
AY27: =IF(OR(AZ27="-",AZ27=""),"-",COUNTA(AZ$2:AZ27)-COUNTBLANK(AZ$2:AZ27)) -> - | AZ27: =IF(OR(INDEX(Data!A:A,0,1)=0,INDEX(Data!A:A,0,1)="-"),"",INDEX(Data!A:A,0,1)) ->  | BA27: 27 | BB27: -
AY28: =IF(OR(AZ28="-",AZ28=""),"-",COUNTA(AZ$2:AZ28)-COUNTBLANK(AZ$2:AZ28)) -> 15 | AZ28: =IF(OR(INDEX(Data!A:A,0,1)=0,INDEX(Data!A:A,0,1)="-"),"",INDEX(Data!A:A,0,1)) -> DNA-01 | BA28: 28 | BB28: - | DA28: =IF(AND(HD!B2000=0,HD!B3000=0,HD!B4000=0),"INVESTASI","#") -> INVESTASI
AY29: =IF(OR(AZ29="-",AZ29=""),"-",COUNTA(AZ$2:AZ29)-COUNTBLANK(AZ$2:AZ29)) -> 16 | AZ29: =IF(OR(INDEX(Data!A:A,0,1)=0,INDEX(Data!A:A,0,1)="-"),"",INDEX(Data!A:A,0,1)) -> DNA-02 | BA29: 29 | BB29: -
AY30: =IF(OR(AZ30="-",AZ30=""),"-",COUNTA(AZ$2:AZ30)-COUNTBLANK(AZ$2:AZ30)) -> 17 | AZ30: =IF(OR(INDEX(Data!A:A,0,1)=0,INDEX(Data!A:A,0,1)="-"),"",INDEX(Data!A:A,0,1)) -> DNA-03 | BA30: 30 | BB30: -
AY31: =IF(OR(AZ31="-",AZ31=""),"-",COUNTA(AZ$2:AZ31)-COUNTBLANK(AZ$2:AZ31)) -> - | AZ31: =IF(OR(INDEX(Data!A:A,0,1)=0,INDEX(Data!A:A,0,1)="-"),"",INDEX(Data!A:A,0,1)) ->  | BA31: 31 | BB31: -
AY32: =IF(OR(AZ32="-",AZ32=""),"-",COUNTA(AZ$2:AZ32)-COUNTBLANK(AZ$2:AZ32)) -> - | AZ32: =IF(OR(INDEX(Data!A:A,0,1)=0,INDEX(Data!A:A,0,1)="-"),"",INDEX(Data!A:A,0,1)) ->  | BA32: 32 | BB32: -
AY33: =IF(OR(AZ33="-",AZ33=""),"-",COUNTA(AZ$2:AZ33)-COUNTBLANK(AZ$2:AZ33)) -> - | AZ33: =IF(OR(INDEX(Data!A:A,0,1)=0,INDEX(Data!A:A,0,1)="-"),"",INDEX(Data!A:A,0,1)) ->  | BA33: 33 | BB33: -
AY34: =IF(OR(AZ34="-",AZ34=""),"-",COUNTA(AZ$2:AZ34)-COUNTBLANK(AZ$2:AZ34)) -> - | AZ34: =IF(OR(INDEX(Data!A:A,0,1)=0,INDEX(Data!A:A,0,1)="-"),"",INDEX(Data!A:A,0,1)) ->  | BA34: 34 | BB34: =IF(ISNA(VLOOKUP(BA34,AY:AZ,2,FALSE)),"-",VLOOKUP(BA34,AY:AZ,2,FALSE)) -> -
AY35: =IF(OR(AZ35="-",AZ35=""),"-",COUNTA(AZ$2:AZ35)-COUNTBLANK(AZ$2:AZ35)) -> 18 | AZ35: =IF(OR(INDEX(Data!A:A,0,1)=0,INDEX(Data!A:A,0,1)="-"),"",INDEX(Data!A:A,0,1)) -> DNA-04 | BA35: 35 | BB35: -
AY36: =IF(OR(AZ36="-",AZ36=""),"-",COUNTA(AZ$2:AZ36)-COUNTBLANK(AZ$2:AZ36)) -> 19 | AZ36: =IF(OR(INDEX(Data!A:A,0,1)=0,INDEX(Data!A:A,0,1)="-"),"",INDEX(Data!A:A,0,1)) -> LBD-01 | BA36: 36 | BB36: -
AY37: =IF(OR(AZ37="-",AZ37=""),"-",COUNTA(AZ$2:AZ37)-COUNTBLANK(AZ$2:AZ37)) -> 20 | AZ37: =IF(OR(INDEX(Data!A:A,0,1)=0,INDEX(Data!A:A,0,1)="-"),"",INDEX(Data!A:A,0,1)) -> LBD-02 | BA37: 37 | BB37: -
AY38: =IF(OR(AZ38="-",AZ38=""),"-",COUNTA(AZ$2:AZ38)-COUNTBLANK(AZ$2:AZ38)) -> - | AZ38: =IF(OR(INDEX(Data!A:A,0,1)=0,INDEX(Data!A:A,0,1)="-"),"",INDEX(Data!A:A,0,1)) ->  | BA38: 38 | BB38: - | EZ38: =IF(Info!D8<>0,"Per "&TEXT(Info!D8,"dd-mmm-yyy"),"...................") -> Per 31-Des-2017
AY39: =IF(OR(AZ39="-",AZ39=""),"-",COUNTA(AZ$2:AZ39)-COUNTBLANK(AZ$2:AZ39)) -> - | AZ39: =IF(OR(INDEX(Data!A:A,0,1)=0,INDEX(Data!A:A,0,1)="-"),"",INDEX(Data!A:A,0,1)) ->  | BA39: 39 | BB39: -
AY40: =IF(OR(AZ40="-",AZ40=""),"-",COUNTA(AZ$2:AZ40)-COUNTBLANK(AZ$2:AZ40)) -> - | AZ40: =IF(OR(INDEX(Data!A:A,0,1)=0,INDEX(Data!A:A,0,1)="-"),"",INDEX(Data!A:A,0,1)) ->  | BA40: 40 | BB40: - | DA40: =IF(AND(HD!B2000=0,HD!B3000=0,HD!B4000=0),"PENYUSUTAN","#") -> PENYUSUTAN
AY41: =IF(OR(AZ41="-",AZ41=""),"-",COUNTA(AZ$2:AZ41)-COUNTBLANK(AZ$2:AZ41)) -> - | AZ41: =IF(OR(INDEX(Data!A:A,0,1)=0,INDEX(Data!A:A,0,1)="-"),"",INDEX(Data!A:A,0,1)) ->  | BA41: 41 | BB41: -
AY42: =IF(OR(AZ42="-",AZ42=""),"-",COUNTA(AZ$2:AZ42)-COUNTBLANK(AZ$2:AZ42)) -> - | AZ42: =IF(OR(INDEX(Data!A:A,0,1)=0,INDEX(Data!A:A,0,1)="-"),"",INDEX(Data!A:A,0,1)) ->  | BA42: 42 | BB42: -
AY43: =IF(OR(AZ43="-",AZ43=""),"-",COUNTA(AZ$2:AZ43)-COUNTBLANK(AZ$2:AZ43)) -> - | AZ43: =IF(OR(INDEX(Data!A:A,0,1)=0,INDEX(Data!A:A,0,1)="-"),"",INDEX(Data!A:A,0,1)) ->  | BA43: 43 | BB43: -
AY44: =IF(OR(AZ44="-",AZ44=""),"-",COUNTA(AZ$2:AZ44)-COUNTBLANK(AZ$2:AZ44)) -> - | AZ44: =IF(OR(INDEX(Data!A:A,0,1)=0,INDEX(Data!A:A,0,1)="-"),"",INDEX(Data!A:A,0,1)) ->  | BA44: 44 | BB44: -
AY45: =IF(OR(AZ45="-",AZ45=""),"-",COUNTA(AZ$2:AZ45)-COUNTBLANK(AZ$2:AZ45)) -> - | AZ45: =IF(OR(INDEX(Data!A:A,0,1)=0,INDEX(Data!A:A,0,1)="-"),"",INDEX(Data!A:A,0,1)) ->  | BA45: 45 | BB45: -
AY46: =IF(OR(AZ46="-",AZ46=""),"-",COUNTA(AZ$2:AZ46)-COUNTBLANK(AZ$2:AZ46)) -> - | AZ46: =IF(OR(INDEX(Data!A:A,0,1)=0,INDEX(Data!A:A,0,1)="-"),"",INDEX(Data!A:A,0,1)) ->  | BA46: 46 | BB46: -
AY47: =IF(OR(AZ47="-",AZ47=""),"-",COUNTA(AZ$2:AZ47)-COUNTBLANK(AZ$2:AZ47)) -> - | AZ47: =IF(OR(INDEX(Data!A:A,0,1)=0,INDEX(Data!A:A,0,1)="-"),"",INDEX(Data!A:A,0,1)) ->  | BA47: 47 | BB47: -
AY48: =IF(OR(AZ48="-",AZ48=""),"-",COUNTA(AZ$2:AZ48)-COUNTBLANK(AZ$2:AZ48)) -> - | AZ48: =IF(OR(INDEX(Data!A:A,0,1)=0,INDEX(Data!A:A,0,1)="-"),"",INDEX(Data!A:A,0,1)) ->  | BA48: 48 | BB48: -
AY49: =IF(OR(AZ49="-",AZ49=""),"-",COUNTA(AZ$2:AZ49)-COUNTBLANK(AZ$2:AZ49)) -> - | AZ49: =IF(OR(INDEX(Data!A:A,0,1)=0,INDEX(Data!A:A,0,1)="-"),"",INDEX(Data!A:A,0,1)) ->  | BA49: 49 | BB49: -
AY50: =IF(OR(AZ50="-",AZ50=""),"-",COUNTA(AZ$2:AZ50)-COUNTBLANK(AZ$2:AZ50)) -> - | AZ50: =IF(OR(INDEX(Data!A:A,0,1)=0,INDEX(Data!A:A,0,1)="-"),"",INDEX(Data!A:A,0,1)) ->  | BA50: 50 | BB50: - | EZ50: =IF(Info!D6<>0,TEXT(Info!D6,"dd-mmm-yyy"),"...................") -> 31-Des-2015
AY51: =IF(OR(AZ51="-",AZ51=""),"-",COUNTA(AZ$2:AZ51)-COUNTBLANK(AZ$2:AZ51)) -> - | AZ51: =IF(OR(INDEX(Data!A:A,0,1)=0,INDEX(Data!A:A,0,1)="-"),"",INDEX(Data!A:A,0,1)) ->  | BA51: 51 | BB51: -
AY52: =IF(OR(AZ52="-",AZ52=""),"-",COUNTA(AZ$2:AZ52)-COUNTBLANK(AZ$2:AZ52)) -> - | AZ52: =IF(OR(INDEX(Data!A:A,0,1)=0,INDEX(Data!A:A,0,1)="-"),"",INDEX(Data!A:A,0,1)) ->  | BA52: 52 | BB52: - | DA52: =IF(AND(HD!B2000=0,HD!B3000=0,HD!B4000=0),"PENDANAAN","#") -> PENDANAAN
AY53: =IF(OR(AZ53="-",AZ53=""),"-",COUNTA(AZ$2:AZ53)-COUNTBLANK(AZ$2:AZ53)) -> - | AZ53: =IF(OR(INDEX(Data!A:A,0,1)=0,INDEX(Data!A:A,0,1)="-"),"",INDEX(Data!A:A,0,1)) ->  | BA53: 53 | BB53: -
AY54: =IF(OR(AZ54="-",AZ54=""),"-",COUNTA(AZ$2:AZ54)-COUNTBLANK(AZ$2:AZ54)) -> - | AZ54: =IF(OR(INDEX(Data!A:A,0,1)=0,INDEX(Data!A:A,0,1)="-"),"",INDEX(Data!A:A,0,1)) ->  | BA54: 54 | BB54: -
AY55: =IF(OR(AZ55="-",AZ55=""),"-",COUNTA(AZ$2:AZ55)-COUNTBLANK(AZ$2:AZ55)) -> - | AZ55: =IF(OR(INDEX(Data!A:A,0,1)=0,INDEX(Data!A:A,0,1)="-"),"",INDEX(Data!A:A,0,1)) ->  | BA55: 55 | BB55: -
AY56: =IF(OR(AZ56="-",AZ56=""),"-",COUNTA(AZ$2:AZ56)-COUNTBLANK(AZ$2:AZ56)) -> - | AZ56: =IF(OR(INDEX(Data!A:A,0,1)=0,INDEX(Data!A:A,0,1)="-"),"",INDEX(Data!A:A,0,1)) ->  | BA56: 56 | BB56: -
AY57: =IF(OR(AZ57="-",AZ57=""),"-",COUNTA(AZ$2:AZ57)-COUNTBLANK(AZ$2:AZ57)) -> - | AZ57: =IF(OR(INDEX(Data!A:A,0,1)=0,INDEX(Data!A:A,0,1)="-"),"",INDEX(Data!A:A,0,1)) ->  | BA57: 57 | BB57: -
AY58: =IF(OR(AZ58="-",AZ58=""),"-",COUNTA(AZ$2:AZ58)-COUNTBLANK(AZ$2:AZ58)) -> - | AZ58: =IF(OR(INDEX(Data!A:A,0,1)=0,INDEX(Data!A:A,0,1)="-"),"",INDEX(Data!A:A,0,1)) ->  | BA58: 58 | BB58: -
AY59: =IF(OR(AZ59="-",AZ59=""),"-",COUNTA(AZ$2:AZ59)-COUNTBLANK(AZ$2:AZ59)) -> - | AZ59: =IF(OR(INDEX(Data!A:A,0,1)=0,INDEX(Data!A:A,0,1)="-"),"",INDEX(Data!A:A,0,1)) ->  | BA59: 59 | BB59: -
AY60: =IF(OR(AZ60="-",AZ60=""),"-",COUNTA(AZ$2:AZ60)-COUNTBLANK(AZ$2:AZ60)) -> - | AZ60: =IF(OR(INDEX(Data!A:A,0,1)=0,INDEX(Data!A:A,0,1)="-"),"",INDEX(Data!A:A,0,1)) ->  | BA60: 60 | BB60: -
AY61: =IF(OR(AZ61="-",AZ61=""),"-",COUNTA(AZ$2:AZ61)-COUNTBLANK(AZ$2:AZ61)) -> - | AZ61: =IF(OR(INDEX(Data!A:A,0,1)=0,INDEX(Data!A:A,0,1)="-"),"",INDEX(Data!A:A,0,1)) ->  | BA61: 61 | BB61: -
AY62: =IF(OR(AZ62="-",AZ62=""),"-",COUNTA(AZ$2:AZ62)-COUNTBLANK(AZ$2:AZ62)) -> - | AZ62: =IF(OR(INDEX(Data!A:A,0,1)=0,INDEX(Data!A:A,0,1)="-"),"",INDEX(Data!A:A,0,1)) ->  | BA62: 62 | BB62: - | EZ62: =IF(Info!D7<>0,TEXT(Info!D7,"dd-mmm-yyy"),"...................") -> 31-Des-2016
AY63: =IF(OR(AZ63="-",AZ63=""),"-",COUNTA(AZ$2:AZ63)-COUNTBLANK(AZ$2:AZ63)) -> - | AZ63: =IF(OR(INDEX(Data!A:A,0,1)=0,INDEX(Data!A:A,0,1)="-"),"",INDEX(Data!A:A,0,1)) ->  | BA63: 63 | BB63: -
AY64: =IF(OR(AZ64="-",AZ64=""),"-",COUNTA(AZ$2:AZ64)-COUNTBLANK(AZ$2:AZ64)) -> - | AZ64: =IF(OR(INDEX(Data!A:A,0,1)=0,INDEX(Data!A:A,0,1)="-"),"",INDEX(Data!A:A,0,1)) ->  | BA64: 64 | BB64: - | DA64: =IF(AND(HD!B2000=0,HD!B3000=0,HD!B4000=0),"LABA DITAHAN","#") -> LABA DITAHAN
AY65: =IF(OR(AZ65="-",AZ65=""),"-",COUNTA(AZ$2:AZ65)-COUNTBLANK(AZ$2:AZ65)) -> - | AZ65: =IF(OR(INDEX(Data!A:A,0,1)=0,INDEX(Data!A:A,0,1)="-"),"",INDEX(Data!A:A,0,1)) ->  | BA65: 65 | BB65: -
AY66: =IF(OR(AZ66="-",AZ66=""),"-",COUNTA(AZ$2:AZ66)-COUNTBLANK(AZ$2:AZ66)) -> - | AZ66: =IF(OR(INDEX(Data!A:A,0,1)=0,INDEX(Data!A:A,0,1)="-"),"",INDEX(Data!A:A,0,1)) ->  | BA66: 66 | BB66: =IF(ISNA(VLOOKUP(BA66,AY:AZ,2,FALSE)),"-",VLOOKUP(BA66,AY:AZ,2,FALSE)) -> -
AY67: =IF(OR(AZ67="-",AZ67=""),"-",COUNTA(AZ$2:AZ67)-COUNTBLANK(AZ$2:AZ67)) -> - | AZ67: =IF(OR(INDEX(Data!A:A,0,1)=0,INDEX(Data!A:A,0,1)="-"),"",INDEX(Data!A:A,0,1)) ->  | BA67: 67 | BB67: -
AY68: =IF(OR(AZ68="-",AZ68=""),"-",COUNTA(AZ$2:AZ68)-COUNTBLANK(AZ$2:AZ68)) -> - | AZ68: =IF(OR(INDEX(Data!A:A,0,1)=0,INDEX(Data!A:A,0,1)="-"),"",INDEX(Data!A:A,0,1)) ->  | BA68: =BA67+1 -> 68 | BB68: -
AY69: =IF(OR(AZ69="-",AZ69=""),"-",COUNTA(AZ$2:AZ69)-COUNTBLANK(AZ$2:AZ69)) -> - | AZ69: =IF(OR(INDEX(Data!A:A,0,1)=0,INDEX(Data!A:A,0,1)="-"),"",INDEX(Data!A:A,0,1)) ->  | BA69: 69 | BB69: -
AY70: =IF(OR(AZ70="-",AZ70=""),"-",COUNTA(AZ$2:AZ70)-COUNTBLANK(AZ$2:AZ70)) -> - | AZ70: =IF(OR(INDEX(Data!A:A,0,1)=0,INDEX(Data!A:A,0,1)="-"),"",INDEX(Data!A:A,0,1)) ->  | BA70: 70 | BB70: -
AY71: =IF(OR(AZ71="-",AZ71=""),"-",COUNTA(AZ$2:AZ71)-COUNTBLANK(AZ$2:AZ71)) -> - | AZ71: =IF(OR(INDEX(Data!A:A,0,1)=0,INDEX(Data!A:A,0,1)="-"),"",INDEX(Data!A:A,0,1)) ->  | BA71: 71 | BB71: -
AY72: =IF(OR(AZ72="-",AZ72=""),"-",COUNTA(AZ$2:AZ72)-COUNTBLANK(AZ$2:AZ72)) -> - | AZ72: =IF(OR(INDEX(Data!A:A,0,1)=0,INDEX(Data!A:A,0,1)="-"),"",INDEX(Data!A:A,0,1)) ->  | BA72: 72 | BB72: -
AY73: =IF(OR(AZ73="-",AZ73=""),"-",COUNTA(AZ$2:AZ73)-COUNTBLANK(AZ$2:AZ73)) -> 21 | AZ73: =IF(OR(INDEX(Data!A:A,0,1)=0,INDEX(Data!A:A,0,1)="-"),"",INDEX(Data!A:A,0,1)) -> LBS | BA73: 73 | BB73: -
AY74: =IF(OR(AZ74="-",AZ74=""),"-",COUNTA(AZ$2:AZ74)-COUNTBLANK(AZ$2:AZ74)) -> - | AZ74: =IF(OR(INDEX(Data!A:A,0,1)=0,INDEX(Data!A:A,0,1)="-"),"",INDEX(Data!A:A,0,1)) ->  | BA74: 74 | BB74: - | EZ74: =IF(Info!D8<>0,TEXT(Info!D8,"dd-mmm-yyy"),"...................") -> 31-Des-2017
AY75: =IF(OR(AZ75="-",AZ75=""),"-",COUNTA(AZ$2:AZ75)-COUNTBLANK(AZ$2:AZ75)) -> - | AZ75: =IF(OR(INDEX(Data!A:A,0,1)=0,INDEX(Data!A:A,0,1)="-"),"",INDEX(Data!A:A,0,1)) ->  | BA75: 75 | BB75: -
AY76: =IF(OR(AZ76="-",AZ76=""),"-",COUNTA(AZ$2:AZ76)-COUNTBLANK(AZ$2:AZ76)) -> - | AZ76: =IF(OR(INDEX(Data!A:A,0,1)=0,INDEX(Data!A:A,0,1)="-"),"",INDEX(Data!A:A,0,1)) ->  | BA76: 76 | BB76: - | DA76: =IF(AND(HD!B2000=0,HD!B3000=0,HD!B4000=0),"LABA BERSIH","#") -> LABA BERSIH
AY77: =IF(OR(AZ77="-",AZ77=""),"-",COUNTA(AZ$2:AZ77)-COUNTBLANK(AZ$2:AZ77)) -> - | AZ77: =IF(OR(INDEX(Data!A:A,0,1)=0,INDEX(Data!A:A,0,1)="-"),"",INDEX(Data!A:A,0,1)) ->  | BA77: 77 | BB77: -
AY78: =IF(OR(AZ78="-",AZ78=""),"-",COUNTA(AZ$2:AZ78)-COUNTBLANK(AZ$2:AZ78)) -> - | AZ78: =IF(OR(INDEX(Data!A:A,0,1)=0,INDEX(Data!A:A,0,1)="-"),"",INDEX(Data!A:A,0,1)) ->  | BA78: 78 | BB78: -
AY79: =IF(OR(AZ79="-",AZ79=""),"-",COUNTA(AZ$2:AZ79)-COUNTBLANK(AZ$2:AZ79)) -> - | AZ79: =IF(OR(INDEX(Data!A:A,0,1)=0,INDEX(Data!A:A,0,1)="-"),"",INDEX(Data!A:A,0,1)) ->  | BA79: 79 | BB79: -
AY80: =IF(OR(AZ80="-",AZ80=""),"-",COUNTA(AZ$2:AZ80)-COUNTBLANK(AZ$2:AZ80)) -> - | AZ80: =IF(OR(INDEX(Data!A:A,0,1)=0,INDEX(Data!A:A,0,1)="-"),"",INDEX(Data!A:A,0,1)) ->  | BA80: 80 | BB80: -
AY81: =IF(OR(AZ81="-",AZ81=""),"-",COUNTA(AZ$2:AZ81)-COUNTBLANK(AZ$2:AZ81)) -> - | AZ81: =IF(OR(INDEX(Data!A:A,0,1)=0,INDEX(Data!A:A,0,1)="-"),"",INDEX(Data!A:A,0,1)) ->  | BA81: 81 | BB81: -
AY82: =IF(OR(AZ82="-",AZ82=""),"-",COUNTA(AZ$2:AZ82)-COUNTBLANK(AZ$2:AZ82)) -> - | AZ82: =IF(OR(INDEX(Data!A:A,0,1)=0,INDEX(Data!A:A,0,1)="-"),"",INDEX(Data!A:A,0,1)) ->  | BA82: 82 | BB82: -
AY83: =IF(OR(AZ83="-",AZ83=""),"-",COUNTA(AZ$2:AZ83)-COUNTBLANK(AZ$2:AZ83)) -> - | AZ83: =IF(OR(INDEX(Data!A:A,0,1)=0,INDEX(Data!A:A,0,1)="-"),"",INDEX(Data!A:A,0,1)) ->  | BA83: 83 | BB83: -
AY84: =IF(OR(AZ84="-",AZ84=""),"-",COUNTA(AZ$2:AZ84)-COUNTBLANK(AZ$2:AZ84)) -> - | AZ84: =IF(OR(INDEX(Data!A:A,0,1)=0,INDEX(Data!A:A,0,1)="-"),"",INDEX(Data!A:A,0,1)) ->  | BA84: 84 | BB84: -
AY85: =IF(OR(AZ85="-",AZ85=""),"-",COUNTA(AZ$2:AZ85)-COUNTBLANK(AZ$2:AZ85)) -> - | AZ85: =IF(OR(INDEX(Data!A:A,0,1)=0,INDEX(Data!A:A,0,1)="-"),"",INDEX(Data!A:A,0,1)) ->  | BA85: 85 | BB85: -
AY86: =IF(OR(AZ86="-",AZ86=""),"-",COUNTA(AZ$2:AZ86)-COUNTBLANK(AZ$2:AZ86)) -> - | AZ86: =IF(OR(INDEX(Data!A:A,0,1)=0,INDEX(Data!A:A,0,1)="-"),"",INDEX(Data!A:A,0,1)) ->  | BA86: 86 | BB86: - | EZ86: ="Periode "&tgl_1&" s/d "&tgl_2 -> Periode 31-Des-2015 s/d 31-Des-2016
AY87: =IF(OR(AZ87="-",AZ87=""),"-",COUNTA(AZ$2:AZ87)-COUNTBLANK(AZ$2:AZ87)) -> - | AZ87: =IF(OR(INDEX(Data!A:A,0,1)=0,INDEX(Data!A:A,0,1)="-"),"",INDEX(Data!A:A,0,1)) ->  | BA87: 87 | BB87: -
AY88: =IF(OR(AZ88="-",AZ88=""),"-",COUNTA(AZ$2:AZ88)-COUNTBLANK(AZ$2:AZ88)) -> - | AZ88: =IF(OR(INDEX(Data!A:A,0,1)=0,INDEX(Data!A:A,0,1)="-"),"",INDEX(Data!A:A,0,1)) ->  | BA88: 88 | BB88: - | DA88: =IF(AND(HD!B2000=0,HD!B3000=0,HD!B4000=0),"LBS","#") -> LBS
AY89: =IF(OR(AZ89="-",AZ89=""),"-",COUNTA(AZ$2:AZ89)-COUNTBLANK(AZ$2:AZ89)) -> - | AZ89: =IF(OR(INDEX(Data!A:A,0,1)=0,INDEX(Data!A:A,0,1)="-"),"",INDEX(Data!A:A,0,1)) ->  | BA89: 89 | BB89: -
AY90: =IF(OR(AZ90="-",AZ90=""),"-",COUNTA(AZ$2:AZ90)-COUNTBLANK(AZ$2:AZ90)) -> - | AZ90: =IF(OR(INDEX(Data!A:A,0,1)=0,INDEX(Data!A:A,0,1)="-"),"",INDEX(Data!A:A,0,1)) ->  | BA90: 90 | BB90: -
AY91: =IF(OR(AZ91="-",AZ91=""),"-",COUNTA(AZ$2:AZ91)-COUNTBLANK(AZ$2:AZ91)) -> - | AZ91: =IF(OR(INDEX(Data!A:A,0,1)=0,INDEX(Data!A:A,0,1)="-"),"",INDEX(Data!A:A,0,1)) ->  | BA91: 91 | BB91: -
AY92: =IF(OR(AZ92="-",AZ92=""),"-",COUNTA(AZ$2:AZ92)-COUNTBLANK(AZ$2:AZ92)) -> - | AZ92: =IF(OR(INDEX(Data!A:A,0,1)=0,INDEX(Data!A:A,0,1)="-"),"",INDEX(Data!A:A,0,1)) ->  | BA92: 92 | BB92: -
AY93: =IF(OR(AZ93="-",AZ93=""),"-",COUNTA(AZ$2:AZ93)-COUNTBLANK(AZ$2:AZ93)) -> - | AZ93: =IF(OR(INDEX(Data!A:A,0,1)=0,INDEX(Data!A:A,0,1)="-"),"",INDEX(Data!A:A,0,1)) ->  | BA93: 93 | BB93: -
AY94: =IF(OR(AZ94="-",AZ94=""),"-",COUNTA(AZ$2:AZ94)-COUNTBLANK(AZ$2:AZ94)) -> - | AZ94: =IF(OR(INDEX(Data!A:A,0,1)=0,INDEX(Data!A:A,0,1)="-"),"",INDEX(Data!A:A,0,1)) ->  | BA94: 94 | BB94: -
AY95: =IF(OR(AZ95="-",AZ95=""),"-",COUNTA(AZ$2:AZ95)-COUNTBLANK(AZ$2:AZ95)) -> - | AZ95: =IF(OR(INDEX(Data!A:A,0,1)=0,INDEX(Data!A:A,0,1)="-"),"",INDEX(Data!A:A,0,1)) ->  | BA95: 95 | BB95: -
AY96: =IF(OR(AZ96="-",AZ96=""),"-",COUNTA(AZ$2:AZ96)-COUNTBLANK(AZ$2:AZ96)) -> - | AZ96: =IF(OR(INDEX(Data!A:A,0,1)=0,INDEX(Data!A:A,0,1)="-"),"",INDEX(Data!A:A,0,1)) ->  | BA96: 96 | BB96: -
AY97: =IF(OR(AZ97="-",AZ97=""),"-",COUNTA(AZ$2:AZ97)-COUNTBLANK(AZ$2:AZ97)) -> - | AZ97: =IF(OR(INDEX(Data!A:A,0,1)=0,INDEX(Data!A:A,0,1)="-"),"",INDEX(Data!A:A,0,1)) ->  | BA97: 97 | BB97: -
AY98: =IF(OR(AZ98="-",AZ98=""),"-",COUNTA(AZ$2:AZ98)-COUNTBLANK(AZ$2:AZ98)) -> - | AZ98: =IF(OR(INDEX(Data!A:A,0,1)=0,INDEX(Data!A:A,0,1)="-"),"",INDEX(Data!A:A,0,1)) ->  | BA98: 98 | BB98: =IF(ISNA(VLOOKUP(BA98,AY:AZ,2,FALSE)),"-",VLOOKUP(BA98,AY:AZ,2,FALSE)) -> - | EZ98: ="Periode "&tgl_2&" s/d "&tgl_3 -> Periode 31-Des-2016 s/d 31-Des-2017
AY99: =IF(OR(AZ99="-",AZ99=""),"-",COUNTA(AZ$2:AZ99)-COUNTBLANK(AZ$2:AZ99)) -> - | AZ99: =IF(OR(INDEX(Data!A:A,0,1)=0,INDEX(Data!A:A,0,1)="-"),"",INDEX(Data!A:A,0,1)) ->  | BA99: 99 | BB99: -
AY100: =IF(OR(AZ100="-",AZ100=""),"-",COUNTA(AZ$2:AZ100)-COUNTBLANK(AZ$2:AZ100)) -> - | AZ100: =IF(OR(INDEX(Data!A:A,0,1)=0,INDEX(Data!A:A,0,1)="-"),"",INDEX(Data!A:A,0,1)) ->  | BA100: 100 | BB100: - | DA100: =IF(AND(HD!B2000=0,HD!B3000=0,HD!B4000=0),"PNY","#") -> PNY
AY101: =IF(OR(AZ101="-",AZ101=""),"-",COUNTA(AZ$2:AZ101)-COUNTBLANK(AZ$2:AZ101)) -> - | AZ101: =IF(OR(INDEX(Data!A:A,0,1)=0,INDEX(Data!A:A,0,1)="-"),"",INDEX(Data!A:A,0,1)) ->  | BA101: 101 | BB101: -
AY102: =IF(OR(AZ102="-",AZ102=""),"-",COUNTA(AZ$2:AZ102)-COUNTBLANK(AZ$2:AZ102)) -> - | AZ102: =IF(OR(INDEX(Data!A:A,0,1)=0,INDEX(Data!A:A,0,1)="-"),"",INDEX(Data!A:A,0,1)) -> 
AY103: =IF(OR(AZ103="-",AZ103=""),"-",COUNTA(AZ$2:AZ103)-COUNTBLANK(AZ$2:AZ103)) -> - | AZ103: =IF(OR(INDEX(Data!A:A,0,1)=0,INDEX(Data!A:A,0,1)="-"),"",INDEX(Data!A:A,0,1)) -> 
AY104: =IF(OR(AZ104="-",AZ104=""),"-",COUNTA(AZ$2:AZ104)-COUNTBLANK(AZ$2:AZ104)) -> - | AZ104: =IF(OR(INDEX(Data!A:A,0,1)=0,INDEX(Data!A:A,0,1)="-"),"",INDEX(Data!A:A,0,1)) -> 
AY105: =IF(OR(AZ105="-",AZ105=""),"-",COUNTA(AZ$2:AZ105)-COUNTBLANK(AZ$2:AZ105)) -> - | AZ105: =IF(OR(INDEX(Data!A:A,0,1)=0,INDEX(Data!A:A,0,1)="-"),"",INDEX(Data!A:A,0,1)) -> 
AY106: =IF(OR(AZ106="-",AZ106=""),"-",COUNTA(AZ$2:AZ106)-COUNTBLANK(AZ$2:AZ106)) -> - | AZ106: =IF(OR(INDEX(Data!A:A,0,1)=0,INDEX(Data!A:A,0,1)="-"),"",INDEX(Data!A:A,0,1)) -> 
AY107: =IF(OR(AZ107="-",AZ107=""),"-",COUNTA(AZ$2:AZ107)-COUNTBLANK(AZ$2:AZ107)) -> - | AZ107: =IF(OR(INDEX(Data!A:A,0,1)=0,INDEX(Data!A:A,0,1)="-"),"",INDEX(Data!A:A,0,1)) -> 
AY108: =IF(OR(AZ108="-",AZ108=""),"-",COUNTA(AZ$2:AZ108)-COUNTBLANK(AZ$2:AZ108)) -> - | AZ108: =IF(OR(INDEX(Data!A:A,0,1)=0,INDEX(Data!A:A,0,1)="-"),"",INDEX(Data!A:A,0,1)) -> 
AY109: =IF(OR(AZ109="-",AZ109=""),"-",COUNTA(AZ$2:AZ109)-COUNTBLANK(AZ$2:AZ109)) -> - | AZ109: =IF(OR(INDEX(Data!A:A,0,1)=0,INDEX(Data!A:A,0,1)="-"),"",INDEX(Data!A:A,0,1)) -> 
AY110: =IF(OR(AZ110="-",AZ110=""),"-",COUNTA(AZ$2:AZ110)-COUNTBLANK(AZ$2:AZ110)) -> - | AZ110: =IF(OR(INDEX(Data!A:A,0,1)=0,INDEX(Data!A:A,0,1)="-"),"",INDEX(Data!A:A,0,1)) ->  | EZ110: =IF(OR(Info!D6=Info!D6,Info!D7=Info!D7,Info!D8=Info!D8),0,"#####") -> 0
AY111: =IF(OR(AZ111="-",AZ111=""),"-",COUNTA(AZ$2:AZ111)-COUNTBLANK(AZ$2:AZ111)) -> - | AZ111: =IF(OR(INDEX(Data!A:A,0,1)=0,INDEX(Data!A:A,0,1)="-"),"",INDEX(Data!A:A,0,1)) -> 
AY112: =IF(OR(AZ112="-",AZ112=""),"-",COUNTA(AZ$2:AZ112)-COUNTBLANK(AZ$2:AZ112)) -> - | AZ112: =IF(OR(INDEX(Data!A:A,0,1)=0,INDEX(Data!A:A,0,1)="-"),"",INDEX(Data!A:A,0,1)) ->  | DA112: =IF(AND(HD!B2000=0,HD!B3000=0,HD!B4000=0),"OPR-0","#") -> OPR-0
AY113: =IF(OR(AZ113="-",AZ113=""),"-",COUNTA(AZ$2:AZ113)-COUNTBLANK(AZ$2:AZ113)) -> - | AZ113: =IF(OR(INDEX(Data!A:A,0,1)=0,INDEX(Data!A:A,0,1)="-"),"",INDEX(Data!A:A,0,1)) -> 
AY114: =IF(OR(AZ114="-",AZ114=""),"-",COUNTA(AZ$2:AZ114)-COUNTBLANK(AZ$2:AZ114)) -> - | AZ114: =IF(OR(INDEX(Data!A:A,0,1)=0,INDEX(Data!A:A,0,1)="-"),"",INDEX(Data!A:A,0,1)) -> 
AY115: =IF(OR(AZ115="-",AZ115=""),"-",COUNTA(AZ$2:AZ115)-COUNTBLANK(AZ$2:AZ115)) -> - | AZ115: =IF(OR(INDEX(Data!A:A,0,1)=0,INDEX(Data!A:A,0,1)="-"),"",INDEX(Data!A:A,0,1)) -> 
AY116: =IF(OR(AZ116="-",AZ116=""),"-",COUNTA(AZ$2:AZ116)-COUNTBLANK(AZ$2:AZ116)) -> - | AZ116: =IF(OR(INDEX(Data!A:A,0,1)=0,INDEX(Data!A:A,0,1)="-"),"",INDEX(Data!A:A,0,1)) -> 
AY117: =IF(OR(AZ117="-",AZ117=""),"-",COUNTA(AZ$2:AZ117)-COUNTBLANK(AZ$2:AZ117)) -> - | AZ117: =IF(OR(INDEX(Data!A:A,0,1)=0,INDEX(Data!A:A,0,1)="-"),"",INDEX(Data!A:A,0,1)) -> 
AY118: =IF(OR(AZ118="-",AZ118=""),"-",COUNTA(AZ$2:AZ118)-COUNTBLANK(AZ$2:AZ118)) -> - | AZ118: =IF(OR(INDEX(Data!A:A,0,1)=0,INDEX(Data!A:A,0,1)="-"),"",INDEX(Data!A:A,0,1)) -> 
AY119: =IF(OR(AZ119="-",AZ119=""),"-",COUNTA(AZ$2:AZ119)-COUNTBLANK(AZ$2:AZ119)) -> - | AZ119: =IF(OR(INDEX(Data!A:A,0,1)=0,INDEX(Data!A:A,0,1)="-"),"",INDEX(Data!A:A,0,1)) -> 
AY120: =IF(OR(AZ120="-",AZ120=""),"-",COUNTA(AZ$2:AZ120)-COUNTBLANK(AZ$2:AZ120)) -> - | AZ120: =IF(OR(INDEX(Data!A:A,0,1)=0,INDEX(Data!A:A,0,1)="-"),"",INDEX(Data!A:A,0,1)) -> 
AY121: =IF(OR(AZ121="-",AZ121=""),"-",COUNTA(AZ$2:AZ121)-COUNTBLANK(AZ$2:AZ121)) -> - | AZ121: =IF(OR(INDEX(Data!A:A,0,1)=0,INDEX(Data!A:A,0,1)="-"),"",INDEX(Data!A:A,0,1)) -> 
AY122: =IF(OR(AZ122="-",AZ122=""),"-",COUNTA(AZ$2:AZ122)-COUNTBLANK(AZ$2:AZ122)) -> - | AZ122: =IF(OR(INDEX(Data!A:A,0,1)=0,INDEX(Data!A:A,0,1)="-"),"",INDEX(Data!A:A,0,1)) ->  | EZ122: =IF(AND(HD!B2000=0,HD!B3000=0,HD!B4000=0),COUNTBLANK(Data!$A$78:$B$78),"#") -> 2
AY123: =IF(OR(AZ123="-",AZ123=""),"-",COUNTA(AZ$2:AZ123)-COUNTBLANK(AZ$2:AZ123)) -> - | AZ123: =IF(OR(INDEX(Data!A:A,0,1)=0,INDEX(Data!A:A,0,1)="-"),"",INDEX(Data!A:A,0,1)) -> 
AY124: =IF(OR(AZ124="-",AZ124=""),"-",COUNTA(AZ$2:AZ124)-COUNTBLANK(AZ$2:AZ124)) -> - | AZ124: =IF(OR(INDEX(Data!A:A,0,1)=0,INDEX(Data!A:A,0,1)="-"),"",INDEX(Data!A:A,0,1)) ->  | DA124: =IF(AND(HD!B2000=0,HD!B3000=0,HD!B4000=0),"OPR-","#") -> OPR-
AY125: =IF(OR(AZ125="-",AZ125=""),"-",COUNTA(AZ$2:AZ125)-COUNTBLANK(AZ$2:AZ125)) -> - | AZ125: =IF(OR(INDEX(Data!A:A,0,1)=0,INDEX(Data!A:A,0,1)="-"),"",INDEX(Data!A:A,0,1)) -> 
AY126: =IF(OR(AZ126="-",AZ126=""),"-",COUNTA(AZ$2:AZ126)-COUNTBLANK(AZ$2:AZ126)) -> - | AZ126: =IF(OR(INDEX(Data!A:A,0,1)=0,INDEX(Data!A:A,0,1)="-"),"",INDEX(Data!A:A,0,1)) -> 
AY127: =IF(OR(AZ127="-",AZ127=""),"-",COUNTA(AZ$2:AZ127)-COUNTBLANK(AZ$2:AZ127)) -> - | AZ127: =IF(OR(INDEX(Data!A:A,0,1)=0,INDEX(Data!A:A,0,1)="-"),"",INDEX(Data!A:A,0,1)) -> 
AY128: =IF(OR(AZ128="-",AZ128=""),"-",COUNTA(AZ$2:AZ128)-COUNTBLANK(AZ$2:AZ128)) -> - | AZ128: =IF(OR(INDEX(Data!A:A,0,1)=0,INDEX(Data!A:A,0,1)="-"),"",INDEX(Data!A:A,0,1)) -> 
AY129: =IF(OR(AZ129="-",AZ129=""),"-",COUNTA(AZ$2:AZ129)-COUNTBLANK(AZ$2:AZ129)) -> - | AZ129: =IF(OR(INDEX(Data!A:A,0,1)=0,INDEX(Data!A:A,0,1)="-"),"",INDEX(Data!A:A,0,1)) -> 
AY130: =IF(OR(AZ130="-",AZ130=""),"-",COUNTA(AZ$2:AZ130)-COUNTBLANK(AZ$2:AZ130)) -> - | AZ130: =IF(OR(INDEX(Data!A:A,0,1)=0,INDEX(Data!A:A,0,1)="-"),"",INDEX(Data!A:A,0,1)) -> 
AY131: =IF(OR(AZ131="-",AZ131=""),"-",COUNTA(AZ$2:AZ131)-COUNTBLANK(AZ$2:AZ131)) -> - | AZ131: =IF(OR(INDEX(Data!A:A,0,1)=0,INDEX(Data!A:A,0,1)="-"),"",INDEX(Data!A:A,0,1)) -> 
AY132: =IF(OR(AZ132="-",AZ132=""),"-",COUNTA(AZ$2:AZ132)-COUNTBLANK(AZ$2:AZ132)) -> - | AZ132: =IF(OR(INDEX(Data!A:A,0,1)=0,INDEX(Data!A:A,0,1)="-"),"",INDEX(Data!A:A,0,1)) -> 
AY133: =IF(OR(AZ133="-",AZ133=""),"-",COUNTA(AZ$2:AZ133)-COUNTBLANK(AZ$2:AZ133)) -> - | AZ133: =IF(OR(INDEX(Data!A:A,0,1)=0,INDEX(Data!A:A,0,1)="-"),"",INDEX(Data!A:A,0,1)) -> 
AY134: =IF(OR(AZ134="-",AZ134=""),"-",COUNTA(AZ$2:AZ134)-COUNTBLANK(AZ$2:AZ134)) -> - | AZ134: =IF(OR(INDEX(Data!A:A,0,1)=0,INDEX(Data!A:A,0,1)="-"),"",INDEX(Data!A:A,0,1)) ->  | EZ134: =IF(AND(HD!B2000=0,HD!B3000=0,HD!B4000=0),COUNTBLANK(Data!$A$78:$C$78),"#") -> 3
AY135: =IF(OR(AZ135="-",AZ135=""),"-",COUNTA(AZ$2:AZ135)-COUNTBLANK(AZ$2:AZ135)) -> - | AZ135: =IF(OR(INDEX(Data!A:A,0,1)=0,INDEX(Data!A:A,0,1)="-"),"",INDEX(Data!A:A,0,1)) -> 
AY136: =IF(OR(AZ136="-",AZ136=""),"-",COUNTA(AZ$2:AZ136)-COUNTBLANK(AZ$2:AZ136)) -> - | AZ136: =IF(OR(INDEX(Data!A:A,0,1)=0,INDEX(Data!A:A,0,1)="-"),"",INDEX(Data!A:A,0,1)) ->  | DA136: =IF(AND(HD!B2000=0,HD!B3000=0,HD!B4000=0),"INV-0","#") -> INV-0
AY137: =IF(OR(AZ137="-",AZ137=""),"-",COUNTA(AZ$2:AZ137)-COUNTBLANK(AZ$2:AZ137)) -> - | AZ137: =IF(OR(INDEX(Data!A:A,0,1)=0,INDEX(Data!A:A,0,1)="-"),"",INDEX(Data!A:A,0,1)) -> 
AY138: =IF(OR(AZ138="-",AZ138=""),"-",COUNTA(AZ$2:AZ138)-COUNTBLANK(AZ$2:AZ138)) -> - | AZ138: =IF(OR(INDEX(Data!A:A,0,1)=0,INDEX(Data!A:A,0,1)="-"),"",INDEX(Data!A:A,0,1)) -> 
AY139: =IF(OR(AZ139="-",AZ139=""),"-",COUNTA(AZ$2:AZ139)-COUNTBLANK(AZ$2:AZ139)) -> - | AZ139: =IF(OR(INDEX(Data!A:A,0,1)=0,INDEX(Data!A:A,0,1)="-"),"",INDEX(Data!A:A,0,1)) -> 
AY140: =IF(OR(AZ140="-",AZ140=""),"-",COUNTA(AZ$2:AZ140)-COUNTBLANK(AZ$2:AZ140)) -> - | AZ140: =IF(OR(INDEX(Data!A:A,0,1)=0,INDEX(Data!A:A,0,1)="-"),"",INDEX(Data!A:A,0,1)) -> 
AY141: =IF(OR(AZ141="-",AZ141=""),"-",COUNTA(AZ$2:AZ141)-COUNTBLANK(AZ$2:AZ141)) -> - | AZ141: =IF(OR(INDEX(Data!A:A,0,1)=0,INDEX(Data!A:A,0,1)="-"),"",INDEX(Data!A:A,0,1)) -> 
AY142: =IF(OR(AZ142="-",AZ142=""),"-",COUNTA(AZ$2:AZ142)-COUNTBLANK(AZ$2:AZ142)) -> - | AZ142: =IF(OR(INDEX(Data!A:A,0,1)=0,INDEX(Data!A:A,0,1)="-"),"",INDEX(Data!A:A,0,1)) -> 
AY143: =IF(OR(AZ143="-",AZ143=""),"-",COUNTA(AZ$2:AZ143)-COUNTBLANK(AZ$2:AZ143)) -> - | AZ143: =IF(OR(INDEX(Data!A:A,0,1)=0,INDEX(Data!A:A,0,1)="-"),"",INDEX(Data!A:A,0,1)) -> 
AY144: =IF(OR(AZ144="-",AZ144=""),"-",COUNTA(AZ$2:AZ144)-COUNTBLANK(AZ$2:AZ144)) -> - | AZ144: =IF(OR(INDEX(Data!A:A,0,1)=0,INDEX(Data!A:A,0,1)="-"),"",INDEX(Data!A:A,0,1)) -> 
AY145: =IF(OR(AZ145="-",AZ145=""),"-",COUNTA(AZ$2:AZ145)-COUNTBLANK(AZ$2:AZ145)) -> - | AZ145: =IF(OR(INDEX(Data!A:A,0,1)=0,INDEX(Data!A:A,0,1)="-"),"",INDEX(Data!A:A,0,1)) -> 
AY146: =IF(OR(AZ146="-",AZ146=""),"-",COUNTA(AZ$2:AZ146)-COUNTBLANK(AZ$2:AZ146)) -> - | AZ146: =IF(OR(INDEX(Data!A:A,0,1)=0,INDEX(Data!A:A,0,1)="-"),"",INDEX(Data!A:A,0,1)) ->  | EZ146: =IF(AND(HD!B2000=0,HD!B3000=0,HD!B4000=0),COUNTBLANK(Data!$A$78:$F$78),"#") -> 6
AY147: =IF(OR(AZ147="-",AZ147=""),"-",COUNTA(AZ$2:AZ147)-COUNTBLANK(AZ$2:AZ147)) -> - | AZ147: =IF(OR(INDEX(Data!A:A,0,1)=0,INDEX(Data!A:A,0,1)="-"),"",INDEX(Data!A:A,0,1)) -> 
AY148: =IF(OR(AZ148="-",AZ148=""),"-",COUNTA(AZ$2:AZ148)-COUNTBLANK(AZ$2:AZ148)) -> - | AZ148: =IF(OR(INDEX(Data!A:A,0,1)=0,INDEX(Data!A:A,0,1)="-"),"",INDEX(Data!A:A,0,1)) ->  | DA148: =IF(AND(HD!B2000=0,HD!B3000=0,HD!B4000=0),"INV-","#") -> INV-
AY149: =IF(OR(AZ149="-",AZ149=""),"-",COUNTA(AZ$2:AZ149)-COUNTBLANK(AZ$2:AZ149)) -> - | AZ149: =IF(OR(INDEX(Data!A:A,0,1)=0,INDEX(Data!A:A,0,1)="-"),"",INDEX(Data!A:A,0,1)) -> 
AY150: =IF(OR(AZ150="-",AZ150=""),"-",COUNTA(AZ$2:AZ150)-COUNTBLANK(AZ$2:AZ150)) -> - | AZ150: =IF(OR(INDEX(Data!A:A,0,1)=0,INDEX(Data!A:A,0,1)="-"),"",INDEX(Data!A:A,0,1)) -> 
AY151: =IF(OR(AZ151="-",AZ151=""),"-",COUNTA(AZ$2:AZ151)-COUNTBLANK(AZ$2:AZ151)) -> - | AZ151: =IF(OR(INDEX(Data!A:A,0,1)=0,INDEX(Data!A:A,0,1)="-"),"",INDEX(Data!A:A,0,1)) -> 
AY152: =IF(OR(AZ152="-",AZ152=""),"-",COUNTA(AZ$2:AZ152)-COUNTBLANK(AZ$2:AZ152)) -> - | AZ152: =IF(OR(INDEX(Data!A:A,0,1)=0,INDEX(Data!A:A,0,1)="-"),"",INDEX(Data!A:A,0,1)) -> 
AY153: =IF(OR(AZ153="-",AZ153=""),"-",COUNTA(AZ$2:AZ153)-COUNTBLANK(AZ$2:AZ153)) -> - | AZ153: =IF(OR(INDEX(Data!A:A,0,1)=0,INDEX(Data!A:A,0,1)="-"),"",INDEX(Data!A:A,0,1)) -> 
AY154: =IF(OR(AZ154="-",AZ154=""),"-",COUNTA(AZ$2:AZ154)-COUNTBLANK(AZ$2:AZ154)) -> - | AZ154: =IF(OR(INDEX(Data!A:A,0,1)=0,INDEX(Data!A:A,0,1)="-"),"",INDEX(Data!A:A,0,1)) -> 
AY155: =IF(OR(AZ155="-",AZ155=""),"-",COUNTA(AZ$2:AZ155)-COUNTBLANK(AZ$2:AZ155)) -> - | AZ155: =IF(OR(INDEX(Data!A:A,0,1)=0,INDEX(Data!A:A,0,1)="-"),"",INDEX(Data!A:A,0,1)) -> 
AY156: =IF(OR(AZ156="-",AZ156=""),"-",COUNTA(AZ$2:AZ156)-COUNTBLANK(AZ$2:AZ156)) -> - | AZ156: =IF(OR(INDEX(Data!A:A,0,1)=0,INDEX(Data!A:A,0,1)="-"),"",INDEX(Data!A:A,0,1)) -> 
AY157: =IF(OR(AZ157="-",AZ157=""),"-",COUNTA(AZ$2:AZ157)-COUNTBLANK(AZ$2:AZ157)) -> - | AZ157: =IF(OR(INDEX(Data!A:A,0,1)=0,INDEX(Data!A:A,0,1)="-"),"",INDEX(Data!A:A,0,1)) -> 
AY158: =IF(OR(AZ158="-",AZ158=""),"-",COUNTA(AZ$2:AZ158)-COUNTBLANK(AZ$2:AZ158)) -> - | AZ158: =IF(OR(INDEX(Data!A:A,0,1)=0,INDEX(Data!A:A,0,1)="-"),"",INDEX(Data!A:A,0,1)) ->  | EZ158: =IF(AND(tgl_2-tgl_1>300,tgl_3-tgl_2>300),"Tahun "&TEXT(tgl_1,"YYY"),IF(AND(tgl_2-tgl_1<300,tgl_3-tgl_2<300),"Bulan "&TEXT(tgl_1,"MMM-YYY"),"No Konsiten")) -> Tahun 2015
AY159: =IF(OR(AZ159="-",AZ159=""),"-",COUNTA(AZ$2:AZ159)-COUNTBLANK(AZ$2:AZ159)) -> - | AZ159: =IF(OR(INDEX(Data!A:A,0,1)=0,INDEX(Data!A:A,0,1)="-"),"",INDEX(Data!A:A,0,1)) -> 
AY160: =IF(OR(AZ160="-",AZ160=""),"-",COUNTA(AZ$2:AZ160)-COUNTBLANK(AZ$2:AZ160)) -> - | AZ160: =IF(OR(INDEX(Data!A:A,0,1)=0,INDEX(Data!A:A,0,1)="-"),"",INDEX(Data!A:A,0,1)) ->  | DA160: =IF(AND(HD!B2000=0,HD!B3000=0,HD!B4000=0),"DNA-0","#") -> DNA-0
AY161: =IF(OR(AZ161="-",AZ161=""),"-",COUNTA(AZ$2:AZ161)-COUNTBLANK(AZ$2:AZ161)) -> - | AZ161: =IF(OR(INDEX(Data!A:A,0,1)=0,INDEX(Data!A:A,0,1)="-"),"",INDEX(Data!A:A,0,1)) -> 
AY162: =IF(OR(AZ162="-",AZ162=""),"-",COUNTA(AZ$2:AZ162)-COUNTBLANK(AZ$2:AZ162)) -> - | AZ162: =IF(OR(INDEX(Data!A:A,0,1)=0,INDEX(Data!A:A,0,1)="-"),"",INDEX(Data!A:A,0,1)) -> 
AY163: =IF(OR(AZ163="-",AZ163=""),"-",COUNTA(AZ$2:AZ163)-COUNTBLANK(AZ$2:AZ163)) -> - | AZ163: =IF(OR(INDEX(Data!A:A,0,1)=0,INDEX(Data!A:A,0,1)="-"),"",INDEX(Data!A:A,0,1)) -> 
AY164: =IF(OR(AZ164="-",AZ164=""),"-",COUNTA(AZ$2:AZ164)-COUNTBLANK(AZ$2:AZ164)) -> - | AZ164: =IF(OR(INDEX(Data!A:A,0,1)=0,INDEX(Data!A:A,0,1)="-"),"",INDEX(Data!A:A,0,1)) -> 
AY165: =IF(OR(AZ165="-",AZ165=""),"-",COUNTA(AZ$2:AZ165)-COUNTBLANK(AZ$2:AZ165)) -> - | AZ165: =IF(OR(INDEX(Data!A:A,0,1)=0,INDEX(Data!A:A,0,1)="-"),"",INDEX(Data!A:A,0,1)) -> 
AY166: =IF(OR(AZ166="-",AZ166=""),"-",COUNTA(AZ$2:AZ166)-COUNTBLANK(AZ$2:AZ166)) -> - | AZ166: =IF(OR(INDEX(Data!A:A,0,1)=0,INDEX(Data!A:A,0,1)="-"),"",INDEX(Data!A:A,0,1)) -> 
AY167: =IF(OR(AZ167="-",AZ167=""),"-",COUNTA(AZ$2:AZ167)-COUNTBLANK(AZ$2:AZ167)) -> - | AZ167: =IF(OR(INDEX(Data!A:A,0,1)=0,INDEX(Data!A:A,0,1)="-"),"",INDEX(Data!A:A,0,1)) -> 
AY168: =IF(OR(AZ168="-",AZ168=""),"-",COUNTA(AZ$2:AZ168)-COUNTBLANK(AZ$2:AZ168)) -> - | AZ168: =IF(OR(INDEX(Data!A:A,0,1)=0,INDEX(Data!A:A,0,1)="-"),"",INDEX(Data!A:A,0,1)) -> 
AY169: =IF(OR(AZ169="-",AZ169=""),"-",COUNTA(AZ$2:AZ169)-COUNTBLANK(AZ$2:AZ169)) -> - | AZ169: =IF(OR(INDEX(Data!A:A,0,1)=0,INDEX(Data!A:A,0,1)="-"),"",INDEX(Data!A:A,0,1)) -> 
AY170: =IF(OR(AZ170="-",AZ170=""),"-",COUNTA(AZ$2:AZ170)-COUNTBLANK(AZ$2:AZ170)) -> - | AZ170: =IF(OR(INDEX(Data!A:A,0,1)=0,INDEX(Data!A:A,0,1)="-"),"",INDEX(Data!A:A,0,1)) ->  | EZ170: =IF(AND(tgl_2-tgl_1>300,tgl_3-tgl_2>300),"Tahun "&TEXT(tgl_2,"YYY"),IF(AND(tgl_2-tgl_1<300,tgl_3-tgl_2<300),"Bulan "&TEXT(tgl_2,"MMM-YYY"),"No Konsiten")) -> Tahun 2016
AY171: =IF(OR(AZ171="-",AZ171=""),"-",COUNTA(AZ$2:AZ171)-COUNTBLANK(AZ$2:AZ171)) -> - | AZ171: =IF(OR(INDEX(Data!A:A,0,1)=0,INDEX(Data!A:A,0,1)="-"),"",INDEX(Data!A:A,0,1)) -> 
AY172: =IF(OR(AZ172="-",AZ172=""),"-",COUNTA(AZ$2:AZ172)-COUNTBLANK(AZ$2:AZ172)) -> - | AZ172: =IF(OR(INDEX(Data!A:A,0,1)=0,INDEX(Data!A:A,0,1)="-"),"",INDEX(Data!A:A,0,1)) ->  | DA172: =IF(AND(HD!B2000=0,HD!B3000=0,HD!B4000=0),"DNA-","#") -> DNA-
AY173: =IF(OR(AZ173="-",AZ173=""),"-",COUNTA(AZ$2:AZ173)-COUNTBLANK(AZ$2:AZ173)) -> - | AZ173: =IF(OR(INDEX(Data!A:A,0,1)=0,INDEX(Data!A:A,0,1)="-"),"",INDEX(Data!A:A,0,1)) -> 
AY174: =IF(OR(AZ174="-",AZ174=""),"-",COUNTA(AZ$2:AZ174)-COUNTBLANK(AZ$2:AZ174)) -> - | AZ174: =IF(OR(INDEX(Data!A:A,0,1)=0,INDEX(Data!A:A,0,1)="-"),"",INDEX(Data!A:A,0,1)) -> 
AY175: =IF(OR(AZ175="-",AZ175=""),"-",COUNTA(AZ$2:AZ175)-COUNTBLANK(AZ$2:AZ175)) -> - | AZ175: =IF(OR(INDEX(Data!A:A,0,1)=0,INDEX(Data!A:A,0,1)="-"),"",INDEX(Data!A:A,0,1)) -> 
AY176: =IF(OR(AZ176="-",AZ176=""),"-",COUNTA(AZ$2:AZ176)-COUNTBLANK(AZ$2:AZ176)) -> - | AZ176: =IF(OR(INDEX(Data!A:A,0,1)=0,INDEX(Data!A:A,0,1)="-"),"",INDEX(Data!A:A,0,1)) -> 
AY177: =IF(OR(AZ177="-",AZ177=""),"-",COUNTA(AZ$2:AZ177)-COUNTBLANK(AZ$2:AZ177)) -> - | AZ177: =IF(OR(INDEX(Data!A:A,0,1)=0,INDEX(Data!A:A,0,1)="-"),"",INDEX(Data!A:A,0,1)) -> 
AY178: =IF(OR(AZ178="-",AZ178=""),"-",COUNTA(AZ$2:AZ178)-COUNTBLANK(AZ$2:AZ178)) -> - | AZ178: =IF(OR(INDEX(Data!A:A,0,1)=0,INDEX(Data!A:A,0,1)="-"),"",INDEX(Data!A:A,0,1)) -> 
AY179: =IF(OR(AZ179="-",AZ179=""),"-",COUNTA(AZ$2:AZ179)-COUNTBLANK(AZ$2:AZ179)) -> - | AZ179: =IF(OR(INDEX(Data!A:A,0,1)=0,INDEX(Data!A:A,0,1)="-"),"",INDEX(Data!A:A,0,1)) -> 
AY180: =IF(OR(AZ180="-",AZ180=""),"-",COUNTA(AZ$2:AZ180)-COUNTBLANK(AZ$2:AZ180)) -> - | AZ180: =IF(OR(INDEX(Data!A:A,0,1)=0,INDEX(Data!A:A,0,1)="-"),"",INDEX(Data!A:A,0,1)) -> 
AY181: =IF(OR(AZ181="-",AZ181=""),"-",COUNTA(AZ$2:AZ181)-COUNTBLANK(AZ$2:AZ181)) -> - | AZ181: =IF(OR(INDEX(Data!A:A,0,1)=0,INDEX(Data!A:A,0,1)="-"),"",INDEX(Data!A:A,0,1)) -> 
AY182: =IF(OR(AZ182="-",AZ182=""),"-",COUNTA(AZ$2:AZ182)-COUNTBLANK(AZ$2:AZ182)) -> - | AZ182: =IF(OR(INDEX(Data!A:A,0,1)=0,INDEX(Data!A:A,0,1)="-"),"",INDEX(Data!A:A,0,1)) ->  | EZ182: =IF(AND(tgl_2-tgl_1>300,tgl_3-tgl_2>300),"Tahun "&TEXT(tgl_3,"YYY"),IF(AND(tgl_2-tgl_1<300,tgl_3-tgl_2<300),"Bulan "&TEXT(tgl_3,"MMM-YYY"),"No Konsiten")) -> Tahun 2017
AY183: =IF(OR(AZ183="-",AZ183=""),"-",COUNTA(AZ$2:AZ183)-COUNTBLANK(AZ$2:AZ183)) -> - | AZ183: =IF(OR(INDEX(Data!A:A,0,1)=0,INDEX(Data!A:A,0,1)="-"),"",INDEX(Data!A:A,0,1)) -> 
AY184: =IF(OR(AZ184="-",AZ184=""),"-",COUNTA(AZ$2:AZ184)-COUNTBLANK(AZ$2:AZ184)) -> - | AZ184: =IF(OR(INDEX(Data!A:A,0,1)=0,INDEX(Data!A:A,0,1)="-"),"",INDEX(Data!A:A,0,1)) ->  | DA184: =IF(AND(HD!B2000=0,HD!B3000=0,HD!B4000=0),"LBD-0","#") -> LBD-0
AY185: =IF(OR(AZ185="-",AZ185=""),"-",COUNTA(AZ$2:AZ185)-COUNTBLANK(AZ$2:AZ185)) -> - | AZ185: =IF(OR(INDEX(Data!A:A,0,1)=0,INDEX(Data!A:A,0,1)="-"),"",INDEX(Data!A:A,0,1)) -> 
AY186: =IF(OR(AZ186="-",AZ186=""),"-",COUNTA(AZ$2:AZ186)-COUNTBLANK(AZ$2:AZ186)) -> - | AZ186: =IF(OR(INDEX(Data!A:A,0,1)=0,INDEX(Data!A:A,0,1)="-"),"",INDEX(Data!A:A,0,1)) -> 
AY187: =IF(OR(AZ187="-",AZ187=""),"-",COUNTA(AZ$2:AZ187)-COUNTBLANK(AZ$2:AZ187)) -> - | AZ187: =IF(OR(INDEX(Data!A:A,0,1)=0,INDEX(Data!A:A,0,1)="-"),"",INDEX(Data!A:A,0,1)) -> 
AY188: =IF(OR(AZ188="-",AZ188=""),"-",COUNTA(AZ$2:AZ188)-COUNTBLANK(AZ$2:AZ188)) -> - | AZ188: =IF(OR(INDEX(Data!A:A,0,1)=0,INDEX(Data!A:A,0,1)="-"),"",INDEX(Data!A:A,0,1)) -> 
AY189: =IF(OR(AZ189="-",AZ189=""),"-",COUNTA(AZ$2:AZ189)-COUNTBLANK(AZ$2:AZ189)) -> - | AZ189: =IF(OR(INDEX(Data!A:A,0,1)=0,INDEX(Data!A:A,0,1)="-"),"",INDEX(Data!A:A,0,1)) -> 
AY190: =IF(OR(AZ190="-",AZ190=""),"-",COUNTA(AZ$2:AZ190)-COUNTBLANK(AZ$2:AZ190)) -> - | AZ190: =IF(OR(INDEX(Data!A:A,0,1)=0,INDEX(Data!A:A,0,1)="-"),"",INDEX(Data!A:A,0,1)) -> 
AY191: =IF(OR(AZ191="-",AZ191=""),"-",COUNTA(AZ$2:AZ191)-COUNTBLANK(AZ$2:AZ191)) -> - | AZ191: =IF(OR(INDEX(Data!A:A,0,1)=0,INDEX(Data!A:A,0,1)="-"),"",INDEX(Data!A:A,0,1)) -> 
AY192: =IF(OR(AZ192="-",AZ192=""),"-",COUNTA(AZ$2:AZ192)-COUNTBLANK(AZ$2:AZ192)) -> - | AZ192: =IF(OR(INDEX(Data!A:A,0,1)=0,INDEX(Data!A:A,0,1)="-"),"",INDEX(Data!A:A,0,1)) -> 
AY193: =IF(OR(AZ193="-",AZ193=""),"-",COUNTA(AZ$2:AZ193)-COUNTBLANK(AZ$2:AZ193)) -> - | AZ193: =IF(OR(INDEX(Data!A:A,0,1)=0,INDEX(Data!A:A,0,1)="-"),"",INDEX(Data!A:A,0,1)) -> 
AY194: =IF(OR(AZ194="-",AZ194=""),"-",COUNTA(AZ$2:AZ194)-COUNTBLANK(AZ$2:AZ194)) -> - | AZ194: =IF(OR(INDEX(Data!A:A,0,1)=0,INDEX(Data!A:A,0,1)="-"),"",INDEX(Data!A:A,0,1)) -> 
AY195: =IF(OR(AZ195="-",AZ195=""),"-",COUNTA(AZ$2:AZ195)-COUNTBLANK(AZ$2:AZ195)) -> - | AZ195: =IF(OR(INDEX(Data!A:A,0,1)=0,INDEX(Data!A:A,0,1)="-"),"",INDEX(Data!A:A,0,1)) -> 
AY196: =IF(OR(AZ196="-",AZ196=""),"-",COUNTA(AZ$2:AZ196)-COUNTBLANK(AZ$2:AZ196)) -> - | AZ196: =IF(OR(INDEX(Data!A:A,0,1)=0,INDEX(Data!A:A,0,1)="-"),"",INDEX(Data!A:A,0,1)) ->  | DA196: =IF(AND(HD!B2000=0,HD!B3000=0,HD!B4000=0),"LBD-","#") -> LBD-
AY197: =IF(OR(AZ197="-",AZ197=""),"-",COUNTA(AZ$2:AZ197)-COUNTBLANK(AZ$2:AZ197)) -> - | AZ197: =IF(OR(INDEX(Data!A:A,0,1)=0,INDEX(Data!A:A,0,1)="-"),"",INDEX(Data!A:A,0,1)) -> 
AY198: =IF(OR(AZ198="-",AZ198=""),"-",COUNTA(AZ$2:AZ198)-COUNTBLANK(AZ$2:AZ198)) -> - | AZ198: =IF(OR(INDEX(Data!A:A,0,1)=0,INDEX(Data!A:A,0,1)="-"),"",INDEX(Data!A:A,0,1)) -> 
AY199: =IF(OR(AZ199="-",AZ199=""),"-",COUNTA(AZ$2:AZ199)-COUNTBLANK(AZ$2:AZ199)) -> - | AZ199: =IF(OR(INDEX(Data!A:A,0,1)=0,INDEX(Data!A:A,0,1)="-"),"",INDEX(Data!A:A,0,1)) -> 
AY200: =IF(OR(AZ200="-",AZ200=""),"-",COUNTA(AZ$2:AZ200)-COUNTBLANK(AZ$2:AZ200)) -> - | AZ200: =IF(OR(INDEX(Data!A:A,0,1)=0,INDEX(Data!A:A,0,1)="-"),"",INDEX(Data!A:A,0,1)) -> 
AY201: =IF(OR(AZ201="-",AZ201=""),"-",COUNTA(AZ$2:AZ201)-COUNTBLANK(AZ$2:AZ201)) -> - | AZ201: =IF(OR(INDEX(Data!A:A,0,1)=0,INDEX(Data!A:A,0,1)="-"),"",INDEX(Data!A:A,0,1)) -> 
... 300 more rows

Sheet Info
C5: PERUSAHAAN | D5: PT. EXPRESS GEMBOL
C6: TGL LAPORAN 1 | D6: 2015-12-31
C7: TGL LAPORAN 2 | D7: 2016-12-31
C8: TGL LAPORAN 3 | D8: 2017-12-31
C10: USER | D10: info@xclmedia.com
A12: =IF(REG=D10,"Reg: "&REG&" - @copyright: xclmedia.com","Reg: Error - @copyright: xclmedia.com") -> Reg: info@xclmedia.com - @copyright: xclmedia.com

Sheet Data
E1: =Perusahaan -> PT. EXPRESS GEMBOL | K1: Copyright by xclmedia
E2: NERACA
A3: KODE | B3: ARUS KAS | C3: NERACA | E3: POS-POS | H3: =Tanggal_1 -> Per 31-Des-2015 | I3: =Tanggal_2 -> Per 31-Des-2016 | J3: =Tanggal_3 -> Per 31-Des-2017
A4: =IF(B4=BLK,TEXT,IF(B4=KAS,B4,IF(B4=LB_BERSIH,LBS,IF(B4=PENYU,PNY,IF(AND(B4=OPERA,COUNTIF(B$1:B4,B4)<O.O1),OPR_0&COUNTIF(B$1:B4,B4),IF(AND(B4=OPERA,COUNTIF(B$1:B4,B4)>O.O1),OPR_&COUNTIF(B$1:B4,B4),IF(AND(B4=INVES,COUNTIF(B$1:B4,B4)<O.O1),INV_0&COUNTIF(B$1:B4,B4),IF(AND(B4=INVES,COUNTIF(B$1:B4,B4)>O.O1),INV_&COUNTIF(B$1:B4,B4),IF(AND(B4=PENDA,COUNTIF(B$1:B4,B4)<O.O1),DNA_0&COUNTIF(B$1:B4,B4),IF(AND(B4=PENDA,COUNTIF(B$1:B4,B4)>O.O1),DNA_&COUNTIF(B$1:B4,B4),IF(AND(B4=LB_DTAHAN,COUNTIF(B$1:B4,B4)<O.O1),LBD_0&COUNTIF(B$1:B4,B4),IF(AND(B4=LB_DTAHAN,COUNTIF(B$1:B4,B4)>O.O1),LBD_&COUNTIF(B$1:B4,B4),TEXT)))))))))))) -> -
A5: =IF(B5=BLK,TEXT,IF(B5=KAS,B5,IF(B5=LB_BERSIH,LBS,IF(B5=PENYU,PNY,IF(AND(B5=OPERA,COUNTIF(B$1:B5,B5)<O.O1),OPR_0&COUNTIF(B$1:B5,B5),IF(AND(B5=OPERA,COUNTIF(B$1:B5,B5)>O.O1),OPR_&COUNTIF(B$1:B5,B5),IF(AND(B5=INVES,COUNTIF(B$1:B5,B5)<O.O1),INV_0&COUNTIF(B$1:B5,B5),IF(AND(B5=INVES,COUNTIF(B$1:B5,B5)>O.O1),INV_&COUNTIF(B$1:B5,B5),IF(AND(B5=PENDA,COUNTIF(B$1:B5,B5)<O.O1),DNA_0&COUNTIF(B$1:B5,B5),IF(AND(B5=PENDA,COUNTIF(B$1:B5,B5)>O.O1),DNA_&COUNTIF(B$1:B5,B5),IF(AND(B5=LB_DTAHAN,COUNTIF(B$1:B5,B5)<O.O1),LBD_0&COUNTIF(B$1:B5,B5),IF(AND(B5=LB_DTAHAN,COUNTIF(B$1:B5,B5)>O.O1),LBD_&COUNTIF(B$1:B5,B5),TEXT)))))))))))) -> - | F5: ASET
A6: =IF(B6=BLK,TEXT,IF(B6=KAS,B6,IF(B6=LB_BERSIH,LBS,IF(B6=PENYU,PNY,IF(AND(B6=OPERA,COUNTIF(B$1:B6,B6)<O.O1),OPR_0&COUNTIF(B$1:B6,B6),IF(AND(B6=OPERA,COUNTIF(B$1:B6,B6)>O.O1),OPR_&COUNTIF(B$1:B6,B6),IF(AND(B6=INVES,COUNTIF(B$1:B6,B6)<O.O1),INV_0&COUNTIF(B$1:B6,B6),IF(AND(B6=INVES,COUNTIF(B$1:B6,B6)>O.O1),INV_&COUNTIF(B$1:B6,B6),IF(AND(B6=PENDA,COUNTIF(B$1:B6,B6)<O.O1),DNA_0&COUNTIF(B$1:B6,B6),IF(AND(B6=PENDA,COUNTIF(B$1:B6,B6)>O.O1),DNA_&COUNTIF(B$1:B6,B6),IF(AND(B6=LB_DTAHAN,COUNTIF(B$1:B6,B6)<O.O1),LBD_0&COUNTIF(B$1:B6,B6),IF(AND(B6=LB_DTAHAN,COUNTIF(B$1:B6,B6)>O.O1),LBD_&COUNTIF(B$1:B6,B6),TEXT)))))))))))) -> - | F6: ASET LANCAR
A7: =IF(B7=BLK,TEXT,IF(B7=KAS,B7,IF(B7=LB_BERSIH,LBS,IF(B7=PENYU,PNY,IF(AND(B7=OPERA,COUNTIF(B$1:B7,B7)<O.O1),OPR_0&COUNTIF(B$1:B7,B7),IF(AND(B7=OPERA,COUNTIF(B$1:B7,B7)>O.O1),OPR_&COUNTIF(B$1:B7,B7),IF(AND(B7=INVES,COUNTIF(B$1:B7,B7)<O.O1),INV_0&COUNTIF(B$1:B7,B7),IF(AND(B7=INVES,COUNTIF(B$1:B7,B7)>O.O1),INV_&COUNTIF(B$1:B7,B7),IF(AND(B7=PENDA,COUNTIF(B$1:B7,B7)<O.O1),DNA_0&COUNTIF(B$1:B7,B7),IF(AND(B7=PENDA,COUNTIF(B$1:B7,B7)>O.O1),DNA_&COUNTIF(B$1:B7,B7),IF(AND(B7=LB_DTAHAN,COUNTIF(B$1:B7,B7)<O.O1),LBD_0&COUNTIF(B$1:B7,B7),IF(AND(B7=LB_DTAHAN,COUNTIF(B$1:B7,B7)>O.O1),LBD_&COUNTIF(B$1:B7,B7),TEXT)))))))))))) -> KAS | B7: KAS | C7: AKTIVA | F7: Kas & Setara Kas | H7: 540521097 | I7: 844562963 | J7: 1244562963
A8: =IF(B8=BLK,TEXT,IF(B8=KAS,B8,IF(B8=LB_BERSIH,LBS,IF(B8=PENYU,PNY,IF(AND(B8=OPERA,COUNTIF(B$1:B8,B8)<O.O1),OPR_0&COUNTIF(B$1:B8,B8),IF(AND(B8=OPERA,COUNTIF(B$1:B8,B8)>O.O1),OPR_&COUNTIF(B$1:B8,B8),IF(AND(B8=INVES,COUNTIF(B$1:B8,B8)<O.O1),INV_0&COUNTIF(B$1:B8,B8),IF(AND(B8=INVES,COUNTIF(B$1:B8,B8)>O.O1),INV_&COUNTIF(B$1:B8,B8),IF(AND(B8=PENDA,COUNTIF(B$1:B8,B8)<O.O1),DNA_0&COUNTIF(B$1:B8,B8),IF(AND(B8=PENDA,COUNTIF(B$1:B8,B8)>O.O1),DNA_&COUNTIF(B$1:B8,B8),IF(AND(B8=LB_DTAHAN,COUNTIF(B$1:B8,B8)<O.O1),LBD_0&COUNTIF(B$1:B8,B8),IF(AND(B8=LB_DTAHAN,COUNTIF(B$1:B8,B8)>O.O1),LBD_&COUNTIF(B$1:B8,B8),TEXT)))))))))))) -> OPR-01 | B8: OPERASIONAL | C8: AKTIVA | F8: Piutang Usaha | H8: 2315402899 | I8: 2386402450 | J8: 2585402450
A9: =IF(B9=BLK,TEXT,IF(B9=KAS,B9,IF(B9=LB_BERSIH,LBS,IF(B9=PENYU,PNY,IF(AND(B9=OPERA,COUNTIF(B$1:B9,B9)<O.O1),OPR_0&COUNTIF(B$1:B9,B9),IF(AND(B9=OPERA,COUNTIF(B$1:B9,B9)>O.O1),OPR_&COUNTIF(B$1:B9,B9),IF(AND(B9=INVES,COUNTIF(B$1:B9,B9)<O.O1),INV_0&COUNTIF(B$1:B9,B9),IF(AND(B9=INVES,COUNTIF(B$1:B9,B9)>O.O1),INV_&COUNTIF(B$1:B9,B9),IF(AND(B9=PENDA,COUNTIF(B$1:B9,B9)<O.O1),DNA_0&COUNTIF(B$1:B9,B9),IF(AND(B9=PENDA,COUNTIF(B$1:B9,B9)>O.O1),DNA_&COUNTIF(B$1:B9,B9),IF(AND(B9=LB_DTAHAN,COUNTIF(B$1:B9,B9)<O.O1),LBD_0&COUNTIF(B$1:B9,B9),IF(AND(B9=LB_DTAHAN,COUNTIF(B$1:B9,B9)>O.O1),LBD_&COUNTIF(B$1:B9,B9),TEXT)))))))))))) -> OPR-02 | B9: OPERASIONAL | C9: AKTIVA | F9: Piutang Lain-lain | H9: 92500650 | I9: 51875000 | J9: 101875000
A10: =IF(B10=BLK,TEXT,IF(B10=KAS,B10,IF(B10=LB_BERSIH,LBS,IF(B10=PENYU,PNY,IF(AND(B10=OPERA,COUNTIF(B$1:B10,B10)<O.O1),OPR_0&COUNTIF(B$1:B10,B10),IF(AND(B10=OPERA,COUNTIF(B$1:B10,B10)>O.O1),OPR_&COUNTIF(B$1:B10,B10),IF(AND(B10=INVES,COUNTIF(B$1:B10,B10)<O.O1),INV_0&COUNTIF(B$1:B10,B10),IF(AND(B10=INVES,COUNTIF(B$1:B10,B10)>O.O1),INV_&COUNTIF(B$1:B10,B10),IF(AND(B10=PENDA,COUNTIF(B$1:B10,B10)<O.O1),DNA_0&COUNTIF(B$1:B10,B10),IF(AND(B10=PENDA,COUNTIF(B$1:B10,B10)>O.O1),DNA_&COUNTIF(B$1:B10,B10),IF(AND(B10=LB_DTAHAN,COUNTIF(B$1:B10,B10)<O.O1),LBD_0&COUNTIF(B$1:B10,B10),IF(AND(B10=LB_DTAHAN,COUNTIF(B$1:B10,B10)>O.O1),LBD_&COUNTIF(B$1:B10,B10),TEXT)))))))))))) -> OPR-03 | B10: OPERASIONAL | C10: AKTIVA | F10: Persediaan | H10: 3507429049 | I10: 3366894009 | J10: 3766894009
A11: =IF(B11=BLK,TEXT,IF(B11=KAS,B11,IF(B11=LB_BERSIH,LBS,IF(B11=PENYU,PNY,IF(AND(B11=OPERA,COUNTIF(B$1:B11,B11)<O.O1),OPR_0&COUNTIF(B$1:B11,B11),IF(AND(B11=OPERA,COUNTIF(B$1:B11,B11)>O.O1),OPR_&COUNTIF(B$1:B11,B11),IF(AND(B11=INVES,COUNTIF(B$1:B11,B11)<O.O1),INV_0&COUNTIF(B$1:B11,B11),IF(AND(B11=INVES,COUNTIF(B$1:B11,B11)>O.O1),INV_&COUNTIF(B$1:B11,B11),IF(AND(B11=PENDA,COUNTIF(B$1:B11,B11)<O.O1),DNA_0&COUNTIF(B$1:B11,B11),IF(AND(B11=PENDA,COUNTIF(B$1:B11,B11)>O.O1),DNA_&COUNTIF(B$1:B11,B11),IF(AND(B11=LB_DTAHAN,COUNTIF(B$1:B11,B11)<O.O1),LBD_0&COUNTIF(B$1:B11,B11),IF(AND(B11=LB_DTAHAN,COUNTIF(B$1:B11,B11)>O.O1),LBD_&COUNTIF(B$1:B11,B11),TEXT)))))))))))) -> OPR-04 | B11: OPERASIONAL | C11: AKTIVA | F11: Uang Muka Biaya | H11: 467090919.5 | I11: 607737515 | J11: 607737515
A12: =IF(B12=BLK,TEXT,IF(B12=KAS,B12,IF(B12=LB_BERSIH,LBS,IF(B12=PENYU,PNY,IF(AND(B12=OPERA,COUNTIF(B$1:B12,B12)<O.O1),OPR_0&COUNTIF(B$1:B12,B12),IF(AND(B12=OPERA,COUNTIF(B$1:B12,B12)>O.O1),OPR_&COUNTIF(B$1:B12,B12),IF(AND(B12=INVES,COUNTIF(B$1:B12,B12)<O.O1),INV_0&COUNTIF(B$1:B12,B12),IF(AND(B12=INVES,COUNTIF(B$1:B12,B12)>O.O1),INV_&COUNTIF(B$1:B12,B12),IF(AND(B12=PENDA,COUNTIF(B$1:B12,B12)<O.O1),DNA_0&COUNTIF(B$1:B12,B12),IF(AND(B12=PENDA,COUNTIF(B$1:B12,B12)>O.O1),DNA_&COUNTIF(B$1:B12,B12),IF(AND(B12=LB_DTAHAN,COUNTIF(B$1:B12,B12)<O.O1),LBD_0&COUNTIF(B$1:B12,B12),IF(AND(B12=LB_DTAHAN,COUNTIF(B$1:B12,B12)>O.O1),LBD_&COUNTIF(B$1:B12,B12),TEXT)))))))))))) -> OPR-05 | B12: OPERASIONAL | C12: AKTIVA | F12: Uang Muka Pajak | H12: 288637883 | I12: 196506707 | J12: 196506707
A13: =IF(B13=BLK,TEXT,IF(B13=KAS,B13,IF(B13=LB_BERSIH,LBS,IF(B13=PENYU,PNY,IF(AND(B13=OPERA,COUNTIF(B$1:B13,B13)<O.O1),OPR_0&COUNTIF(B$1:B13,B13),IF(AND(B13=OPERA,COUNTIF(B$1:B13,B13)>O.O1),OPR_&COUNTIF(B$1:B13,B13),IF(AND(B13=INVES,COUNTIF(B$1:B13,B13)<O.O1),INV_0&COUNTIF(B$1:B13,B13),IF(AND(B13=INVES,COUNTIF(B$1:B13,B13)>O.O1),INV_&COUNTIF(B$1:B13,B13),IF(AND(B13=PENDA,COUNTIF(B$1:B13,B13)<O.O1),DNA_0&COUNTIF(B$1:B13,B13),IF(AND(B13=PENDA,COUNTIF(B$1:B13,B13)>O.O1),DNA_&COUNTIF(B$1:B13,B13),IF(AND(B13=LB_DTAHAN,COUNTIF(B$1:B13,B13)<O.O1),LBD_0&COUNTIF(B$1:B13,B13),IF(AND(B13=LB_DTAHAN,COUNTIF(B$1:B13,B13)>O.O1),LBD_&COUNTIF(B$1:B13,B13),TEXT)))))))))))) -> - | F13: ASET TETAP
A14: =IF(B14=BLK,TEXT,IF(B14=KAS,B14,IF(B14=LB_BERSIH,LBS,IF(B14=PENYU,PNY,IF(AND(B14=OPERA,COUNTIF(B$1:B14,B14)<O.O1),OPR_0&COUNTIF(B$1:B14,B14),IF(AND(B14=OPERA,COUNTIF(B$1:B14,B14)>O.O1),OPR_&COUNTIF(B$1:B14,B14),IF(AND(B14=INVES,COUNTIF(B$1:B14,B14)<O.O1),INV_0&COUNTIF(B$1:B14,B14),IF(AND(B14=INVES,COUNTIF(B$1:B14,B14)>O.O1),INV_&COUNTIF(B$1:B14,B14),IF(AND(B14=PENDA,COUNTIF(B$1:B14,B14)<O.O1),DNA_0&COUNTIF(B$1:B14,B14),IF(AND(B14=PENDA,COUNTIF(B$1:B14,B14)>O.O1),DNA_&COUNTIF(B$1:B14,B14),IF(AND(B14=LB_DTAHAN,COUNTIF(B$1:B14,B14)<O.O1),LBD_0&COUNTIF(B$1:B14,B14),IF(AND(B14=LB_DTAHAN,COUNTIF(B$1:B14,B14)>O.O1),LBD_&COUNTIF(B$1:B14,B14),TEXT)))))))))))) -> INV-01 | B14: INVESTASI | C14: AKTIVA | F14: Perolehan Aktiva Tetap | H14: 35668384715 | I14: 3.566838472e+10 | J14: 3.566838472e+10
A15: =IF(B15=BLK,TEXT,IF(B15=KAS,B15,IF(B15=LB_BERSIH,LBS,IF(B15=PENYU,PNY,IF(AND(B15=OPERA,COUNTIF(B$1:B15,B15)<O.O1),OPR_0&COUNTIF(B$1:B15,B15),IF(AND(B15=OPERA,COUNTIF(B$1:B15,B15)>O.O1),OPR_&COUNTIF(B$1:B15,B15),IF(AND(B15=INVES,COUNTIF(B$1:B15,B15)<O.O1),INV_0&COUNTIF(B$1:B15,B15),IF(AND(B15=INVES,COUNTIF(B$1:B15,B15)>O.O1),INV_&COUNTIF(B$1:B15,B15),IF(AND(B15=PENDA,COUNTIF(B$1:B15,B15)<O.O1),DNA_0&COUNTIF(B$1:B15,B15),IF(AND(B15=PENDA,COUNTIF(B$1:B15,B15)>O.O1),DNA_&COUNTIF(B$1:B15,B15),IF(AND(B15=LB_DTAHAN,COUNTIF(B$1:B15,B15)<O.O1),LBD_0&COUNTIF(B$1:B15,B15),IF(AND(B15=LB_DTAHAN,COUNTIF(B$1:B15,B15)>O.O1),LBD_&COUNTIF(B$1:B15,B15),TEXT)))))))))))) -> PNY | B15: PENYUSUTAN | C15: AKTIVA | F15: Akumulasi Penyusutan | H15: -4425710157 | I15: -4528660434 | J15: -4631610711
A16: =IF(B16=BLK,TEXT,IF(B16=KAS,B16,IF(B16=LB_BERSIH,LBS,IF(B16=PENYU,PNY,IF(AND(B16=OPERA,COUNTIF(B$1:B16,B16)<O.O1),OPR_0&COUNTIF(B$1:B16,B16),IF(AND(B16=OPERA,COUNTIF(B$1:B16,B16)>O.O1),OPR_&COUNTIF(B$1:B16,B16),IF(AND(B16=INVES,COUNTIF(B$1:B16,B16)<O.O1),INV_0&COUNTIF(B$1:B16,B16),IF(AND(B16=INVES,COUNTIF(B$1:B16,B16)>O.O1),INV_&COUNTIF(B$1:B16,B16),IF(AND(B16=PENDA,COUNTIF(B$1:B16,B16)<O.O1),DNA_0&COUNTIF(B$1:B16,B16),IF(AND(B16=PENDA,COUNTIF(B$1:B16,B16)>O.O1),DNA_&COUNTIF(B$1:B16,B16),IF(AND(B16=LB_DTAHAN,COUNTIF(B$1:B16,B16)<O.O1),LBD_0&COUNTIF(B$1:B16,B16),IF(AND(B16=LB_DTAHAN,COUNTIF(B$1:B16,B16)>O.O1),LBD_&COUNTIF(B$1:B16,B16),TEXT)))))))))))) -> - | F16: ASET LAIN-LAIN
A17: =IF(B17=BLK,TEXT,IF(B17=KAS,B17,IF(B17=LB_BERSIH,LBS,IF(B17=PENYU,PNY,IF(AND(B17=OPERA,COUNTIF(B$1:B17,B17)<O.O1),OPR_0&COUNTIF(B$1:B17,B17),IF(AND(B17=OPERA,COUNTIF(B$1:B17,B17)>O.O1),OPR_&COUNTIF(B$1:B17,B17),IF(AND(B17=INVES,COUNTIF(B$1:B17,B17)<O.O1),INV_0&COUNTIF(B$1:B17,B17),IF(AND(B17=INVES,COUNTIF(B$1:B17,B17)>O.O1),INV_&COUNTIF(B$1:B17,B17),IF(AND(B17=PENDA,COUNTIF(B$1:B17,B17)<O.O1),DNA_0&COUNTIF(B$1:B17,B17),IF(AND(B17=PENDA,COUNTIF(B$1:B17,B17)>O.O1),DNA_&COUNTIF(B$1:B17,B17),IF(AND(B17=LB_DTAHAN,COUNTIF(B$1:B17,B17)<O.O1),LBD_0&COUNTIF(B$1:B17,B17),IF(AND(B17=LB_DTAHAN,COUNTIF(B$1:B17,B17)>O.O1),LBD_&COUNTIF(B$1:B17,B17),TEXT)))))))))))) -> INV-02 | B17: INVESTASI | C17: AKTIVA | F17: Bangunan Dalam Proses | H17: 1100000000 | I17: 1610000000 | J17: 1710000000
A18: =IF(B18=BLK,TEXT,IF(B18=KAS,B18,IF(B18=LB_BERSIH,LBS,IF(B18=PENYU,PNY,IF(AND(B18=OPERA,COUNTIF(B$1:B18,B18)<O.O1),OPR_0&COUNTIF(B$1:B18,B18),IF(AND(B18=OPERA,COUNTIF(B$1:B18,B18)>O.O1),OPR_&COUNTIF(B$1:B18,B18),IF(AND(B18=INVES,COUNTIF(B$1:B18,B18)<O.O1),INV_0&COUNTIF(B$1:B18,B18),IF(AND(B18=INVES,COUNTIF(B$1:B18,B18)>O.O1),INV_&COUNTIF(B$1:B18,B18),IF(AND(B18=PENDA,COUNTIF(B$1:B18,B18)<O.O1),DNA_0&COUNTIF(B$1:B18,B18),IF(AND(B18=PENDA,COUNTIF(B$1:B18,B18)>O.O1),DNA_&COUNTIF(B$1:B18,B18),IF(AND(B18=LB_DTAHAN,COUNTIF(B$1:B18,B18)<O.O1),LBD_0&COUNTIF(B$1:B18,B18),IF(AND(B18=LB_DTAHAN,COUNTIF(B$1:B18,B18)>O.O1),LBD_&COUNTIF(B$1:B18,B18),TEXT)))))))))))) -> OPR-06 | B18: OPERASIONAL | C18: AKTIVA | F18: Beban Ditangguhkan | H18: 127958416 | I18: 113122655.3 | J18: 113122655.3
A19: =IF(B19=BLK,TEXT,IF(B19=KAS,B19,IF(B19=LB_BERSIH,LBS,IF(B19=PENYU,PNY,IF(AND(B19=OPERA,COUNTIF(B$1:B19,B19)<O.O1),OPR_0&COUNTIF(B$1:B19,B19),IF(AND(B19=OPERA,COUNTIF(B$1:B19,B19)>O.O1),OPR_&COUNTIF(B$1:B19,B19),IF(AND(B19=INVES,COUNTIF(B$1:B19,B19)<O.O1),INV_0&COUNTIF(B$1:B19,B19),IF(AND(B19=INVES,COUNTIF(B$1:B19,B19)>O.O1),INV_&COUNTIF(B$1:B19,B19),IF(AND(B19=PENDA,COUNTIF(B$1:B19,B19)<O.O1),DNA_0&COUNTIF(B$1:B19,B19),IF(AND(B19=PENDA,COUNTIF(B$1:B19,B19)>O.O1),DNA_&COUNTIF(B$1:B19,B19),IF(AND(B19=LB_DTAHAN,COUNTIF(B$1:B19,B19)<O.O1),LBD_0&COUNTIF(B$1:B19,B19),IF(AND(B19=LB_DTAHAN,COUNTIF(B$1:B19,B19)>O.O1),LBD_&COUNTIF(B$1:B19,B19),TEXT)))))))))))) -> -
A20: =IF(B20=BLK,TEXT,IF(B20=KAS,B20,IF(B20=LB_BERSIH,LBS,IF(B20=PENYU,PNY,IF(AND(B20=OPERA,COUNTIF(B$1:B20,B20)<O.O1),OPR_0&COUNTIF(B$1:B20,B20),IF(AND(B20=OPERA,COUNTIF(B$1:B20,B20)>O.O1),OPR_&COUNTIF(B$1:B20,B20),IF(AND(B20=INVES,COUNTIF(B$1:B20,B20)<O.O1),INV_0&COUNTIF(B$1:B20,B20),IF(AND(B20=INVES,COUNTIF(B$1:B20,B20)>O.O1),INV_&COUNTIF(B$1:B20,B20),IF(AND(B20=PENDA,COUNTIF(B$1:B20,B20)<O.O1),DNA_0&COUNTIF(B$1:B20,B20),IF(AND(B20=PENDA,COUNTIF(B$1:B20,B20)>O.O1),DNA_&COUNTIF(B$1:B20,B20),IF(AND(B20=LB_DTAHAN,COUNTIF(B$1:B20,B20)<O.O1),LBD_0&COUNTIF(B$1:B20,B20),IF(AND(B20=LB_DTAHAN,COUNTIF(B$1:B20,B20)>O.O1),LBD_&COUNTIF(B$1:B20,B20),TEXT)))))))))))) -> - | F20: Total Aset | H20: =SUM(H4:H19) -> 3.968221547e+10 | I20: =SUM(I4:I19) -> 4.031682558e+10 | J20: =SUM(J4:J19) -> 4.13628753e+10
A21: =IF(B21=BLK,TEXT,IF(B21=KAS,B21,IF(B21=LB_BERSIH,LBS,IF(B21=PENYU,PNY,IF(AND(B21=OPERA,COUNTIF(B$1:B21,B21)<O.O1),OPR_0&COUNTIF(B$1:B21,B21),IF(AND(B21=OPERA,COUNTIF(B$1:B21,B21)>O.O1),OPR_&COUNTIF(B$1:B21,B21),IF(AND(B21=INVES,COUNTIF(B$1:B21,B21)<O.O1),INV_0&COUNTIF(B$1:B21,B21),IF(AND(B21=INVES,COUNTIF(B$1:B21,B21)>O.O1),INV_&COUNTIF(B$1:B21,B21),IF(AND(B21=PENDA,COUNTIF(B$1:B21,B21)<O.O1),DNA_0&COUNTIF(B$1:B21,B21),IF(AND(B21=PENDA,COUNTIF(B$1:B21,B21)>O.O1),DNA_&COUNTIF(B$1:B21,B21),IF(AND(B21=LB_DTAHAN,COUNTIF(B$1:B21,B21)<O.O1),LBD_0&COUNTIF(B$1:B21,B21),IF(AND(B21=LB_DTAHAN,COUNTIF(B$1:B21,B21)>O.O1),LBD_&COUNTIF(B$1:B21,B21),TEXT)))))))))))) -> -
A22: =IF(B22=BLK,TEXT,IF(B22=KAS,B22,IF(B22=LB_BERSIH,LBS,IF(B22=PENYU,PNY,IF(AND(B22=OPERA,COUNTIF(B$1:B22,B22)<O.O1),OPR_0&COUNTIF(B$1:B22,B22),IF(AND(B22=OPERA,COUNTIF(B$1:B22,B22)>O.O1),OPR_&COUNTIF(B$1:B22,B22),IF(AND(B22=INVES,COUNTIF(B$1:B22,B22)<O.O1),INV_0&COUNTIF(B$1:B22,B22),IF(AND(B22=INVES,COUNTIF(B$1:B22,B22)>O.O1),INV_&COUNTIF(B$1:B22,B22),IF(AND(B22=PENDA,COUNTIF(B$1:B22,B22)<O.O1),DNA_0&COUNTIF(B$1:B22,B22),IF(AND(B22=PENDA,COUNTIF(B$1:B22,B22)>O.O1),DNA_&COUNTIF(B$1:B22,B22),IF(AND(B22=LB_DTAHAN,COUNTIF(B$1:B22,B22)<O.O1),LBD_0&COUNTIF(B$1:B22,B22),IF(AND(B22=LB_DTAHAN,COUNTIF(B$1:B22,B22)>O.O1),LBD_&COUNTIF(B$1:B22,B22),TEXT)))))))))))) -> - | F22: KEWAJIBAN
A23: =IF(B23=BLK,TEXT,IF(B23=KAS,B23,IF(B23=LB_BERSIH,LBS,IF(B23=PENYU,PNY,IF(AND(B23=OPERA,COUNTIF(B$1:B23,B23)<O.O1),OPR_0&COUNTIF(B$1:B23,B23),IF(AND(B23=OPERA,COUNTIF(B$1:B23,B23)>O.O1),OPR_&COUNTIF(B$1:B23,B23),IF(AND(B23=INVES,COUNTIF(B$1:B23,B23)<O.O1),INV_0&COUNTIF(B$1:B23,B23),IF(AND(B23=INVES,COUNTIF(B$1:B23,B23)>O.O1),INV_&COUNTIF(B$1:B23,B23),IF(AND(B23=PENDA,COUNTIF(B$1:B23,B23)<O.O1),DNA_0&COUNTIF(B$1:B23,B23),IF(AND(B23=PENDA,COUNTIF(B$1:B23,B23)>O.O1),DNA_&COUNTIF(B$1:B23,B23),IF(AND(B23=LB_DTAHAN,COUNTIF(B$1:B23,B23)<O.O1),LBD_0&COUNTIF(B$1:B23,B23),IF(AND(B23=LB_DTAHAN,COUNTIF(B$1:B23,B23)>O.O1),LBD_&COUNTIF(B$1:B23,B23),TEXT)))))))))))) -> - | F23: KEWAJIBAN LANCAR
A24: =IF(B24=BLK,TEXT,IF(B24=KAS,B24,IF(B24=LB_BERSIH,LBS,IF(B24=PENYU,PNY,IF(AND(B24=OPERA,COUNTIF(B$1:B24,B24)<O.O1),OPR_0&COUNTIF(B$1:B24,B24),IF(AND(B24=OPERA,COUNTIF(B$1:B24,B24)>O.O1),OPR_&COUNTIF(B$1:B24,B24),IF(AND(B24=INVES,COUNTIF(B$1:B24,B24)<O.O1),INV_0&COUNTIF(B$1:B24,B24),IF(AND(B24=INVES,COUNTIF(B$1:B24,B24)>O.O1),INV_&COUNTIF(B$1:B24,B24),IF(AND(B24=PENDA,COUNTIF(B$1:B24,B24)<O.O1),DNA_0&COUNTIF(B$1:B24,B24),IF(AND(B24=PENDA,COUNTIF(B$1:B24,B24)>O.O1),DNA_&COUNTIF(B$1:B24,B24),IF(AND(B24=LB_DTAHAN,COUNTIF(B$1:B24,B24)<O.O1),LBD_0&COUNTIF(B$1:B24,B24),IF(AND(B24=LB_DTAHAN,COUNTIF(B$1:B24,B24)>O.O1),LBD_&COUNTIF(B$1:B24,B24),TEXT)))))))))))) -> OPR-07 | B24: OPERASIONAL | C24: PASIVA | F24: Utang Usaha | H24: 2119950634 | I24: 2237140137 | J24: 2161440137
A25: =IF(B25=BLK,TEXT,IF(B25=KAS,B25,IF(B25=LB_BERSIH,LBS,IF(B25=PENYU,PNY,IF(AND(B25=OPERA,COUNTIF(B$1:B25,B25)<O.O1),OPR_0&COUNTIF(B$1:B25,B25),IF(AND(B25=OPERA,COUNTIF(B$1:B25,B25)>O.O1),OPR_&COUNTIF(B$1:B25,B25),IF(AND(B25=INVES,COUNTIF(B$1:B25,B25)<O.O1),INV_0&COUNTIF(B$1:B25,B25),IF(AND(B25=INVES,COUNTIF(B$1:B25,B25)>O.O1),INV_&COUNTIF(B$1:B25,B25),IF(AND(B25=PENDA,COUNTIF(B$1:B25,B25)<O.O1),DNA_0&COUNTIF(B$1:B25,B25),IF(AND(B25=PENDA,COUNTIF(B$1:B25,B25)>O.O1),DNA_&COUNTIF(B$1:B25,B25),IF(AND(B25=LB_DTAHAN,COUNTIF(B$1:B25,B25)<O.O1),LBD_0&COUNTIF(B$1:B25,B25),IF(AND(B25=LB_DTAHAN,COUNTIF(B$1:B25,B25)>O.O1),LBD_&COUNTIF(B$1:B25,B25),TEXT)))))))))))) -> OPR-08 | B25: OPERASIONAL | C25: PASIVA | F25: Utang Pajak | H25: 72650202 | I25: 83750291 | J25: 82672298.84
A26: =IF(B26=BLK,TEXT,IF(B26=KAS,B26,IF(B26=LB_BERSIH,LBS,IF(B26=PENYU,PNY,IF(AND(B26=OPERA,COUNTIF(B$1:B26,B26)<O.O1),OPR_0&COUNTIF(B$1:B26,B26),IF(AND(B26=OPERA,COUNTIF(B$1:B26,B26)>O.O1),OPR_&COUNTIF(B$1:B26,B26),IF(AND(B26=INVES,COUNTIF(B$1:B26,B26)<O.O1),INV_0&COUNTIF(B$1:B26,B26),IF(AND(B26=INVES,COUNTIF(B$1:B26,B26)>O.O1),INV_&COUNTIF(B$1:B26,B26),IF(AND(B26=PENDA,COUNTIF(B$1:B26,B26)<O.O1),DNA_0&COUNTIF(B$1:B26,B26),IF(AND(B26=PENDA,COUNTIF(B$1:B26,B26)>O.O1),DNA_&COUNTIF(B$1:B26,B26),IF(AND(B26=LB_DTAHAN,COUNTIF(B$1:B26,B26)<O.O1),LBD_0&COUNTIF(B$1:B26,B26),IF(AND(B26=LB_DTAHAN,COUNTIF(B$1:B26,B26)>O.O1),LBD_&COUNTIF(B$1:B26,B26),TEXT)))))))))))) -> OPR-09 | B26: OPERASIONAL | C26: PASIVA | F26: Utang Jangka Pendek Lainnya | H26: 352649102 | I26: 130508468 | J26: 127558191
A27: =IF(B27=BLK,TEXT,IF(B27=KAS,B27,IF(B27=LB_BERSIH,LBS,IF(B27=PENYU,PNY,IF(AND(B27=OPERA,COUNTIF(B$1:B27,B27)<O.O1),OPR_0&COUNTIF(B$1:B27,B27),IF(AND(B27=OPERA,COUNTIF(B$1:B27,B27)>O.O1),OPR_&COUNTIF(B$1:B27,B27),IF(AND(B27=INVES,COUNTIF(B$1:B27,B27)<O.O1),INV_0&COUNTIF(B$1:B27,B27),IF(AND(B27=INVES,COUNTIF(B$1:B27,B27)>O.O1),INV_&COUNTIF(B$1:B27,B27),IF(AND(B27=PENDA,COUNTIF(B$1:B27,B27)<O.O1),DNA_0&COUNTIF(B$1:B27,B27),IF(AND(B27=PENDA,COUNTIF(B$1:B27,B27)>O.O1),DNA_&COUNTIF(B$1:B27,B27),IF(AND(B27=LB_DTAHAN,COUNTIF(B$1:B27,B27)<O.O1),LBD_0&COUNTIF(B$1:B27,B27),IF(AND(B27=LB_DTAHAN,COUNTIF(B$1:B27,B27)>O.O1),LBD_&COUNTIF(B$1:B27,B27),TEXT)))))))))))) -> - | F27: KEWAJIBAN JANGKA PANJANG
A28: =IF(B28=BLK,TEXT,IF(B28=KAS,B28,IF(B28=LB_BERSIH,LBS,IF(B28=PENYU,PNY,IF(AND(B28=OPERA,COUNTIF(B$1:B28,B28)<O.O1),OPR_0&COUNTIF(B$1:B28,B28),IF(AND(B28=OPERA,COUNTIF(B$1:B28,B28)>O.O1),OPR_&COUNTIF(B$1:B28,B28),IF(AND(B28=INVES,COUNTIF(B$1:B28,B28)<O.O1),INV_0&COUNTIF(B$1:B28,B28),IF(AND(B28=INVES,COUNTIF(B$1:B28,B28)>O.O1),INV_&COUNTIF(B$1:B28,B28),IF(AND(B28=PENDA,COUNTIF(B$1:B28,B28)<O.O1),DNA_0&COUNTIF(B$1:B28,B28),IF(AND(B28=PENDA,COUNTIF(B$1:B28,B28)>O.O1),DNA_&COUNTIF(B$1:B28,B28),IF(AND(B28=LB_DTAHAN,COUNTIF(B$1:B28,B28)<O.O1),LBD_0&COUNTIF(B$1:B28,B28),IF(AND(B28=LB_DTAHAN,COUNTIF(B$1:B28,B28)>O.O1),LBD_&COUNTIF(B$1:B28,B28),TEXT)))))))))))) -> DNA-01 | B28: PENDANAAN | C28: PASIVA | F28: Utang Bank | H28: 2179069752 | I28: 1401580140 | J28: 812117578.3
A29: =IF(B29=BLK,TEXT,IF(B29=KAS,B29,IF(B29=LB_BERSIH,LBS,IF(B29=PENYU,PNY,IF(AND(B29=OPERA,COUNTIF(B$1:B29,B29)<O.O1),OPR_0&COUNTIF(B$1:B29,B29),IF(AND(B29=OPERA,COUNTIF(B$1:B29,B29)>O.O1),OPR_&COUNTIF(B$1:B29,B29),IF(AND(B29=INVES,COUNTIF(B$1:B29,B29)<O.O1),INV_0&COUNTIF(B$1:B29,B29),IF(AND(B29=INVES,COUNTIF(B$1:B29,B29)>O.O1),INV_&COUNTIF(B$1:B29,B29),IF(AND(B29=PENDA,COUNTIF(B$1:B29,B29)<O.O1),DNA_0&COUNTIF(B$1:B29,B29),IF(AND(B29=PENDA,COUNTIF(B$1:B29,B29)>O.O1),DNA_&COUNTIF(B$1:B29,B29),IF(AND(B29=LB_DTAHAN,COUNTIF(B$1:B29,B29)<O.O1),LBD_0&COUNTIF(B$1:B29,B29),IF(AND(B29=LB_DTAHAN,COUNTIF(B$1:B29,B29)>O.O1),LBD_&COUNTIF(B$1:B29,B29),TEXT)))))))))))) -> DNA-02 | B29: PENDANAAN | C29: PASIVA | F29: Utang Komisaris | H29: 418538300 | I29: 560610208.4 | J29: 560610208.4
A30: =IF(B30=BLK,TEXT,IF(B30=KAS,B30,IF(B30=LB_BERSIH,LBS,IF(B30=PENYU,PNY,IF(AND(B30=OPERA,COUNTIF(B$1:B30,B30)<O.O1),OPR_0&COUNTIF(B$1:B30,B30),IF(AND(B30=OPERA,COUNTIF(B$1:B30,B30)>O.O1),OPR_&COUNTIF(B$1:B30,B30),IF(AND(B30=INVES,COUNTIF(B$1:B30,B30)<O.O1),INV_0&COUNTIF(B$1:B30,B30),IF(AND(B30=INVES,COUNTIF(B$1:B30,B30)>O.O1),INV_&COUNTIF(B$1:B30,B30),IF(AND(B30=PENDA,COUNTIF(B$1:B30,B30)<O.O1),DNA_0&COUNTIF(B$1:B30,B30),IF(AND(B30=PENDA,COUNTIF(B$1:B30,B30)>O.O1),DNA_&COUNTIF(B$1:B30,B30),IF(AND(B30=LB_DTAHAN,COUNTIF(B$1:B30,B30)<O.O1),LBD_0&COUNTIF(B$1:B30,B30),IF(AND(B30=LB_DTAHAN,COUNTIF(B$1:B30,B30)>O.O1),LBD_&COUNTIF(B$1:B30,B30),TEXT)))))))))))) -> DNA-03 | B30: PENDANAAN | C30: PASIVA | F30: Utang Jangka Panjang Lainnya | H30: 298396400 | I30: 416934700 | J30: 416934700
A31: =IF(B31=BLK,TEXT,IF(B31=KAS,B31,IF(B31=LB_BERSIH,LBS,IF(B31=PENYU,PNY,IF(AND(B31=OPERA,COUNTIF(B$1:B31,B31)<O.O1),OPR_0&COUNTIF(B$1:B31,B31),IF(AND(B31=OPERA,COUNTIF(B$1:B31,B31)>O.O1),OPR_&COUNTIF(B$1:B31,B31),IF(AND(B31=INVES,COUNTIF(B$1:B31,B31)<O.O1),INV_0&COUNTIF(B$1:B31,B31),IF(AND(B31=INVES,COUNTIF(B$1:B31,B31)>O.O1),INV_&COUNTIF(B$1:B31,B31),IF(AND(B31=PENDA,COUNTIF(B$1:B31,B31)<O.O1),DNA_0&COUNTIF(B$1:B31,B31),IF(AND(B31=PENDA,COUNTIF(B$1:B31,B31)>O.O1),DNA_&COUNTIF(B$1:B31,B31),IF(AND(B31=LB_DTAHAN,COUNTIF(B$1:B31,B31)<O.O1),LBD_0&COUNTIF(B$1:B31,B31),IF(AND(B31=LB_DTAHAN,COUNTIF(B$1:B31,B31)>O.O1),LBD_&COUNTIF(B$1:B31,B31),TEXT)))))))))))) -> -
A32: =IF(B32=BLK,TEXT,IF(B32=KAS,B32,IF(B32=LB_BERSIH,LBS,IF(B32=PENYU,PNY,IF(AND(B32=OPERA,COUNTIF(B$1:B32,B32)<O.O1),OPR_0&COUNTIF(B$1:B32,B32),IF(AND(B32=OPERA,COUNTIF(B$1:B32,B32)>O.O1),OPR_&COUNTIF(B$1:B32,B32),IF(AND(B32=INVES,COUNTIF(B$1:B32,B32)<O.O1),INV_0&COUNTIF(B$1:B32,B32),IF(AND(B32=INVES,COUNTIF(B$1:B32,B32)>O.O1),INV_&COUNTIF(B$1:B32,B32),IF(AND(B32=PENDA,COUNTIF(B$1:B32,B32)<O.O1),DNA_0&COUNTIF(B$1:B32,B32),IF(AND(B32=PENDA,COUNTIF(B$1:B32,B32)>O.O1),DNA_&COUNTIF(B$1:B32,B32),IF(AND(B32=LB_DTAHAN,COUNTIF(B$1:B32,B32)<O.O1),LBD_0&COUNTIF(B$1:B32,B32),IF(AND(B32=LB_DTAHAN,COUNTIF(B$1:B32,B32)>O.O1),LBD_&COUNTIF(B$1:B32,B32),TEXT)))))))))))) -> - | F32: Total Kewajiban | H32: =SUM(H21:H31) -> 5441254390 | I32: =SUM(I21:I31) -> 4830523945 | J32: =SUM(J21:J31) -> 4161333114
A33: =IF(B33=BLK,TEXT,IF(B33=KAS,B33,IF(B33=LB_BERSIH,LBS,IF(B33=PENYU,PNY,IF(AND(B33=OPERA,COUNTIF(B$1:B33,B33)<O.O1),OPR_0&COUNTIF(B$1:B33,B33),IF(AND(B33=OPERA,COUNTIF(B$1:B33,B33)>O.O1),OPR_&COUNTIF(B$1:B33,B33),IF(AND(B33=INVES,COUNTIF(B$1:B33,B33)<O.O1),INV_0&COUNTIF(B$1:B33,B33),IF(AND(B33=INVES,COUNTIF(B$1:B33,B33)>O.O1),INV_&COUNTIF(B$1:B33,B33),IF(AND(B33=PENDA,COUNTIF(B$1:B33,B33)<O.O1),DNA_0&COUNTIF(B$1:B33,B33),IF(AND(B33=PENDA,COUNTIF(B$1:B33,B33)>O.O1),DNA_&COUNTIF(B$1:B33,B33),IF(AND(B33=LB_DTAHAN,COUNTIF(B$1:B33,B33)<O.O1),LBD_0&COUNTIF(B$1:B33,B33),IF(AND(B33=LB_DTAHAN,COUNTIF(B$1:B33,B33)>O.O1),LBD_&COUNTIF(B$1:B33,B33),TEXT)))))))))))) -> -
A34: =IF(B34=BLK,TEXT,IF(B34=KAS,B34,IF(B34=LB_BERSIH,LBS,IF(B34=PENYU,PNY,IF(AND(B34=OPERA,COUNTIF(B$1:B34,B34)<O.O1),OPR_0&COUNTIF(B$1:B34,B34),IF(AND(B34=OPERA,COUNTIF(B$1:B34,B34)>O.O1),OPR_&COUNTIF(B$1:B34,B34),IF(AND(B34=INVES,COUNTIF(B$1:B34,B34)<O.O1),INV_0&COUNTIF(B$1:B34,B34),IF(AND(B34=INVES,COUNTIF(B$1:B34,B34)>O.O1),INV_&COUNTIF(B$1:B34,B34),IF(AND(B34=PENDA,COUNTIF(B$1:B34,B34)<O.O1),DNA_0&COUNTIF(B$1:B34,B34),IF(AND(B34=PENDA,COUNTIF(B$1:B34,B34)>O.O1),DNA_&COUNTIF(B$1:B34,B34),IF(AND(B34=LB_DTAHAN,COUNTIF(B$1:B34,B34)<O.O1),LBD_0&COUNTIF(B$1:B34,B34),IF(AND(B34=LB_DTAHAN,COUNTIF(B$1:B34,B34)>O.O1),LBD_&COUNTIF(B$1:B34,B34),TEXT)))))))))))) -> - | F34: EKUITAS
A35: =IF(B35=BLK,TEXT,IF(B35=KAS,B35,IF(B35=LB_BERSIH,LBS,IF(B35=PENYU,PNY,IF(AND(B35=OPERA,COUNTIF(B$1:B35,B35)<O.O1),OPR_0&COUNTIF(B$1:B35,B35),IF(AND(B35=OPERA,COUNTIF(B$1:B35,B35)>O.O1),OPR_&COUNTIF(B$1:B35,B35),IF(AND(B35=INVES,COUNTIF(B$1:B35,B35)<O.O1),INV_0&COUNTIF(B$1:B35,B35),IF(AND(B35=INVES,COUNTIF(B$1:B35,B35)>O.O1),INV_&COUNTIF(B$1:B35,B35),IF(AND(B35=PENDA,COUNTIF(B$1:B35,B35)<O.O1),DNA_0&COUNTIF(B$1:B35,B35),IF(AND(B35=PENDA,COUNTIF(B$1:B35,B35)>O.O1),DNA_&COUNTIF(B$1:B35,B35),IF(AND(B35=LB_DTAHAN,COUNTIF(B$1:B35,B35)<O.O1),LBD_0&COUNTIF(B$1:B35,B35),IF(AND(B35=LB_DTAHAN,COUNTIF(B$1:B35,B35)>O.O1),LBD_&COUNTIF(B$1:B35,B35),TEXT)))))))))))) -> DNA-04 | B35: PENDANAAN | C35: PASIVA | F35: Modal Saham | H35: 32000000000 | I35: 32000000000 | J35: 32000000000
A36: =IF(B36=BLK,TEXT,IF(B36=KAS,B36,IF(B36=LB_BERSIH,LBS,IF(B36=PENYU,PNY,IF(AND(B36=OPERA,COUNTIF(B$1:B36,B36)<O.O1),OPR_0&COUNTIF(B$1:B36,B36),IF(AND(B36=OPERA,COUNTIF(B$1:B36,B36)>O.O1),OPR_&COUNTIF(B$1:B36,B36),IF(AND(B36=INVES,COUNTIF(B$1:B36,B36)<O.O1),INV_0&COUNTIF(B$1:B36,B36),IF(AND(B36=INVES,COUNTIF(B$1:B36,B36)>O.O1),INV_&COUNTIF(B$1:B36,B36),IF(AND(B36=PENDA,COUNTIF(B$1:B36,B36)<O.O1),DNA_0&COUNTIF(B$1:B36,B36),IF(AND(B36=PENDA,COUNTIF(B$1:B36,B36)>O.O1),DNA_&COUNTIF(B$1:B36,B36),IF(AND(B36=LB_DTAHAN,COUNTIF(B$1:B36,B36)<O.O1),LBD_0&COUNTIF(B$1:B36,B36),IF(AND(B36=LB_DTAHAN,COUNTIF(B$1:B36,B36)>O.O1),LBD_&COUNTIF(B$1:B36,B36),TEXT)))))))))))) -> LBD-01 | B36: LABA DITAHAN | C36: PASIVA | F36: Laba Ditahan | H36: 779982674.1 | I36: 2240961081 | J36: 3486301636
A37: =IF(B37=BLK,TEXT,IF(B37=KAS,B37,IF(B37=LB_BERSIH,LBS,IF(B37=PENYU,PNY,IF(AND(B37=OPERA,COUNTIF(B$1:B37,B37)<O.O1),OPR_0&COUNTIF(B$1:B37,B37),IF(AND(B37=OPERA,COUNTIF(B$1:B37,B37)>O.O1),OPR_&COUNTIF(B$1:B37,B37),IF(AND(B37=INVES,COUNTIF(B$1:B37,B37)<O.O1),INV_0&COUNTIF(B$1:B37,B37),IF(AND(B37=INVES,COUNTIF(B$1:B37,B37)>O.O1),INV_&COUNTIF(B$1:B37,B37),IF(AND(B37=PENDA,COUNTIF(B$1:B37,B37)<O.O1),DNA_0&COUNTIF(B$1:B37,B37),IF(AND(B37=PENDA,COUNTIF(B$1:B37,B37)>O.O1),DNA_&COUNTIF(B$1:B37,B37),IF(AND(B37=LB_DTAHAN,COUNTIF(B$1:B37,B37)<O.O1),LBD_0&COUNTIF(B$1:B37,B37),IF(AND(B37=LB_DTAHAN,COUNTIF(B$1:B37,B37)>O.O1),LBD_&COUNTIF(B$1:B37,B37),TEXT)))))))))))) -> LBD-02 | B37: LABA DITAHAN | C37: PASIVA | F37: Laba Bersih | H37: =H73 -> 1460978407 | I37: =I73 -> 1245340554 | J37: =J73 -> 1715240554
A38: =IF(B38=BLK,TEXT,IF(B38=KAS,B38,IF(B38=LB_BERSIH,LBS,IF(B38=PENYU,PNY,IF(AND(B38=OPERA,COUNTIF(B$1:B38,B38)<O.O1),OPR_0&COUNTIF(B$1:B38,B38),IF(AND(B38=OPERA,COUNTIF(B$1:B38,B38)>O.O1),OPR_&COUNTIF(B$1:B38,B38),IF(AND(B38=INVES,COUNTIF(B$1:B38,B38)<O.O1),INV_0&COUNTIF(B$1:B38,B38),IF(AND(B38=INVES,COUNTIF(B$1:B38,B38)>O.O1),INV_&COUNTIF(B$1:B38,B38),IF(AND(B38=PENDA,COUNTIF(B$1:B38,B38)<O.O1),DNA_0&COUNTIF(B$1:B38,B38),IF(AND(B38=PENDA,COUNTIF(B$1:B38,B38)>O.O1),DNA_&COUNTIF(B$1:B38,B38),IF(AND(B38=LB_DTAHAN,COUNTIF(B$1:B38,B38)<O.O1),LBD_0&COUNTIF(B$1:B38,B38),IF(AND(B38=LB_DTAHAN,COUNTIF(B$1:B38,B38)>O.O1),LBD_&COUNTIF(B$1:B38,B38),TEXT)))))))))))) -> -
A39: =IF(B39=BLK,TEXT,IF(B39=KAS,B39,IF(B39=LB_BERSIH,LBS,IF(B39=PENYU,PNY,IF(AND(B39=OPERA,COUNTIF(B$1:B39,B39)<O.O1),OPR_0&COUNTIF(B$1:B39,B39),IF(AND(B39=OPERA,COUNTIF(B$1:B39,B39)>O.O1),OPR_&COUNTIF(B$1:B39,B39),IF(AND(B39=INVES,COUNTIF(B$1:B39,B39)<O.O1),INV_0&COUNTIF(B$1:B39,B39),IF(AND(B39=INVES,COUNTIF(B$1:B39,B39)>O.O1),INV_&COUNTIF(B$1:B39,B39),IF(AND(B39=PENDA,COUNTIF(B$1:B39,B39)<O.O1),DNA_0&COUNTIF(B$1:B39,B39),IF(AND(B39=PENDA,COUNTIF(B$1:B39,B39)>O.O1),DNA_&COUNTIF(B$1:B39,B39),IF(AND(B39=LB_DTAHAN,COUNTIF(B$1:B39,B39)<O.O1),LBD_0&COUNTIF(B$1:B39,B39),IF(AND(B39=LB_DTAHAN,COUNTIF(B$1:B39,B39)>O.O1),LBD_&COUNTIF(B$1:B39,B39),TEXT)))))))))))) -> - | F39: Total Ekuitas | H39: =SUM(H33:H38) -> 3.424096108e+10 | I39: =SUM(I33:I38) -> 3.548630164e+10 | J39: =SUM(J33:J38) -> 3.720154219e+10
A40: =IF(B40=BLK,TEXT,IF(B40=KAS,B40,IF(B40=LB_BERSIH,LBS,IF(B40=PENYU,PNY,IF(AND(B40=OPERA,COUNTIF(B$1:B40,B40)<O.O1),OPR_0&COUNTIF(B$1:B40,B40),IF(AND(B40=OPERA,COUNTIF(B$1:B40,B40)>O.O1),OPR_&COUNTIF(B$1:B40,B40),IF(AND(B40=INVES,COUNTIF(B$1:B40,B40)<O.O1),INV_0&COUNTIF(B$1:B40,B40),IF(AND(B40=INVES,COUNTIF(B$1:B40,B40)>O.O1),INV_&COUNTIF(B$1:B40,B40),IF(AND(B40=PENDA,COUNTIF(B$1:B40,B40)<O.O1),DNA_0&COUNTIF(B$1:B40,B40),IF(AND(B40=PENDA,COUNTIF(B$1:B40,B40)>O.O1),DNA_&COUNTIF(B$1:B40,B40),IF(AND(B40=LB_DTAHAN,COUNTIF(B$1:B40,B40)<O.O1),LBD_0&COUNTIF(B$1:B40,B40),IF(AND(B40=LB_DTAHAN,COUNTIF(B$1:B40,B40)>O.O1),LBD_&COUNTIF(B$1:B40,B40),TEXT)))))))))))) -> - | F40: Total Liabilitas & Ekuitas | H40: =H32+H39 -> 3.968221547e+10 | I40: =I32+I39 -> 4.031682558e+10 | J40: =J32+J39 -> 4.13628753e+10
A41: =IF(B41=BLK,TEXT,IF(B41=KAS,B41,IF(B41=LB_BERSIH,LBS,IF(B41=PENYU,PNY,IF(AND(B41=OPERA,COUNTIF(B$1:B41,B41)<O.O1),OPR_0&COUNTIF(B$1:B41,B41),IF(AND(B41=OPERA,COUNTIF(B$1:B41,B41)>O.O1),OPR_&COUNTIF(B$1:B41,B41),IF(AND(B41=INVES,COUNTIF(B$1:B41,B41)<O.O1),INV_0&COUNTIF(B$1:B41,B41),IF(AND(B41=INVES,COUNTIF(B$1:B41,B41)>O.O1),INV_&COUNTIF(B$1:B41,B41),IF(AND(B41=PENDA,COUNTIF(B$1:B41,B41)<O.O1),DNA_0&COUNTIF(B$1:B41,B41),IF(AND(B41=PENDA,COUNTIF(B$1:B41,B41)>O.O1),DNA_&COUNTIF(B$1:B41,B41),IF(AND(B41=LB_DTAHAN,COUNTIF(B$1:B41,B41)<O.O1),LBD_0&COUNTIF(B$1:B41,B41),IF(AND(B41=LB_DTAHAN,COUNTIF(B$1:B41,B41)>O.O1),LBD_&COUNTIF(B$1:B41,B41),TEXT)))))))))))) -> -
A42: =IF(B42=BLK,TEXT,IF(B42=KAS,B42,IF(B42=LB_BERSIH,LBS,IF(B42=PENYU,PNY,IF(AND(B42=OPERA,COUNTIF(B$1:B42,B42)<O.O1),OPR_0&COUNTIF(B$1:B42,B42),IF(AND(B42=OPERA,COUNTIF(B$1:B42,B42)>O.O1),OPR_&COUNTIF(B$1:B42,B42),IF(AND(B42=INVES,COUNTIF(B$1:B42,B42)<O.O1),INV_0&COUNTIF(B$1:B42,B42),IF(AND(B42=INVES,COUNTIF(B$1:B42,B42)>O.O1),INV_&COUNTIF(B$1:B42,B42),IF(AND(B42=PENDA,COUNTIF(B$1:B42,B42)<O.O1),DNA_0&COUNTIF(B$1:B42,B42),IF(AND(B42=PENDA,COUNTIF(B$1:B42,B42)>O.O1),DNA_&COUNTIF(B$1:B42,B42),IF(AND(B42=LB_DTAHAN,COUNTIF(B$1:B42,B42)<O.O1),LBD_0&COUNTIF(B$1:B42,B42),IF(AND(B42=LB_DTAHAN,COUNTIF(B$1:B42,B42)>O.O1),LBD_&COUNTIF(B$1:B42,B42),TEXT)))))))))))) -> - | G42: Balance | H42: =H20-H40 -> 0 | I42: =I20-I40 -> 0 | J42: =J20-J40 -> 0
A43: =IF(B43=BLK,TEXT,IF(B43=KAS,B43,IF(B43=LB_BERSIH,LBS,IF(B43=PENYU,PNY,IF(AND(B43=OPERA,COUNTIF(B$1:B43,B43)<O.O1),OPR_0&COUNTIF(B$1:B43,B43),IF(AND(B43=OPERA,COUNTIF(B$1:B43,B43)>O.O1),OPR_&COUNTIF(B$1:B43,B43),IF(AND(B43=INVES,COUNTIF(B$1:B43,B43)<O.O1),INV_0&COUNTIF(B$1:B43,B43),IF(AND(B43=INVES,COUNTIF(B$1:B43,B43)>O.O1),INV_&COUNTIF(B$1:B43,B43),IF(AND(B43=PENDA,COUNTIF(B$1:B43,B43)<O.O1),DNA_0&COUNTIF(B$1:B43,B43),IF(AND(B43=PENDA,COUNTIF(B$1:B43,B43)>O.O1),DNA_&COUNTIF(B$1:B43,B43),IF(AND(B43=LB_DTAHAN,COUNTIF(B$1:B43,B43)<O.O1),LBD_0&COUNTIF(B$1:B43,B43),IF(AND(B43=LB_DTAHAN,COUNTIF(B$1:B43,B43)>O.O1),LBD_&COUNTIF(B$1:B43,B43),TEXT)))))))))))) -> -
A44: =IF(B44=BLK,TEXT,IF(B44=KAS,B44,IF(B44=LB_BERSIH,LBS,IF(B44=PENYU,PNY,IF(AND(B44=OPERA,COUNTIF(B$1:B44,B44)<O.O1),OPR_0&COUNTIF(B$1:B44,B44),IF(AND(B44=OPERA,COUNTIF(B$1:B44,B44)>O.O1),OPR_&COUNTIF(B$1:B44,B44),IF(AND(B44=INVES,COUNTIF(B$1:B44,B44)<O.O1),INV_0&COUNTIF(B$1:B44,B44),IF(AND(B44=INVES,COUNTIF(B$1:B44,B44)>O.O1),INV_&COUNTIF(B$1:B44,B44),IF(AND(B44=PENDA,COUNTIF(B$1:B44,B44)<O.O1),DNA_0&COUNTIF(B$1:B44,B44),IF(AND(B44=PENDA,COUNTIF(B$1:B44,B44)>O.O1),DNA_&COUNTIF(B$1:B44,B44),IF(AND(B44=LB_DTAHAN,COUNTIF(B$1:B44,B44)<O.O1),LBD_0&COUNTIF(B$1:B44,B44),IF(AND(B44=LB_DTAHAN,COUNTIF(B$1:B44,B44)>O.O1),LBD_&COUNTIF(B$1:B44,B44),TEXT)))))))))))) -> - | E44: LAPORAN LABA RUGI
A45: =IF(B45=BLK,TEXT,IF(B45=KAS,B45,IF(B45=LB_BERSIH,LBS,IF(B45=PENYU,PNY,IF(AND(B45=OPERA,COUNTIF(B$1:B45,B45)<O.O1),OPR_0&COUNTIF(B$1:B45,B45),IF(AND(B45=OPERA,COUNTIF(B$1:B45,B45)>O.O1),OPR_&COUNTIF(B$1:B45,B45),IF(AND(B45=INVES,COUNTIF(B$1:B45,B45)<O.O1),INV_0&COUNTIF(B$1:B45,B45),IF(AND(B45=INVES,COUNTIF(B$1:B45,B45)>O.O1),INV_&COUNTIF(B$1:B45,B45),IF(AND(B45=PENDA,COUNTIF(B$1:B45,B45)<O.O1),DNA_0&COUNTIF(B$1:B45,B45),IF(AND(B45=PENDA,COUNTIF(B$1:B45,B45)>O.O1),DNA_&COUNTIF(B$1:B45,B45),IF(AND(B45=LB_DTAHAN,COUNTIF(B$1:B45,B45)<O.O1),LBD_0&COUNTIF(B$1:B45,B45),IF(AND(B45=LB_DTAHAN,COUNTIF(B$1:B45,B45)>O.O1),LBD_&COUNTIF(B$1:B45,B45),TEXT)))))))))))) -> - | E45: POS-POS | H45: =Period_1 -> Tahun 2015 | I45: =Period_2 -> Tahun 2016 | J45: =Period_3 -> Tahun 2017
A47: =IF(B47=BLK,TEXT,IF(B47=KAS,B47,IF(B47=LB_BERSIH,LBS,IF(B47=PENYU,PNY,IF(AND(B47=OPERA,COUNTIF(B$1:B47,B47)<O.O1),OPR_0&COUNTIF(B$1:B47,B47),IF(AND(B47=OPERA,COUNTIF(B$1:B47,B47)>O.O1),OPR_&COUNTIF(B$1:B47,B47),IF(AND(B47=INVES,COUNTIF(B$1:B47,B47)<O.O1),INV_0&COUNTIF(B$1:B47,B47),IF(AND(B47=INVES,COUNTIF(B$1:B47,B47)>O.O1),INV_&COUNTIF(B$1:B47,B47),IF(AND(B47=PENDA,COUNTIF(B$1:B47,B47)<O.O1),DNA_0&COUNTIF(B$1:B47,B47),IF(AND(B47=PENDA,COUNTIF(B$1:B47,B47)>O.O1),DNA_&COUNTIF(B$1:B47,B47),IF(AND(B47=LB_DTAHAN,COUNTIF(B$1:B47,B47)<O.O1),LBD_0&COUNTIF(B$1:B47,B47),IF(AND(B47=LB_DTAHAN,COUNTIF(B$1:B47,B47)>O.O1),LBD_&COUNTIF(B$1:B47,B47),TEXT)))))))))))) -> - | F47: Pendapatan
A48: =IF(B48=BLK,TEXT,IF(B48=KAS,B48,IF(B48=LB_BERSIH,LBS,IF(B48=PENYU,PNY,IF(AND(B48=OPERA,COUNTIF(B$1:B48,B48)<O.O1),OPR_0&COUNTIF(B$1:B48,B48),IF(AND(B48=OPERA,COUNTIF(B$1:B48,B48)>O.O1),OPR_&COUNTIF(B$1:B48,B48),IF(AND(B48=INVES,COUNTIF(B$1:B48,B48)<O.O1),INV_0&COUNTIF(B$1:B48,B48),IF(AND(B48=INVES,COUNTIF(B$1:B48,B48)>O.O1),INV_&COUNTIF(B$1:B48,B48),IF(AND(B48=PENDA,COUNTIF(B$1:B48,B48)<O.O1),DNA_0&COUNTIF(B$1:B48,B48),IF(AND(B48=PENDA,COUNTIF(B$1:B48,B48)>O.O1),DNA_&COUNTIF(B$1:B48,B48),IF(AND(B48=LB_DTAHAN,COUNTIF(B$1:B48,B48)<O.O1),LBD_0&COUNTIF(B$1:B48,B48),IF(AND(B48=LB_DTAHAN,COUNTIF(B$1:B48,B48)>O.O1),LBD_&COUNTIF(B$1:B48,B48),TEXT)))))))))))) -> - | F48: Penjualan Barang (Bersih) | H48: 17759974138 | I48: 17204945800 | J48: 18204945800
A49: =IF(B49=BLK,TEXT,IF(B49=KAS,B49,IF(B49=LB_BERSIH,LBS,IF(B49=PENYU,PNY,IF(AND(B49=OPERA,COUNTIF(B$1:B49,B49)<O.O1),OPR_0&COUNTIF(B$1:B49,B49),IF(AND(B49=OPERA,COUNTIF(B$1:B49,B49)>O.O1),OPR_&COUNTIF(B$1:B49,B49),IF(AND(B49=INVES,COUNTIF(B$1:B49,B49)<O.O1),INV_0&COUNTIF(B$1:B49,B49),IF(AND(B49=INVES,COUNTIF(B$1:B49,B49)>O.O1),INV_&COUNTIF(B$1:B49,B49),IF(AND(B49=PENDA,COUNTIF(B$1:B49,B49)<O.O1),DNA_0&COUNTIF(B$1:B49,B49),IF(AND(B49=PENDA,COUNTIF(B$1:B49,B49)>O.O1),DNA_&COUNTIF(B$1:B49,B49),IF(AND(B49=LB_DTAHAN,COUNTIF(B$1:B49,B49)<O.O1),LBD_0&COUNTIF(B$1:B49,B49),IF(AND(B49=LB_DTAHAN,COUNTIF(B$1:B49,B49)>O.O1),LBD_&COUNTIF(B$1:B49,B49),TEXT)))))))))))) -> -
A50: =IF(B50=BLK,TEXT,IF(B50=KAS,B50,IF(B50=LB_BERSIH,LBS,IF(B50=PENYU,PNY,IF(AND(B50=OPERA,COUNTIF(B$1:B50,B50)<O.O1),OPR_0&COUNTIF(B$1:B50,B50),IF(AND(B50=OPERA,COUNTIF(B$1:B50,B50)>O.O1),OPR_&COUNTIF(B$1:B50,B50),IF(AND(B50=INVES,COUNTIF(B$1:B50,B50)<O.O1),INV_0&COUNTIF(B$1:B50,B50),IF(AND(B50=INVES,COUNTIF(B$1:B50,B50)>O.O1),INV_&COUNTIF(B$1:B50,B50),IF(AND(B50=PENDA,COUNTIF(B$1:B50,B50)<O.O1),DNA_0&COUNTIF(B$1:B50,B50),IF(AND(B50=PENDA,COUNTIF(B$1:B50,B50)>O.O1),DNA_&COUNTIF(B$1:B50,B50),IF(AND(B50=LB_DTAHAN,COUNTIF(B$1:B50,B50)<O.O1),LBD_0&COUNTIF(B$1:B50,B50),IF(AND(B50=LB_DTAHAN,COUNTIF(B$1:B50,B50)>O.O1),LBD_&COUNTIF(B$1:B50,B50),TEXT)))))))))))) -> - | F50: Harga Pokok Pendapatan
A51: =IF(B51=BLK,TEXT,IF(B51=KAS,B51,IF(B51=LB_BERSIH,LBS,IF(B51=PENYU,PNY,IF(AND(B51=OPERA,COUNTIF(B$1:B51,B51)<O.O1),OPR_0&COUNTIF(B$1:B51,B51),IF(AND(B51=OPERA,COUNTIF(B$1:B51,B51)>O.O1),OPR_&COUNTIF(B$1:B51,B51),IF(AND(B51=INVES,COUNTIF(B$1:B51,B51)<O.O1),INV_0&COUNTIF(B$1:B51,B51),IF(AND(B51=INVES,COUNTIF(B$1:B51,B51)>O.O1),INV_&COUNTIF(B$1:B51,B51),IF(AND(B51=PENDA,COUNTIF(B$1:B51,B51)<O.O1),DNA_0&COUNTIF(B$1:B51,B51),IF(AND(B51=PENDA,COUNTIF(B$1:B51,B51)>O.O1),DNA_&COUNTIF(B$1:B51,B51),IF(AND(B51=LB_DTAHAN,COUNTIF(B$1:B51,B51)<O.O1),LBD_0&COUNTIF(B$1:B51,B51),IF(AND(B51=LB_DTAHAN,COUNTIF(B$1:B51,B51)>O.O1),LBD_&COUNTIF(B$1:B51,B51),TEXT)))))))))))) -> - | F51: Harga Pokok Penjualan Barang | H51: -1.390504601e+10 | I51: -13316487256 | J51: -13816487256
A52: =IF(B52=BLK,TEXT,IF(B52=KAS,B52,IF(B52=LB_BERSIH,LBS,IF(B52=PENYU,PNY,IF(AND(B52=OPERA,COUNTIF(B$1:B52,B52)<O.O1),OPR_0&COUNTIF(B$1:B52,B52),IF(AND(B52=OPERA,COUNTIF(B$1:B52,B52)>O.O1),OPR_&COUNTIF(B$1:B52,B52),IF(AND(B52=INVES,COUNTIF(B$1:B52,B52)<O.O1),INV_0&COUNTIF(B$1:B52,B52),IF(AND(B52=INVES,COUNTIF(B$1:B52,B52)>O.O1),INV_&COUNTIF(B$1:B52,B52),IF(AND(B52=PENDA,COUNTIF(B$1:B52,B52)<O.O1),DNA_0&COUNTIF(B$1:B52,B52),IF(AND(B52=PENDA,COUNTIF(B$1:B52,B52)>O.O1),DNA_&COUNTIF(B$1:B52,B52),IF(AND(B52=LB_DTAHAN,COUNTIF(B$1:B52,B52)<O.O1),LBD_0&COUNTIF(B$1:B52,B52),IF(AND(B52=LB_DTAHAN,COUNTIF(B$1:B52,B52)>O.O1),LBD_&COUNTIF(B$1:B52,B52),TEXT)))))))))))) -> -
A53: =IF(B53=BLK,TEXT,IF(B53=KAS,B53,IF(B53=LB_BERSIH,LBS,IF(B53=PENYU,PNY,IF(AND(B53=OPERA,COUNTIF(B$1:B53,B53)<O.O1),OPR_0&COUNTIF(B$1:B53,B53),IF(AND(B53=OPERA,COUNTIF(B$1:B53,B53)>O.O1),OPR_&COUNTIF(B$1:B53,B53),IF(AND(B53=INVES,COUNTIF(B$1:B53,B53)<O.O1),INV_0&COUNTIF(B$1:B53,B53),IF(AND(B53=INVES,COUNTIF(B$1:B53,B53)>O.O1),INV_&COUNTIF(B$1:B53,B53),IF(AND(B53=PENDA,COUNTIF(B$1:B53,B53)<O.O1),DNA_0&COUNTIF(B$1:B53,B53),IF(AND(B53=PENDA,COUNTIF(B$1:B53,B53)>O.O1),DNA_&COUNTIF(B$1:B53,B53),IF(AND(B53=LB_DTAHAN,COUNTIF(B$1:B53,B53)<O.O1),LBD_0&COUNTIF(B$1:B53,B53),IF(AND(B53=LB_DTAHAN,COUNTIF(B$1:B53,B53)>O.O1),LBD_&COUNTIF(B$1:B53,B53),TEXT)))))))))))) -> - | F53: Laba Kotor | H53: =+H48+H51 -> 3854928126 | I53: =+I48+I51 -> 3888458544 | J53: =+J48+J51 -> 4388458544
A54: =IF(B54=BLK,TEXT,IF(B54=KAS,B54,IF(B54=LB_BERSIH,LBS,IF(B54=PENYU,PNY,IF(AND(B54=OPERA,COUNTIF(B$1:B54,B54)<O.O1),OPR_0&COUNTIF(B$1:B54,B54),IF(AND(B54=OPERA,COUNTIF(B$1:B54,B54)>O.O1),OPR_&COUNTIF(B$1:B54,B54),IF(AND(B54=INVES,COUNTIF(B$1:B54,B54)<O.O1),INV_0&COUNTIF(B$1:B54,B54),IF(AND(B54=INVES,COUNTIF(B$1:B54,B54)>O.O1),INV_&COUNTIF(B$1:B54,B54),IF(AND(B54=PENDA,COUNTIF(B$1:B54,B54)<O.O1),DNA_0&COUNTIF(B$1:B54,B54),IF(AND(B54=PENDA,COUNTIF(B$1:B54,B54)>O.O1),DNA_&COUNTIF(B$1:B54,B54),IF(AND(B54=LB_DTAHAN,COUNTIF(B$1:B54,B54)<O.O1),LBD_0&COUNTIF(B$1:B54,B54),IF(AND(B54=LB_DTAHAN,COUNTIF(B$1:B54,B54)>O.O1),LBD_&COUNTIF(B$1:B54,B54),TEXT)))))))))))) -> -
A55: =IF(B55=BLK,TEXT,IF(B55=KAS,B55,IF(B55=LB_BERSIH,LBS,IF(B55=PENYU,PNY,IF(AND(B55=OPERA,COUNTIF(B$1:B55,B55)<O.O1),OPR_0&COUNTIF(B$1:B55,B55),IF(AND(B55=OPERA,COUNTIF(B$1:B55,B55)>O.O1),OPR_&COUNTIF(B$1:B55,B55),IF(AND(B55=INVES,COUNTIF(B$1:B55,B55)<O.O1),INV_0&COUNTIF(B$1:B55,B55),IF(AND(B55=INVES,COUNTIF(B$1:B55,B55)>O.O1),INV_&COUNTIF(B$1:B55,B55),IF(AND(B55=PENDA,COUNTIF(B$1:B55,B55)<O.O1),DNA_0&COUNTIF(B$1:B55,B55),IF(AND(B55=PENDA,COUNTIF(B$1:B55,B55)>O.O1),DNA_&COUNTIF(B$1:B55,B55),IF(AND(B55=LB_DTAHAN,COUNTIF(B$1:B55,B55)<O.O1),LBD_0&COUNTIF(B$1:B55,B55),IF(AND(B55=LB_DTAHAN,COUNTIF(B$1:B55,B55)>O.O1),LBD_&COUNTIF(B$1:B55,B55),TEXT)))))))))))) -> - | F55: BEBAN USAHA
A56: =IF(B56=BLK,TEXT,IF(B56=KAS,B56,IF(B56=LB_BERSIH,LBS,IF(B56=PENYU,PNY,IF(AND(B56=OPERA,COUNTIF(B$1:B56,B56)<O.O1),OPR_0&COUNTIF(B$1:B56,B56),IF(AND(B56=OPERA,COUNTIF(B$1:B56,B56)>O.O1),OPR_&COUNTIF(B$1:B56,B56),IF(AND(B56=INVES,COUNTIF(B$1:B56,B56)<O.O1),INV_0&COUNTIF(B$1:B56,B56),IF(AND(B56=INVES,COUNTIF(B$1:B56,B56)>O.O1),INV_&COUNTIF(B$1:B56,B56),IF(AND(B56=PENDA,COUNTIF(B$1:B56,B56)<O.O1),DNA_0&COUNTIF(B$1:B56,B56),IF(AND(B56=PENDA,COUNTIF(B$1:B56,B56)>O.O1),DNA_&COUNTIF(B$1:B56,B56),IF(AND(B56=LB_DTAHAN,COUNTIF(B$1:B56,B56)<O.O1),LBD_0&COUNTIF(B$1:B56,B56),IF(AND(B56=LB_DTAHAN,COUNTIF(B$1:B56,B56)>O.O1),LBD_&COUNTIF(B$1:B56,B56),TEXT)))))))))))) -> - | F56: Beban Pegawai | H56: 796982205 | I56: 778259724.2 | J56: 888259724.2
A57: =IF(B57=BLK,TEXT,IF(B57=KAS,B57,IF(B57=LB_BERSIH,LBS,IF(B57=PENYU,PNY,IF(AND(B57=OPERA,COUNTIF(B$1:B57,B57)<O.O1),OPR_0&COUNTIF(B$1:B57,B57),IF(AND(B57=OPERA,COUNTIF(B$1:B57,B57)>O.O1),OPR_&COUNTIF(B$1:B57,B57),IF(AND(B57=INVES,COUNTIF(B$1:B57,B57)<O.O1),INV_0&COUNTIF(B$1:B57,B57),IF(AND(B57=INVES,COUNTIF(B$1:B57,B57)>O.O1),INV_&COUNTIF(B$1:B57,B57),IF(AND(B57=PENDA,COUNTIF(B$1:B57,B57)<O.O1),DNA_0&COUNTIF(B$1:B57,B57),IF(AND(B57=PENDA,COUNTIF(B$1:B57,B57)>O.O1),DNA_&COUNTIF(B$1:B57,B57),IF(AND(B57=LB_DTAHAN,COUNTIF(B$1:B57,B57)<O.O1),LBD_0&COUNTIF(B$1:B57,B57),IF(AND(B57=LB_DTAHAN,COUNTIF(B$1:B57,B57)>O.O1),LBD_&COUNTIF(B$1:B57,B57),TEXT)))))))))))) -> - | F57: Beban Administrasi & Umum | H57: 1349898723 | I57: 1321815002 | J57: 1371815002
A58: =IF(B58=BLK,TEXT,IF(B58=KAS,B58,IF(B58=LB_BERSIH,LBS,IF(B58=PENYU,PNY,IF(AND(B58=OPERA,COUNTIF(B$1:B58,B58)<O.O1),OPR_0&COUNTIF(B$1:B58,B58),IF(AND(B58=OPERA,COUNTIF(B$1:B58,B58)>O.O1),OPR_&COUNTIF(B$1:B58,B58),IF(AND(B58=INVES,COUNTIF(B$1:B58,B58)<O.O1),INV_0&COUNTIF(B$1:B58,B58),IF(AND(B58=INVES,COUNTIF(B$1:B58,B58)>O.O1),INV_&COUNTIF(B$1:B58,B58),IF(AND(B58=PENDA,COUNTIF(B$1:B58,B58)<O.O1),DNA_0&COUNTIF(B$1:B58,B58),IF(AND(B58=PENDA,COUNTIF(B$1:B58,B58)>O.O1),DNA_&COUNTIF(B$1:B58,B58),IF(AND(B58=LB_DTAHAN,COUNTIF(B$1:B58,B58)<O.O1),LBD_0&COUNTIF(B$1:B58,B58),IF(AND(B58=LB_DTAHAN,COUNTIF(B$1:B58,B58)>O.O1),LBD_&COUNTIF(B$1:B58,B58),TEXT)))))))))))) -> - | F58: Beban Penyusutan | H58: 102950277 | I58: 102950277 | J58: 102950277
A59: =IF(B59=BLK,TEXT,IF(B59=KAS,B59,IF(B59=LB_BERSIH,LBS,IF(B59=PENYU,PNY,IF(AND(B59=OPERA,COUNTIF(B$1:B59,B59)<O.O1),OPR_0&COUNTIF(B$1:B59,B59),IF(AND(B59=OPERA,COUNTIF(B$1:B59,B59)>O.O1),OPR_&COUNTIF(B$1:B59,B59),IF(AND(B59=INVES,COUNTIF(B$1:B59,B59)<O.O1),INV_0&COUNTIF(B$1:B59,B59),IF(AND(B59=INVES,COUNTIF(B$1:B59,B59)>O.O1),INV_&COUNTIF(B$1:B59,B59),IF(AND(B59=PENDA,COUNTIF(B$1:B59,B59)<O.O1),DNA_0&COUNTIF(B$1:B59,B59),IF(AND(B59=PENDA,COUNTIF(B$1:B59,B59)>O.O1),DNA_&COUNTIF(B$1:B59,B59),IF(AND(B59=LB_DTAHAN,COUNTIF(B$1:B59,B59)<O.O1),LBD_0&COUNTIF(B$1:B59,B59),IF(AND(B59=LB_DTAHAN,COUNTIF(B$1:B59,B59)>O.O1),LBD_&COUNTIF(B$1:B59,B59),TEXT)))))))))))) -> -
A60: =IF(B60=BLK,TEXT,IF(B60=KAS,B60,IF(B60=LB_BERSIH,LBS,IF(B60=PENYU,PNY,IF(AND(B60=OPERA,COUNTIF(B$1:B60,B60)<O.O1),OPR_0&COUNTIF(B$1:B60,B60),IF(AND(B60=OPERA,COUNTIF(B$1:B60,B60)>O.O1),OPR_&COUNTIF(B$1:B60,B60),IF(AND(B60=INVES,COUNTIF(B$1:B60,B60)<O.O1),INV_0&COUNTIF(B$1:B60,B60),IF(AND(B60=INVES,COUNTIF(B$1:B60,B60)>O.O1),INV_&COUNTIF(B$1:B60,B60),IF(AND(B60=PENDA,COUNTIF(B$1:B60,B60)<O.O1),DNA_0&COUNTIF(B$1:B60,B60),IF(AND(B60=PENDA,COUNTIF(B$1:B60,B60)>O.O1),DNA_&COUNTIF(B$1:B60,B60),IF(AND(B60=LB_DTAHAN,COUNTIF(B$1:B60,B60)<O.O1),LBD_0&COUNTIF(B$1:B60,B60),IF(AND(B60=LB_DTAHAN,COUNTIF(B$1:B60,B60)>O.O1),LBD_&COUNTIF(B$1:B60,B60),TEXT)))))))))))) -> - | F60: Jumlah Beban Usaha | H60: =SUM(H56:H59) -> 2249831205 | I60: =SUM(I56:I59) -> 2203025003 | J60: =SUM(J56:J59) -> 2363025003
A61: =IF(B61=BLK,TEXT,IF(B61=KAS,B61,IF(B61=LB_BERSIH,LBS,IF(B61=PENYU,PNY,IF(AND(B61=OPERA,COUNTIF(B$1:B61,B61)<O.O1),OPR_0&COUNTIF(B$1:B61,B61),IF(AND(B61=OPERA,COUNTIF(B$1:B61,B61)>O.O1),OPR_&COUNTIF(B$1:B61,B61),IF(AND(B61=INVES,COUNTIF(B$1:B61,B61)<O.O1),INV_0&COUNTIF(B$1:B61,B61),IF(AND(B61=INVES,COUNTIF(B$1:B61,B61)>O.O1),INV_&COUNTIF(B$1:B61,B61),IF(AND(B61=PENDA,COUNTIF(B$1:B61,B61)<O.O1),DNA_0&COUNTIF(B$1:B61,B61),IF(AND(B61=PENDA,COUNTIF(B$1:B61,B61)>O.O1),DNA_&COUNTIF(B$1:B61,B61),IF(AND(B61=LB_DTAHAN,COUNTIF(B$1:B61,B61)<O.O1),LBD_0&COUNTIF(B$1:B61,B61),IF(AND(B61=LB_DTAHAN,COUNTIF(B$1:B61,B61)>O.O1),LBD_&COUNTIF(B$1:B61,B61),TEXT)))))))))))) -> - | F61: Laba Bersih Usaha | H61: =H53-H60 -> 1605096921 | I61: =I53-I60 -> 1685433541 | J61: =J53-J60 -> 2025433541
A62: =IF(B62=BLK,TEXT,IF(B62=KAS,B62,IF(B62=LB_BERSIH,LBS,IF(B62=PENYU,PNY,IF(AND(B62=OPERA,COUNTIF(B$1:B62,B62)<O.O1),OPR_0&COUNTIF(B$1:B62,B62),IF(AND(B62=OPERA,COUNTIF(B$1:B62,B62)>O.O1),OPR_&COUNTIF(B$1:B62,B62),IF(AND(B62=INVES,COUNTIF(B$1:B62,B62)<O.O1),INV_0&COUNTIF(B$1:B62,B62),IF(AND(B62=INVES,COUNTIF(B$1:B62,B62)>O.O1),INV_&COUNTIF(B$1:B62,B62),IF(AND(B62=PENDA,COUNTIF(B$1:B62,B62)<O.O1),DNA_0&COUNTIF(B$1:B62,B62),IF(AND(B62=PENDA,COUNTIF(B$1:B62,B62)>O.O1),DNA_&COUNTIF(B$1:B62,B62),IF(AND(B62=LB_DTAHAN,COUNTIF(B$1:B62,B62)<O.O1),LBD_0&COUNTIF(B$1:B62,B62),IF(AND(B62=LB_DTAHAN,COUNTIF(B$1:B62,B62)>O.O1),LBD_&COUNTIF(B$1:B62,B62),TEXT)))))))))))) -> -
A63: =IF(B63=BLK,TEXT,IF(B63=KAS,B63,IF(B63=LB_BERSIH,LBS,IF(B63=PENYU,PNY,IF(AND(B63=OPERA,COUNTIF(B$1:B63,B63)<O.O1),OPR_0&COUNTIF(B$1:B63,B63),IF(AND(B63=OPERA,COUNTIF(B$1:B63,B63)>O.O1),OPR_&COUNTIF(B$1:B63,B63),IF(AND(B63=INVES,COUNTIF(B$1:B63,B63)<O.O1),INV_0&COUNTIF(B$1:B63,B63),IF(AND(B63=INVES,COUNTIF(B$1:B63,B63)>O.O1),INV_&COUNTIF(B$1:B63,B63),IF(AND(B63=PENDA,COUNTIF(B$1:B63,B63)<O.O1),DNA_0&COUNTIF(B$1:B63,B63),IF(AND(B63=PENDA,COUNTIF(B$1:B63,B63)>O.O1),DNA_&COUNTIF(B$1:B63,B63),IF(AND(B63=LB_DTAHAN,COUNTIF(B$1:B63,B63)<O.O1),LBD_0&COUNTIF(B$1:B63,B63),IF(AND(B63=LB_DTAHAN,COUNTIF(B$1:B63,B63)>O.O1),LBD_&COUNTIF(B$1:B63,B63),TEXT)))))))))))) -> - | F63: BEBAN (PENDAPATAN) LUAR USAHA
A64: =IF(B64=BLK,TEXT,IF(B64=KAS,B64,IF(B64=LB_BERSIH,LBS,IF(B64=PENYU,PNY,IF(AND(B64=OPERA,COUNTIF(B$1:B64,B64)<O.O1),OPR_0&COUNTIF(B$1:B64,B64),IF(AND(B64=OPERA,COUNTIF(B$1:B64,B64)>O.O1),OPR_&COUNTIF(B$1:B64,B64),IF(AND(B64=INVES,COUNTIF(B$1:B64,B64)<O.O1),INV_0&COUNTIF(B$1:B64,B64),IF(AND(B64=INVES,COUNTIF(B$1:B64,B64)>O.O1),INV_&COUNTIF(B$1:B64,B64),IF(AND(B64=PENDA,COUNTIF(B$1:B64,B64)<O.O1),DNA_0&COUNTIF(B$1:B64,B64),IF(AND(B64=PENDA,COUNTIF(B$1:B64,B64)>O.O1),DNA_&COUNTIF(B$1:B64,B64),IF(AND(B64=LB_DTAHAN,COUNTIF(B$1:B64,B64)<O.O1),LBD_0&COUNTIF(B$1:B64,B64),IF(AND(B64=LB_DTAHAN,COUNTIF(B$1:B64,B64)>O.O1),LBD_&COUNTIF(B$1:B64,B64),TEXT)))))))))))) -> - | F64: Beban Lain Diluar Usaha | H64: 113832104 | I64: 24959327 | J64: 100959327
A65: =IF(B65=BLK,TEXT,IF(B65=KAS,B65,IF(B65=LB_BERSIH,LBS,IF(B65=PENYU,PNY,IF(AND(B65=OPERA,COUNTIF(B$1:B65,B65)<O.O1),OPR_0&COUNTIF(B$1:B65,B65),IF(AND(B65=OPERA,COUNTIF(B$1:B65,B65)>O.O1),OPR_&COUNTIF(B$1:B65,B65),IF(AND(B65=INVES,COUNTIF(B$1:B65,B65)<O.O1),INV_0&COUNTIF(B$1:B65,B65),IF(AND(B65=INVES,COUNTIF(B$1:B65,B65)>O.O1),INV_&COUNTIF(B$1:B65,B65),IF(AND(B65=PENDA,COUNTIF(B$1:B65,B65)<O.O1),DNA_0&COUNTIF(B$1:B65,B65),IF(AND(B65=PENDA,COUNTIF(B$1:B65,B65)>O.O1),DNA_&COUNTIF(B$1:B65,B65),IF(AND(B65=LB_DTAHAN,COUNTIF(B$1:B65,B65)<O.O1),LBD_0&COUNTIF(B$1:B65,B65),IF(AND(B65=LB_DTAHAN,COUNTIF(B$1:B65,B65)>O.O1),LBD_&COUNTIF(B$1:B65,B65),TEXT)))))))))))) -> - | F65: Pendapatan Lain Diluar Usaha | H65: -114712967 | I65: -369954759 | J65: -261054759
A66: =IF(B66=BLK,TEXT,IF(B66=KAS,B66,IF(B66=LB_BERSIH,LBS,IF(B66=PENYU,PNY,IF(AND(B66=OPERA,COUNTIF(B$1:B66,B66)<O.O1),OPR_0&COUNTIF(B$1:B66,B66),IF(AND(B66=OPERA,COUNTIF(B$1:B66,B66)>O.O1),OPR_&COUNTIF(B$1:B66,B66),IF(AND(B66=INVES,COUNTIF(B$1:B66,B66)<O.O1),INV_0&COUNTIF(B$1:B66,B66),IF(AND(B66=INVES,COUNTIF(B$1:B66,B66)>O.O1),INV_&COUNTIF(B$1:B66,B66),IF(AND(B66=PENDA,COUNTIF(B$1:B66,B66)<O.O1),DNA_0&COUNTIF(B$1:B66,B66),IF(AND(B66=PENDA,COUNTIF(B$1:B66,B66)>O.O1),DNA_&COUNTIF(B$1:B66,B66),IF(AND(B66=LB_DTAHAN,COUNTIF(B$1:B66,B66)<O.O1),LBD_0&COUNTIF(B$1:B66,B66),IF(AND(B66=LB_DTAHAN,COUNTIF(B$1:B66,B66)>O.O1),LBD_&COUNTIF(B$1:B66,B66),TEXT)))))))))))) -> -
A67: =IF(B67=BLK,TEXT,IF(B67=KAS,B67,IF(B67=LB_BERSIH,LBS,IF(B67=PENYU,PNY,IF(AND(B67=OPERA,COUNTIF(B$1:B67,B67)<O.O1),OPR_0&COUNTIF(B$1:B67,B67),IF(AND(B67=OPERA,COUNTIF(B$1:B67,B67)>O.O1),OPR_&COUNTIF(B$1:B67,B67),IF(AND(B67=INVES,COUNTIF(B$1:B67,B67)<O.O1),INV_0&COUNTIF(B$1:B67,B67),IF(AND(B67=INVES,COUNTIF(B$1:B67,B67)>O.O1),INV_&COUNTIF(B$1:B67,B67),IF(AND(B67=PENDA,COUNTIF(B$1:B67,B67)<O.O1),DNA_0&COUNTIF(B$1:B67,B67),IF(AND(B67=PENDA,COUNTIF(B$1:B67,B67)>O.O1),DNA_&COUNTIF(B$1:B67,B67),IF(AND(B67=LB_DTAHAN,COUNTIF(B$1:B67,B67)<O.O1),LBD_0&COUNTIF(B$1:B67,B67),IF(AND(B67=LB_DTAHAN,COUNTIF(B$1:B67,B67)>O.O1),LBD_&COUNTIF(B$1:B67,B67),TEXT)))))))))))) -> - | F67: Jumlah Beban (Pendapatan) Diluar Usaha | H67: =SUM(H64:H66) -> -880863 | I67: =SUM(I64:I66) -> -344995432 | J67: =SUM(J64:J66) -> -160095432
A68: =IF(B68=BLK,TEXT,IF(B68=KAS,B68,IF(B68=LB_BERSIH,LBS,IF(B68=PENYU,PNY,IF(AND(B68=OPERA,COUNTIF(B$1:B68,B68)<O.O1),OPR_0&COUNTIF(B$1:B68,B68),IF(AND(B68=OPERA,COUNTIF(B$1:B68,B68)>O.O1),OPR_&COUNTIF(B$1:B68,B68),IF(AND(B68=INVES,COUNTIF(B$1:B68,B68)<O.O1),INV_0&COUNTIF(B$1:B68,B68),IF(AND(B68=INVES,COUNTIF(B$1:B68,B68)>O.O1),INV_&COUNTIF(B$1:B68,B68),IF(AND(B68=PENDA,COUNTIF(B$1:B68,B68)<O.O1),DNA_0&COUNTIF(B$1:B68,B68),IF(AND(B68=PENDA,COUNTIF(B$1:B68,B68)>O.O1),DNA_&COUNTIF(B$1:B68,B68),IF(AND(B68=LB_DTAHAN,COUNTIF(B$1:B68,B68)<O.O1),LBD_0&COUNTIF(B$1:B68,B68),IF(AND(B68=LB_DTAHAN,COUNTIF(B$1:B68,B68)>O.O1),LBD_&COUNTIF(B$1:B68,B68),TEXT)))))))))))) -> - | F68: Laba Bersih Sebelum Pajak | H68: =H61+H67 -> 1604216058 | I68: =I61+I67 -> 1340438109 | J68: =J61+J67 -> 1865338109
A69: =IF(B69=BLK,TEXT,IF(B69=KAS,B69,IF(B69=LB_BERSIH,LBS,IF(B69=PENYU,PNY,IF(AND(B69=OPERA,COUNTIF(B$1:B69,B69)<O.O1),OPR_0&COUNTIF(B$1:B69,B69),IF(AND(B69=OPERA,COUNTIF(B$1:B69,B69)>O.O1),OPR_&COUNTIF(B$1:B69,B69),IF(AND(B69=INVES,COUNTIF(B$1:B69,B69)<O.O1),INV_0&COUNTIF(B$1:B69,B69),IF(AND(B69=INVES,COUNTIF(B$1:B69,B69)>O.O1),INV_&COUNTIF(B$1:B69,B69),IF(AND(B69=PENDA,COUNTIF(B$1:B69,B69)<O.O1),DNA_0&COUNTIF(B$1:B69,B69),IF(AND(B69=PENDA,COUNTIF(B$1:B69,B69)>O.O1),DNA_&COUNTIF(B$1:B69,B69),IF(AND(B69=LB_DTAHAN,COUNTIF(B$1:B69,B69)<O.O1),LBD_0&COUNTIF(B$1:B69,B69),IF(AND(B69=LB_DTAHAN,COUNTIF(B$1:B69,B69)>O.O1),LBD_&COUNTIF(B$1:B69,B69),TEXT)))))))))))) -> -
A70: =IF(B70=BLK,TEXT,IF(B70=KAS,B70,IF(B70=LB_BERSIH,LBS,IF(B70=PENYU,PNY,IF(AND(B70=OPERA,COUNTIF(B$1:B70,B70)<O.O1),OPR_0&COUNTIF(B$1:B70,B70),IF(AND(B70=OPERA,COUNTIF(B$1:B70,B70)>O.O1),OPR_&COUNTIF(B$1:B70,B70),IF(AND(B70=INVES,COUNTIF(B$1:B70,B70)<O.O1),INV_0&COUNTIF(B$1:B70,B70),IF(AND(B70=INVES,COUNTIF(B$1:B70,B70)>O.O1),INV_&COUNTIF(B$1:B70,B70),IF(AND(B70=PENDA,COUNTIF(B$1:B70,B70)<O.O1),DNA_0&COUNTIF(B$1:B70,B70),IF(AND(B70=PENDA,COUNTIF(B$1:B70,B70)>O.O1),DNA_&COUNTIF(B$1:B70,B70),IF(AND(B70=LB_DTAHAN,COUNTIF(B$1:B70,B70)<O.O1),LBD_0&COUNTIF(B$1:B70,B70),IF(AND(B70=LB_DTAHAN,COUNTIF(B$1:B70,B70)>O.O1),LBD_&COUNTIF(B$1:B70,B70),TEXT)))))))))))) -> - | F70: PAJAK BADAN
A71: =IF(B71=BLK,TEXT,IF(B71=KAS,B71,IF(B71=LB_BERSIH,LBS,IF(B71=PENYU,PNY,IF(AND(B71=OPERA,COUNTIF(B$1:B71,B71)<O.O1),OPR_0&COUNTIF(B$1:B71,B71),IF(AND(B71=OPERA,COUNTIF(B$1:B71,B71)>O.O1),OPR_&COUNTIF(B$1:B71,B71),IF(AND(B71=INVES,COUNTIF(B$1:B71,B71)<O.O1),INV_0&COUNTIF(B$1:B71,B71),IF(AND(B71=INVES,COUNTIF(B$1:B71,B71)>O.O1),INV_&COUNTIF(B$1:B71,B71),IF(AND(B71=PENDA,COUNTIF(B$1:B71,B71)<O.O1),DNA_0&COUNTIF(B$1:B71,B71),IF(AND(B71=PENDA,COUNTIF(B$1:B71,B71)>O.O1),DNA_&COUNTIF(B$1:B71,B71),IF(AND(B71=LB_DTAHAN,COUNTIF(B$1:B71,B71)<O.O1),LBD_0&COUNTIF(B$1:B71,B71),IF(AND(B71=LB_DTAHAN,COUNTIF(B$1:B71,B71)>O.O1),LBD_&COUNTIF(B$1:B71,B71),TEXT)))))))))))) -> - | F71: Pajak Badan PPh 25 | H71: 143237650.5 | I71: 95097554.68 | J71: 150097554.7
A72: =IF(B72=BLK,TEXT,IF(B72=KAS,B72,IF(B72=LB_BERSIH,LBS,IF(B72=PENYU,PNY,IF(AND(B72=OPERA,COUNTIF(B$1:B72,B72)<O.O1),OPR_0&COUNTIF(B$1:B72,B72),IF(AND(B72=OPERA,COUNTIF(B$1:B72,B72)>O.O1),OPR_&COUNTIF(B$1:B72,B72),IF(AND(B72=INVES,COUNTIF(B$1:B72,B72)<O.O1),INV_0&COUNTIF(B$1:B72,B72),IF(AND(B72=INVES,COUNTIF(B$1:B72,B72)>O.O1),INV_&COUNTIF(B$1:B72,B72),IF(AND(B72=PENDA,COUNTIF(B$1:B72,B72)<O.O1),DNA_0&COUNTIF(B$1:B72,B72),IF(AND(B72=PENDA,COUNTIF(B$1:B72,B72)>O.O1),DNA_&COUNTIF(B$1:B72,B72),IF(AND(B72=LB_DTAHAN,COUNTIF(B$1:B72,B72)<O.O1),LBD_0&COUNTIF(B$1:B72,B72),IF(AND(B72=LB_DTAHAN,COUNTIF(B$1:B72,B72)>O.O1),LBD_&COUNTIF(B$1:B72,B72),TEXT)))))))))))) -> -
A73: =IF(B73=BLK,TEXT,IF(B73=KAS,B73,IF(B73=LB_BERSIH,LBS,IF(B73=PENYU,PNY,IF(AND(B73=OPERA,COUNTIF(B$1:B73,B73)<O.O1),OPR_0&COUNTIF(B$1:B73,B73),IF(AND(B73=OPERA,COUNTIF(B$1:B73,B73)>O.O1),OPR_&COUNTIF(B$1:B73,B73),IF(AND(B73=INVES,COUNTIF(B$1:B73,B73)<O.O1),INV_0&COUNTIF(B$1:B73,B73),IF(AND(B73=INVES,COUNTIF(B$1:B73,B73)>O.O1),INV_&COUNTIF(B$1:B73,B73),IF(AND(B73=PENDA,COUNTIF(B$1:B73,B73)<O.O1),DNA_0&COUNTIF(B$1:B73,B73),IF(AND(B73=PENDA,COUNTIF(B$1:B73,B73)>O.O1),DNA_&COUNTIF(B$1:B73,B73),IF(AND(B73=LB_DTAHAN,COUNTIF(B$1:B73,B73)<O.O1),LBD_0&COUNTIF(B$1:B73,B73),IF(AND(B73=LB_DTAHAN,COUNTIF(B$1:B73,B73)>O.O1),LBD_&COUNTIF(B$1:B73,B73),TEXT)))))))))))) -> LBS | B73: LABA BERSIH | F73: Laba Bersih Setelah Pajak | H73: =H68-H71 -> 1460978407 | I73: =I68-I71 -> 1245340554 | J73: 1715240554

Sheet Arus Kas
E3: =Perusahaan -> PT. EXPRESS GEMBOL | R3: =Perusahaan -> PT. EXPRESS GEMBOL
E4: LAPORAN ARUS KAS (TIDAK LANGSUNG) | R4: LAPORAN ARUS KAS (TIDAK LANGSUNG)
A5: KODE | E5: =Periode_1 -> Periode 31-Des-2015 s/d 31-Des-2016 | R5: =Periode_2 -> Periode 31-Des-2016 s/d 31-Des-2017
E8: 1. | F8: KENAIKAN / PENURUNAN KAS DARI AKTIVITAS OPERASIONAL | R8: 1. | S8: KENAIKAN / PENURUNAN KAS DARI AKTIVITAS OPERASIONAL
G9: Laba (Rugi) Bersih | T9: Laba (Rugi) Bersih
A10: LBS | G10: - | H10: =IF(ISNA(VLOOKUP($A10,data,O.3,FALSE)),TEXT,VLOOKUP($A10,data,O.3,FALSE)) -> Laba Bersih Setelah Pajak | O10: =ERROR+IF(VLOOKUP($A10,data,O.1,FALSE)=LABA_2,SUMIF(data_0,$A10,data_2),IF(VLOOKUP($A10,data,O.1,FALSE)=KAS,SUMIF(data_0,$A10,data_1),IF(VLOOKUP($A10,data,O.1,FALSE)=LABA_1,SUMIF(data_0,$A10,data_2)-SUMIF(data_0,$A10,data_1)-SUMIF(data_0,$B10,data_1),IF(VLOOKUP($A10,data,O.2,FALSE)=AKT,SUMIF(data_0,$A10,data_1)-SUMIF(data_0,$A10,data_2),IF(VLOOKUP($A10,data,O.2,FALSE)=PSV,SUMIF(data_0,$A10,data_2)-SUMIF(data_0,$A10,data_1),ERROR))))) -> 1245340554 | T10: - | U10: =IF(ISNA(VLOOKUP($A10,data,O.3,FALSE)),TEXT,VLOOKUP($A10,data,O.3,FALSE)) -> Laba Bersih Setelah Pajak | AB10: =ERROR+IF(VLOOKUP($A10,data,O.1,FALSE)=LABA_2,SUMIF(data_0,$A10,data_3),IF(VLOOKUP($A10,data,O.1,FALSE)=KAS,SUMIF(data_0,$A10,data_2),IF(VLOOKUP($A10,data,O.1,FALSE)=LABA_1,SUMIF(data_0,$A10,data_3)-SUMIF(data_0,$A10,data_2)-SUMIF(data_0,$B10,data_2),IF(VLOOKUP($A10,data,O.2,FALSE)=AKT,SUMIF(data_0,$A10,data_2)-SUMIF(data_0,$A10,data_3),IF(VLOOKUP($A10,data,O.2,FALSE)=PSV,SUMIF(data_0,$A10,data_3)-SUMIF(data_0,$A10,data_2),ERROR))))) -> 1715240554
A11: PNY | G11: - | H11: =IF(ISNA(VLOOKUP($A11,data,O.3,FALSE)),TEXT,VLOOKUP($A11,data,O.3,FALSE)) -> Akumulasi Penyusutan | O11: =ERROR+IF(VLOOKUP($A11,data,O.1,FALSE)=LABA_2,SUMIF(data_0,$A11,data_2),IF(VLOOKUP($A11,data,O.1,FALSE)=KAS,SUMIF(data_0,$A11,data_1),IF(VLOOKUP($A11,data,O.1,FALSE)=LABA_1,SUMIF(data_0,$A11,data_2)-SUMIF(data_0,$A11,data_1)-SUMIF(data_0,$B11,data_1),IF(VLOOKUP($A11,data,O.2,FALSE)=AKT,SUMIF(data_0,$A11,data_1)-SUMIF(data_0,$A11,data_2),IF(VLOOKUP($A11,data,O.2,FALSE)=PSV,SUMIF(data_0,$A11,data_2)-SUMIF(data_0,$A11,data_1),ERROR))))) -> 102950277 | T11: - | U11: =IF(ISNA(VLOOKUP($A11,data,O.3,FALSE)),TEXT,VLOOKUP($A11,data,O.3,FALSE)) -> Akumulasi Penyusutan | AB11: =ERROR+IF(VLOOKUP($A11,data,O.1,FALSE)=LABA_2,SUMIF(data_0,$A11,data_3),IF(VLOOKUP($A11,data,O.1,FALSE)=KAS,SUMIF(data_0,$A11,data_2),IF(VLOOKUP($A11,data,O.1,FALSE)=LABA_1,SUMIF(data_0,$A11,data_3)-SUMIF(data_0,$A11,data_2)-SUMIF(data_0,$B11,data_2),IF(VLOOKUP($A11,data,O.2,FALSE)=AKT,SUMIF(data_0,$A11,data_2)-SUMIF(data_0,$A11,data_3),IF(VLOOKUP($A11,data,O.2,FALSE)=PSV,SUMIF(data_0,$A11,data_3)-SUMIF(data_0,$A11,data_2),ERROR))))) -> 102950277
H12: Laba Bersih Koreksi Tanpa Penyusutan | O12: =SUM(O10:O11) -> 1348290831 | U12: Laba Bersih Koreksi Tanpa Penyusutan | AB12: =SUM(AB10:AB11) -> 1818190831
G13: Kenaikan / Penurunan Pos-pos Aset Lancar dan Hutang Lancar | T13: Kenaikan / Penurunan Pos-pos Aset Lancar dan Hutang Lancar
A14: OPR-01 | G14: - | H14: =IF(ISNA(VLOOKUP($A14,data,O.3,FALSE)),TEXT,VLOOKUP($A14,data,O.3,FALSE)) -> Piutang Usaha | N14: =IF(AND(VLOOKUP($A14,data,O.2,FALSE)=AKT,$O14<ERROR),NAIK,IF(AND(VLOOKUP($A14,data,O.2,FALSE)=AKT,$O14>ERROR),TURUN,IF(AND(VLOOKUP($A14,data,O.2,FALSE)=PSV,$O14>ERROR),NAIK,IF(AND(VLOOKUP($A14,data,O.2,FALSE)=PSV,$O14<ERROR),TURUN,TEXT)))) -> Naik | O14: =ERROR+IF(VLOOKUP($A14,data,O.1,FALSE)=LABA_2,SUMIF(data_0,$A14,data_2),IF(VLOOKUP($A14,data,O.1,FALSE)=KAS,SUMIF(data_0,$A14,data_1),IF(VLOOKUP($A14,data,O.1,FALSE)=LABA_1,SUMIF(data_0,$A14,data_2)-SUMIF(data_0,$A14,data_1)-SUMIF(data_0,$B14,data_1),IF(VLOOKUP($A14,data,O.2,FALSE)=AKT,SUMIF(data_0,$A14,data_1)-SUMIF(data_0,$A14,data_2),IF(VLOOKUP($A14,data,O.2,FALSE)=PSV,SUMIF(data_0,$A14,data_2)-SUMIF(data_0,$A14,data_1),ERROR))))) -> -70999551 | T14: - | U14: =IF(ISNA(VLOOKUP($A14,data,O.3,FALSE)),TEXT,VLOOKUP($A14,data,O.3,FALSE)) -> Piutang Usaha | AA14: =IF(AND(VLOOKUP($A14,data,O.2,FALSE)=AKT,$O14<ERROR),NAIK,IF(AND(VLOOKUP($A14,data,O.2,FALSE)=AKT,$O14>ERROR),TURUN,IF(AND(VLOOKUP($A14,data,O.2,FALSE)=PSV,$O14>ERROR),NAIK,IF(AND(VLOOKUP($A14,data,O.2,FALSE)=PSV,$O14<ERROR),TURUN,TEXT)))) -> Naik | AB14: =ERROR+IF(VLOOKUP($A14,data,O.1,FALSE)=LABA_2,SUMIF(data_0,$A14,data_3),IF(VLOOKUP($A14,data,O.1,FALSE)=KAS,SUMIF(data_0,$A14,data_2),IF(VLOOKUP($A14,data,O.1,FALSE)=LABA_1,SUMIF(data_0,$A14,data_3)-SUMIF(data_0,$A14,data_2)-SUMIF(data_0,$B14,data_2),IF(VLOOKUP($A14,data,O.2,FALSE)=AKT,SUMIF(data_0,$A14,data_2)-SUMIF(data_0,$A14,data_3),IF(VLOOKUP($A14,data,O.2,FALSE)=PSV,SUMIF(data_0,$A14,data_3)-SUMIF(data_0,$A14,data_2),ERROR))))) -> -199000000
A15: OPR-02 | G15: - | H15: Piutang Lain-lain | N15: Turun | O15: 40625650 | T15: - | U15: Piutang Lain-lain | AA15: Turun | AB15: -50000000
A16: OPR-03 | G16: - | H16: Persediaan | N16: Turun | O16: 140535040 | T16: - | U16: Persediaan | AA16: Turun | AB16: -400000000
A17: OPR-04 | G17: - | H17: Uang Muka Biaya | N17: Naik | O17: -140646595.5 | T17: - | U17: Uang Muka Biaya | AA17: Naik | AB17: 0
A18: OPR-05 | G18: - | H18: Uang Muka Pajak | N18: Turun | O18: 92131176 | T18: - | U18: Uang Muka Pajak | AA18: Turun | AB18: 0
A19: OPR-06 | G19: - | H19: Beban Ditangguhkan | N19: Turun | O19: 14835760.7 | T19: - | U19: Beban Ditangguhkan | AA19: Turun | AB19: 0
A20: OPR-07 | G20: - | H20: Utang Usaha | N20: Naik | O20: 117189503 | T20: - | U20: Utang Usaha | AA20: Naik | AB20: -75700000
A21: OPR-08 | G21: - | H21: Utang Pajak | N21: Naik | O21: 11100089 | T21: - | U21: Utang Pajak | AA21: Naik | AB21: -1077992.16
A22: OPR-09 | G22: - | H22: Utang Jangka Pendek Lainnya | N22: Turun | O22: -222140634 | T22: - | U22: Utang Jangka Pendek Lainnya | AA22: Turun | AB22: -2950277
H23: =IF($O23>ERROR,"Jumlah (Kenaikan)",IF($O23<ERROR,"Jumlah (Penurunan)","......................."))&" Kas dari Aktivitas Operasi" -> Jumlah (Kenaikan) Kas dari Aktivitas Operasi | O23: =SUM(O12:O22) -> 1330921270 | U23: =IF($O23>ERROR,"Jumlah (Kenaikan)",IF($O23<ERROR,"Jumlah (Penurunan)","......................."))&" Kas dari Aktivitas Operasi" -> Jumlah (Kenaikan) Kas dari Aktivitas Operasi | AB23: =SUM(AB12:AB22) -> 1089462562
E25: 2. | F25: KENAIKAN / PENURUNAN KAS DARI AKTIVITAS INVESTASI | R25: 2. | S25: KENAIKAN / PENURUNAN KAS DARI AKTIVITAS INVESTASI
A26: INV-01 | G26: - | H26: =IF(ISNA(VLOOKUP($A26,data,O.3,FALSE)),TEXT,VLOOKUP($A26,data,O.3,FALSE)) -> Perolehan Aktiva Tetap | N26: =IF(AND(VLOOKUP($A26,data,O.2,FALSE)=AKT,$O26<ERROR),NAIK,IF(AND(VLOOKUP($A26,data,O.2,FALSE)=AKT,$O26>ERROR),TURUN,IF(AND(VLOOKUP($A26,data,O.2,FALSE)=PSV,$O26>ERROR),NAIK,IF(AND(VLOOKUP($A26,data,O.2,FALSE)=PSV,$O26<ERROR),TURUN,TEXT)))) -> Naik | O26: =ERROR+IF(VLOOKUP($A26,data,O.1,FALSE)=LABA_2,SUMIF(data_0,$A26,data_2),IF(VLOOKUP($A26,data,O.1,FALSE)=KAS,SUMIF(data_0,$A26,data_1),IF(VLOOKUP($A26,data,O.1,FALSE)=LABA_1,SUMIF(data_0,$A26,data_2)-SUMIF(data_0,$A26,data_1)-SUMIF(data_0,$B26,data_1),IF(VLOOKUP($A26,data,O.2,FALSE)=AKT,SUMIF(data_0,$A26,data_1)-SUMIF(data_0,$A26,data_2),IF(VLOOKUP($A26,data,O.2,FALSE)=PSV,SUMIF(data_0,$A26,data_2)-SUMIF(data_0,$A26,data_1),ERROR))))) -> -0.3000030518 | T26: - | U26: =IF(ISNA(VLOOKUP($A26,data,O.3,FALSE)),TEXT,VLOOKUP($A26,data,O.3,FALSE)) -> Perolehan Aktiva Tetap | AA26: =IF(AND(VLOOKUP($A26,data,O.2,FALSE)=AKT,$O26<ERROR),NAIK,IF(AND(VLOOKUP($A26,data,O.2,FALSE)=AKT,$O26>ERROR),TURUN,IF(AND(VLOOKUP($A26,data,O.2,FALSE)=PSV,$O26>ERROR),NAIK,IF(AND(VLOOKUP($A26,data,O.2,FALSE)=PSV,$O26<ERROR),TURUN,TEXT)))) -> Naik | AB26: =ERROR+IF(VLOOKUP($A26,data,O.1,FALSE)=LABA_2,SUMIF(data_0,$A26,data_3),IF(VLOOKUP($A26,data,O.1,FALSE)=KAS,SUMIF(data_0,$A26,data_2),IF(VLOOKUP($A26,data,O.1,FALSE)=LABA_1,SUMIF(data_0,$A26,data_3)-SUMIF(data_0,$A26,data_2)-SUMIF(data_0,$B26,data_2),IF(VLOOKUP($A26,data,O.2,FALSE)=AKT,SUMIF(data_0,$A26,data_2)-SUMIF(data_0,$A26,data_3),IF(VLOOKUP($A26,data,O.2,FALSE)=PSV,SUMIF(data_0,$A26,data_3)-SUMIF(data_0,$A26,data_2),ERROR))))) -> 0
A27: INV-02 | G27: - | H27: =IF(ISNA(VLOOKUP($A27,data,O.3,FALSE)),TEXT,VLOOKUP($A27,data,O.3,FALSE)) -> Bangunan Dalam Proses | N27: =IF(AND(VLOOKUP($A27,data,O.2,FALSE)=AKT,$O27<ERROR),NAIK,IF(AND(VLOOKUP($A27,data,O.2,FALSE)=AKT,$O27>ERROR),TURUN,IF(AND(VLOOKUP($A27,data,O.2,FALSE)=PSV,$O27>ERROR),NAIK,IF(AND(VLOOKUP($A27,data,O.2,FALSE)=PSV,$O27<ERROR),TURUN,TEXT)))) -> Naik | O27: =ERROR+IF(VLOOKUP($A27,data,O.1,FALSE)=LABA_2,SUMIF(data_0,$A27,data_2),IF(VLOOKUP($A27,data,O.1,FALSE)=KAS,SUMIF(data_0,$A27,data_1),IF(VLOOKUP($A27,data,O.1,FALSE)=LABA_1,SUMIF(data_0,$A27,data_2)-SUMIF(data_0,$A27,data_1)-SUMIF(data_0,$B27,data_1),IF(VLOOKUP($A27,data,O.2,FALSE)=AKT,SUMIF(data_0,$A27,data_1)-SUMIF(data_0,$A27,data_2),IF(VLOOKUP($A27,data,O.2,FALSE)=PSV,SUMIF(data_0,$A27,data_2)-SUMIF(data_0,$A27,data_1),ERROR))))) -> -510000000 | T27: - | U27: =IF(ISNA(VLOOKUP($A27,data,O.3,FALSE)),TEXT,VLOOKUP($A27,data,O.3,FALSE)) -> Bangunan Dalam Proses | AA27: =IF(AND(VLOOKUP($A27,data,O.2,FALSE)=AKT,$O27<ERROR),NAIK,IF(AND(VLOOKUP($A27,data,O.2,FALSE)=AKT,$O27>ERROR),TURUN,IF(AND(VLOOKUP($A27,data,O.2,FALSE)=PSV,$O27>ERROR),NAIK,IF(AND(VLOOKUP($A27,data,O.2,FALSE)=PSV,$O27<ERROR),TURUN,TEXT)))) -> Naik | AB27: =ERROR+IF(VLOOKUP($A27,data,O.1,FALSE)=LABA_2,SUMIF(data_0,$A27,data_3),IF(VLOOKUP($A27,data,O.1,FALSE)=KAS,SUMIF(data_0,$A27,data_2),IF(VLOOKUP($A27,data,O.1,FALSE)=LABA_1,SUMIF(data_0,$A27,data_3)-SUMIF(data_0,$A27,data_2)-SUMIF(data_0,$B27,data_2),IF(VLOOKUP($A27,data,O.2,FALSE)=AKT,SUMIF(data_0,$A27,data_2)-SUMIF(data_0,$A27,data_3),IF(VLOOKUP($A27,data,O.2,FALSE)=PSV,SUMIF(data_0,$A27,data_3)-SUMIF(data_0,$A27,data_2),ERROR))))) -> -100000000
H28: =IF($O28>ERROR,"Jumlah (Kenaikan)",IF($O28<ERROR,"Jumlah (Penurunan)","......................."))&" Kas dari Aktivitas Investasi" -> Jumlah (Penurunan) Kas dari Aktivitas Investasi | O28: =SUM(O26:O27) -> -510000000.3 | U28: =IF($O28>ERROR,"Jumlah (Kenaikan)",IF($O28<ERROR,"Jumlah (Penurunan)","......................."))&" Kas dari Aktivitas Investasi" -> Jumlah (Penurunan) Kas dari Aktivitas Investasi | AB28: =SUM(AB26:AB27) -> -100000000
E30: 3. | F30: KENAIKAN / PENURUNAN KAS DARI AKTIVITAS PENDANAAN | R30: 3. | S30: KENAIKAN / PENURUNAN KAS DARI AKTIVITAS PENDANAAN
A31: DNA-01 | G31: - | H31: =IF(ISNA(VLOOKUP($A31,data,O.3,FALSE)),TEXT,VLOOKUP($A31,data,O.3,FALSE)) -> Utang Bank | N31: =IF(AND(VLOOKUP($A31,data,O.2,FALSE)=AKT,$O31<ERROR),NAIK,IF(AND(VLOOKUP($A31,data,O.2,FALSE)=AKT,$O31>ERROR),TURUN,IF(AND(VLOOKUP($A31,data,O.2,FALSE)=PSV,$O31>ERROR),NAIK,IF(AND(VLOOKUP($A31,data,O.2,FALSE)=PSV,$O31<ERROR),TURUN,TEXT)))) -> Turun | O31: =ERROR+IF(VLOOKUP($A31,data,O.1,FALSE)=LABA_2,SUMIF(data_0,$A31,data_2),IF(VLOOKUP($A31,data,O.1,FALSE)=KAS,SUMIF(data_0,$A31,data_1),IF(VLOOKUP($A31,data,O.1,FALSE)=LABA_1,SUMIF(data_0,$A31,data_2)-SUMIF(data_0,$A31,data_1)-SUMIF(data_0,$B31,data_1),IF(VLOOKUP($A31,data,O.2,FALSE)=AKT,SUMIF(data_0,$A31,data_1)-SUMIF(data_0,$A31,data_2),IF(VLOOKUP($A31,data,O.2,FALSE)=PSV,SUMIF(data_0,$A31,data_2)-SUMIF(data_0,$A31,data_1),ERROR))))) -> -777489611.7 | T31: - | U31: =IF(ISNA(VLOOKUP($A31,data,O.3,FALSE)),TEXT,VLOOKUP($A31,data,O.3,FALSE)) -> Utang Bank | AA31: =IF(AND(VLOOKUP($A31,data,O.2,FALSE)=AKT,$O31<ERROR),NAIK,IF(AND(VLOOKUP($A31,data,O.2,FALSE)=AKT,$O31>ERROR),TURUN,IF(AND(VLOOKUP($A31,data,O.2,FALSE)=PSV,$O31>ERROR),NAIK,IF(AND(VLOOKUP($A31,data,O.2,FALSE)=PSV,$O31<ERROR),TURUN,TEXT)))) -> Turun | AB31: =ERROR+IF(VLOOKUP($A31,data,O.1,FALSE)=LABA_2,SUMIF(data_0,$A31,data_3),IF(VLOOKUP($A31,data,O.1,FALSE)=KAS,SUMIF(data_0,$A31,data_2),IF(VLOOKUP($A31,data,O.1,FALSE)=LABA_1,SUMIF(data_0,$A31,data_3)-SUMIF(data_0,$A31,data_2)-SUMIF(data_0,$B31,data_2),IF(VLOOKUP($A31,data,O.2,FALSE)=AKT,SUMIF(data_0,$A31,data_2)-SUMIF(data_0,$A31,data_3),IF(VLOOKUP($A31,data,O.2,FALSE)=PSV,SUMIF(data_0,$A31,data_3)-SUMIF(data_0,$A31,data_2),ERROR))))) -> -589462562.2
A32: DNA-02 | G32: - | H32: =IF(ISNA(VLOOKUP($A32,data,O.3,FALSE)),TEXT,VLOOKUP($A32,data,O.3,FALSE)) -> Utang Komisaris | N32: =IF(AND(VLOOKUP($A32,data,O.2,FALSE)=AKT,$O32<ERROR),NAIK,IF(AND(VLOOKUP($A32,data,O.2,FALSE)=AKT,$O32>ERROR),TURUN,IF(AND(VLOOKUP($A32,data,O.2,FALSE)=PSV,$O32>ERROR),NAIK,IF(AND(VLOOKUP($A32,data,O.2,FALSE)=PSV,$O32<ERROR),TURUN,TEXT)))) -> Naik | O32: =ERROR+IF(VLOOKUP($A32,data,O.1,FALSE)=LABA_2,SUMIF(data_0,$A32,data_2),IF(VLOOKUP($A32,data,O.1,FALSE)=KAS,SUMIF(data_0,$A32,data_1),IF(VLOOKUP($A32,data,O.1,FALSE)=LABA_1,SUMIF(data_0,$A32,data_2)-SUMIF(data_0,$A32,data_1)-SUMIF(data_0,$B32,data_1),IF(VLOOKUP($A32,data,O.2,FALSE)=AKT,SUMIF(data_0,$A32,data_1)-SUMIF(data_0,$A32,data_2),IF(VLOOKUP($A32,data,O.2,FALSE)=PSV,SUMIF(data_0,$A32,data_2)-SUMIF(data_0,$A32,data_1),ERROR))))) -> 142071908.4 | T32: - | U32: =IF(ISNA(VLOOKUP($A32,data,O.3,FALSE)),TEXT,VLOOKUP($A32,data,O.3,FALSE)) -> Utang Komisaris | AA32: =IF(AND(VLOOKUP($A32,data,O.2,FALSE)=AKT,$O32<ERROR),NAIK,IF(AND(VLOOKUP($A32,data,O.2,FALSE)=AKT,$O32>ERROR),TURUN,IF(AND(VLOOKUP($A32,data,O.2,FALSE)=PSV,$O32>ERROR),NAIK,IF(AND(VLOOKUP($A32,data,O.2,FALSE)=PSV,$O32<ERROR),TURUN,TEXT)))) -> Naik | AB32: =ERROR+IF(VLOOKUP($A32,data,O.1,FALSE)=LABA_2,SUMIF(data_0,$A32,data_3),IF(VLOOKUP($A32,data,O.1,FALSE)=KAS,SUMIF(data_0,$A32,data_2),IF(VLOOKUP($A32,data,O.1,FALSE)=LABA_1,SUMIF(data_0,$A32,data_3)-SUMIF(data_0,$A32,data_2)-SUMIF(data_0,$B32,data_2),IF(VLOOKUP($A32,data,O.2,FALSE)=AKT,SUMIF(data_0,$A32,data_2)-SUMIF(data_0,$A32,data_3),IF(VLOOKUP($A32,data,O.2,FALSE)=PSV,SUMIF(data_0,$A32,data_3)-SUMIF(data_0,$A32,data_2),ERROR))))) -> 0
A33: DNA-03 | G33: - | H33: =IF(ISNA(VLOOKUP($A33,data,O.3,FALSE)),TEXT,VLOOKUP($A33,data,O.3,FALSE)) -> Utang Jangka Panjang Lainnya | N33: =IF(AND(VLOOKUP($A33,data,O.2,FALSE)=AKT,$O33<ERROR),NAIK,IF(AND(VLOOKUP($A33,data,O.2,FALSE)=AKT,$O33>ERROR),TURUN,IF(AND(VLOOKUP($A33,data,O.2,FALSE)=PSV,$O33>ERROR),NAIK,IF(AND(VLOOKUP($A33,data,O.2,FALSE)=PSV,$O33<ERROR),TURUN,TEXT)))) -> Naik | O33: =ERROR+IF(VLOOKUP($A33,data,O.1,FALSE)=LABA_2,SUMIF(data_0,$A33,data_2),IF(VLOOKUP($A33,data,O.1,FALSE)=KAS,SUMIF(data_0,$A33,data_1),IF(VLOOKUP($A33,data,O.1,FALSE)=LABA_1,SUMIF(data_0,$A33,data_2)-SUMIF(data_0,$A33,data_1)-SUMIF(data_0,$B33,data_1),IF(VLOOKUP($A33,data,O.2,FALSE)=AKT,SUMIF(data_0,$A33,data_1)-SUMIF(data_0,$A33,data_2),IF(VLOOKUP($A33,data,O.2,FALSE)=PSV,SUMIF(data_0,$A33,data_2)-SUMIF(data_0,$A33,data_1),ERROR))))) -> 118538300 | T33: - | U33: =IF(ISNA(VLOOKUP($A33,data,O.3,FALSE)),TEXT,VLOOKUP($A33,data,O.3,FALSE)) -> Utang Jangka Panjang Lainnya | AA33: =IF(AND(VLOOKUP($A33,data,O.2,FALSE)=AKT,$O33<ERROR),NAIK,IF(AND(VLOOKUP($A33,data,O.2,FALSE)=AKT,$O33>ERROR),TURUN,IF(AND(VLOOKUP($A33,data,O.2,FALSE)=PSV,$O33>ERROR),NAIK,IF(AND(VLOOKUP($A33,data,O.2,FALSE)=PSV,$O33<ERROR),TURUN,TEXT)))) -> Naik | AB33: =ERROR+IF(VLOOKUP($A33,data,O.1,FALSE)=LABA_2,SUMIF(data_0,$A33,data_3),IF(VLOOKUP($A33,data,O.1,FALSE)=KAS,SUMIF(data_0,$A33,data_2),IF(VLOOKUP($A33,data,O.1,FALSE)=LABA_1,SUMIF(data_0,$A33,data_3)-SUMIF(data_0,$A33,data_2)-SUMIF(data_0,$B33,data_2),IF(VLOOKUP($A33,data,O.2,FALSE)=AKT,SUMIF(data_0,$A33,data_2)-SUMIF(data_0,$A33,data_3),IF(VLOOKUP($A33,data,O.2,FALSE)=PSV,SUMIF(data_0,$A33,data_3)-SUMIF(data_0,$A33,data_2),ERROR))))) -> 0
A34: DNA-04 | G34: - | H34: =IF(ISNA(VLOOKUP($A34,data,O.3,FALSE)),TEXT,VLOOKUP($A34,data,O.3,FALSE)) -> Modal Saham | N34: =IF(AND(VLOOKUP($A34,data,O.2,FALSE)=AKT,$O34<ERROR),NAIK,IF(AND(VLOOKUP($A34,data,O.2,FALSE)=AKT,$O34>ERROR),TURUN,IF(AND(VLOOKUP($A34,data,O.2,FALSE)=PSV,$O34>ERROR),NAIK,IF(AND(VLOOKUP($A34,data,O.2,FALSE)=PSV,$O34<ERROR),TURUN,TEXT)))) -> - | O34: =ERROR+IF(VLOOKUP($A34,data,O.1,FALSE)=LABA_2,SUMIF(data_0,$A34,data_2),IF(VLOOKUP($A34,data,O.1,FALSE)=KAS,SUMIF(data_0,$A34,data_1),IF(VLOOKUP($A34,data,O.1,FALSE)=LABA_1,SUMIF(data_0,$A34,data_2)-SUMIF(data_0,$A34,data_1)-SUMIF(data_0,$B34,data_1),IF(VLOOKUP($A34,data,O.2,FALSE)=AKT,SUMIF(data_0,$A34,data_1)-SUMIF(data_0,$A34,data_2),IF(VLOOKUP($A34,data,O.2,FALSE)=PSV,SUMIF(data_0,$A34,data_2)-SUMIF(data_0,$A34,data_1),ERROR))))) -> 0 | T34: - | U34: =IF(ISNA(VLOOKUP($A34,data,O.3,FALSE)),TEXT,VLOOKUP($A34,data,O.3,FALSE)) -> Modal Saham | AA34: =IF(AND(VLOOKUP($A34,data,O.2,FALSE)=AKT,$O34<ERROR),NAIK,IF(AND(VLOOKUP($A34,data,O.2,FALSE)=AKT,$O34>ERROR),TURUN,IF(AND(VLOOKUP($A34,data,O.2,FALSE)=PSV,$O34>ERROR),NAIK,IF(AND(VLOOKUP($A34,data,O.2,FALSE)=PSV,$O34<ERROR),TURUN,TEXT)))) -> - | AB34: =ERROR+IF(VLOOKUP($A34,data,O.1,FALSE)=LABA_2,SUMIF(data_0,$A34,data_3),IF(VLOOKUP($A34,data,O.1,FALSE)=KAS,SUMIF(data_0,$A34,data_2),IF(VLOOKUP($A34,data,O.1,FALSE)=LABA_1,SUMIF(data_0,$A34,data_3)-SUMIF(data_0,$A34,data_2)-SUMIF(data_0,$B34,data_2),IF(VLOOKUP($A34,data,O.2,FALSE)=AKT,SUMIF(data_0,$A34,data_2)-SUMIF(data_0,$A34,data_3),IF(VLOOKUP($A34,data,O.2,FALSE)=PSV,SUMIF(data_0,$A34,data_3)-SUMIF(data_0,$A34,data_2),ERROR))))) -> 0
A35: LBD-01 | B35: LBD-02 | G35: - | H35: =IF(ISNA(VLOOKUP($A35,data,O.3,FALSE)),TEXT,VLOOKUP($A35,data,O.3,FALSE)) -> Laba Ditahan | N35: =IF(AND(VLOOKUP($A35,data,O.2,FALSE)=AKT,$O35<ERROR),NAIK,IF(AND(VLOOKUP($A35,data,O.2,FALSE)=AKT,$O35>ERROR),TURUN,IF(AND(VLOOKUP($A35,data,O.2,FALSE)=PSV,$O35>ERROR),NAIK,IF(AND(VLOOKUP($A35,data,O.2,FALSE)=PSV,$O35<ERROR),TURUN,TEXT)))) -> Turun | O35: =ERROR+IF(VLOOKUP($A35,data,O.1,FALSE)=LABA_2,SUMIF(data_0,$A35,data_2),IF(VLOOKUP($A35,data,O.1,FALSE)=KAS,SUMIF(data_0,$A35,data_1),IF(VLOOKUP($A35,data,O.1,FALSE)=LABA_1,SUMIF(data_0,$A35,data_2)-SUMIF(data_0,$A35,data_1)-SUMIF(data_0,$B35,data_1),IF(VLOOKUP($A35,data,O.2,FALSE)=AKT,SUMIF(data_0,$A35,data_1)-SUMIF(data_0,$A35,data_2),IF(VLOOKUP($A35,data,O.2,FALSE)=PSV,SUMIF(data_0,$A35,data_2)-SUMIF(data_0,$A35,data_1),ERROR))))) -> -2.384185791e-07 | T35: - | U35: =IF(ISNA(VLOOKUP($A35,data,O.3,FALSE)),TEXT,VLOOKUP($A35,data,O.3,FALSE)) -> Laba Ditahan | AA35: =IF(AND(VLOOKUP($A35,data,O.2,FALSE)=AKT,$O35<ERROR),NAIK,IF(AND(VLOOKUP($A35,data,O.2,FALSE)=AKT,$O35>ERROR),TURUN,IF(AND(VLOOKUP($A35,data,O.2,FALSE)=PSV,$O35>ERROR),NAIK,IF(AND(VLOOKUP($A35,data,O.2,FALSE)=PSV,$O35<ERROR),TURUN,TEXT)))) -> Turun | AB35: =ERROR+IF(VLOOKUP($A35,data,O.1,FALSE)=LABA_2,SUMIF(data_0,$A35,data_3),IF(VLOOKUP($A35,data,O.1,FALSE)=KAS,SUMIF(data_0,$A35,data_2),IF(VLOOKUP($A35,data,O.1,FALSE)=LABA_1,SUMIF(data_0,$A35,data_3)-SUMIF(data_0,$A35,data_2)-SUMIF(data_0,$B35,data_2),IF(VLOOKUP($A35,data,O.2,FALSE)=AKT,SUMIF(data_0,$A35,data_2)-SUMIF(data_0,$A35,data_3),IF(VLOOKUP($A35,data,O.2,FALSE)=PSV,SUMIF(data_0,$A35,data_3)-SUMIF(data_0,$A35,data_2),ERROR))))) -> 0
H36: =IF($O36>ERROR,"Jumlah (Kenaikan)",IF($O36<ERROR,"Jumlah (Penurunan)","......................."))&" Kas dari Aktivitas Pendanaan" -> Jumlah (Penurunan) Kas dari Aktivitas Pendanaan | O36: =SUM(O31:O35) -> -516879403.2 | U36: =IF($O36>ERROR,"Jumlah (Kenaikan)",IF($O36<ERROR,"Jumlah (Penurunan)","......................."))&" Kas dari Aktivitas Pendanaan" -> Jumlah (Penurunan) Kas dari Aktivitas Pendanaan | AB36: =SUM(AB31:AB35) -> -589462562.2
H38: ="TOTAL "&(IF($O38<ERROR,"(PENURUNAN) ARUS KAS",IF($O38>ERROR,"(KENAIKAN) ARUS KAS","......................."))) -> TOTAL (KENAIKAN) ARUS KAS | O38: =O23+O28+O36 -> 304041866 | U38: ="TOTAL "&(IF($O38<ERROR,"(PENURUNAN) ARUS KAS",IF($O38>ERROR,"(KENAIKAN) ARUS KAS","......................."))) -> TOTAL (KENAIKAN) ARUS KAS | AB38: =AB23+AB28+AB36 -> 400000000
A40: KAS | H40: =IF(ISNA(VLOOKUP($A40,data,O.3,FALSE)),TEXT,UPPER(VLOOKUP($A40,data,O.3,FALSE)&" AWAL")) -> KAS & SETARA KAS AWAL | O40: =ERROR+IF(VLOOKUP($A40,data,O.1,FALSE)=LABA_2,SUMIF(data_0,$A40,data_2),IF(VLOOKUP($A40,data,O.1,FALSE)=KAS,SUMIF(data_0,$A40,data_1),IF(VLOOKUP($A40,data,O.1,FALSE)=LABA_1,SUMIF(data_0,$A40,data_2)-SUMIF(data_0,$A40,data_1)-SUMIF(data_0,$B40,data_1),IF(VLOOKUP($A40,data,O.2,FALSE)=AKT,SUMIF(data_0,$A40,data_1)-SUMIF(data_0,$A40,data_2),IF(VLOOKUP($A40,data,O.2,FALSE)=PSV,SUMIF(data_0,$A40,data_2)-SUMIF(data_0,$A40,data_1),ERROR))))) -> 540521097 | U40: =IF(ISNA(VLOOKUP($A40,data,O.3,FALSE)),TEXT,UPPER(VLOOKUP($A40,data,O.3,FALSE)&" AWAL")) -> KAS & SETARA KAS AWAL | AB40: =ERROR+IF(VLOOKUP($A40,data,O.1,FALSE)=LABA_2,SUMIF(data_0,$A40,data_3),IF(VLOOKUP($A40,data,O.1,FALSE)=KAS,SUMIF(data_0,$A40,data_2),IF(VLOOKUP($A40,data,O.1,FALSE)=LABA_1,SUMIF(data_0,$A40,data_3)-SUMIF(data_0,$A40,data_2)-SUMIF(data_0,$B40,data_2),IF(VLOOKUP($A40,data,O.2,FALSE)=AKT,SUMIF(data_0,$A40,data_2)-SUMIF(data_0,$A40,data_3),IF(VLOOKUP($A40,data,O.2,FALSE)=PSV,SUMIF(data_0,$A40,data_3)-SUMIF(data_0,$A40,data_2),ERROR))))) -> 844562963
A42: KAS | H42: =IF(ISNA(VLOOKUP($A42,data,O.3,FALSE)),TEXT,UPPER(VLOOKUP($A42,data,O.3,FALSE)&" AKHIR")) -> KAS & SETARA KAS AKHIR | O42: =O38+O40 -> 844562963 | U42: =IF(ISNA(VLOOKUP($A42,data,O.3,FALSE)),TEXT,UPPER(VLOOKUP($A42,data,O.3,FALSE)&" AKHIR")) -> KAS & SETARA KAS AKHIR | AB42: =AB38+AB40 -> 1244562963
F45: KESIMPULAN KENAIKAN / PENURUNAN KAS | S45: KESIMPULAN KENAIKAN / PENURUNAN KAS
A47: KAS | H47: =IF(ISNA(VLOOKUP($A47,data,O.3,FALSE)),TEXT,UPPER(VLOOKUP($A47,data,O.3,FALSE)&" AWAL")) -> KAS & SETARA KAS AWAL | O47: =O40 -> 540521097 | U47: =IF(ISNA(VLOOKUP($A47,data,O.3,FALSE)),TEXT,UPPER(VLOOKUP($A47,data,O.3,FALSE)&" AWAL")) -> KAS & SETARA KAS AWAL | AB47: =AB40 -> 844562963
H49: PENAMBAHAN / PENGURANGAN KAS | U49: PENAMBAHAN / PENGURANGAN KAS
H50: 1 | I50: =IF($O50>ERROR,"KAS (BERTAMBAH) DARI AKTIVITAS OPERASI",IF($O50<ERROR,"KAS (BERKURANG) DARI AKTIVITAS OPERASI",".......................")) -> KAS (BERTAMBAH) DARI AKTIVITAS OPERASI | O50: =O23 -> 1330921270 | U50: 1 | V50: =IF($O50>ERROR,"KAS (BERTAMBAH) DARI AKTIVITAS OPERASI",IF($O50<ERROR,"KAS (BERKURANG) DARI AKTIVITAS OPERASI",".......................")) -> KAS (BERTAMBAH) DARI AKTIVITAS OPERASI | AB50: =AB23 -> 1089462562
H51: 2 | I51: =IF($O51>ERROR,"KAS (BERTAMBAH) DARI AKTIVITAS INVESTASI",IF($O51<ERROR,"KAS (BERKURANG) DARI AKTIVITAS INVESTASI",".......................")) -> KAS (BERKURANG) DARI AKTIVITAS INVESTASI | O51: =O28 -> -510000000.3 | U51: 2 | V51: =IF($O51>ERROR,"KAS (BERTAMBAH) DARI AKTIVITAS INVESTASI",IF($O51<ERROR,"KAS (BERKURANG) DARI AKTIVITAS INVESTASI",".......................")) -> KAS (BERKURANG) DARI AKTIVITAS INVESTASI | AB51: =AB28 -> -100000000
H52: 3 | I52: =IF($O52>ERROR,"KAS (BERTAMBAH) DARI AKTIVITAS PENDANAAN",IF($O52<ERROR,"KAS (BERKURANG) DARI AKTIVITAS PENDANAAN",".......................")) -> KAS (BERKURANG) DARI AKTIVITAS PENDANAAN | O52: =O36 -> -516879403.2 | U52: 3 | V52: =IF($O52>ERROR,"KAS (BERTAMBAH) DARI AKTIVITAS PENDANAAN",IF($O52<ERROR,"KAS (BERKURANG) DARI AKTIVITAS PENDANAAN",".......................")) -> KAS (BERKURANG) DARI AKTIVITAS PENDANAAN | AB52: =AB36 -> -589462562.2
I53: =IF($O53>ERROR,"JUMLAH KENAIKAN",IF($O53<ERROR,"JUMLAH PENURUNAN","......................."))&" KAS DARI AKTIVITAS" -> JUMLAH KENAIKAN KAS DARI AKTIVITAS | O53: =SUM(O50:O52) -> 304041866 | V53: =IF($O53>ERROR,"JUMLAH KENAIKAN",IF($O53<ERROR,"JUMLAH PENURUNAN","......................."))&" KAS DARI AKTIVITAS" -> JUMLAH KENAIKAN KAS DARI AKTIVITAS | AB53: =SUM(AB50:AB52) -> 400000000
A55: KAS | H55: =IF(ISNA(VLOOKUP($A55,data,O.3,FALSE)),TEXT,UPPER(VLOOKUP($A55,data,O.3,FALSE)&" AKHIR")) -> KAS & SETARA KAS AKHIR | O55: =O47+O53 -> 844562963 | U55: =IF(ISNA(VLOOKUP($A55,data,O.3,FALSE)),TEXT,UPPER(VLOOKUP($A55,data,O.3,FALSE)&" AKHIR")) -> KAS & SETARA KAS AKHIR | AB55: =AB47+AB53 -> 1244562963
N58: Balance | O58: =O55-Data!I7 -> 0 | AA58: Balance | AB58: =AB55-Data!J7 -> 2.62260437e-06

Sheet HD (hidden)
B2: info
B1000: =LEFT(RIGHT(Info!A12,12),8) -> xclmedia | XY1000: o@xcl
B2000: =IF(AND(COUNTBLANK(Info!A24:X24)=24,COUNTBLANK(Info!X1:X24)=24,RIGHT(Data!K1,8)=B1000,LEFT(RIGHT(REG,LEN(REG)-3),5)=XY1000,LEFT(Info!D10,4)=B2,REG=XY5000,'Arus Kas'!E3="PT. EXPRESS GEMBOL",'Arus Kas'!R3="PT. EXPRESS GEMBOL"),XY6000,"#") -> 0
B3000: =IF(AND(COUNTA(ID!A1:AX500)=0,COUNTA(ID!BC1:CZ500)=0,COUNTA(ID!DB1:EY500)=0,COUNTA(ID!FA1:GX500)=0,COUNTBLANK(ID!GL1000000:XY1000000)=456,COUNTBLANK(ID!XY1:XY456)=456,COUNTBLANK(Data!XY1:XY100),COUNTBLANK('Arus Kas'!XY1:XY100)),XY6000,"#") -> 0
B4000: =IF(SUM(B4001:B4006)=65,XY6000,"#") -> 0
B4001: =COUNTA(Info!A1:G4) -> 28
B4002: =COUNTA(Info!A5:B11) -> 14
B4003: =COUNTA(Info!F5:G12) -> 14
B4004: =COUNTA(Info!E6:E9) -> 4
B4005: =COUNTA(Info!C9:D9) -> 2
B4006: =COUNTA(Info!C11:E11) -> 3
XY5000: info@xclmedia.com
XY6000: =IF(NOW()>LARGE(XZ6000,1),"#",0) -> 0 | XZ6000: 55152
